{"text_format":"3","workbook":"xlsx","n_sheets":15,"sheets":["Cum se utilizează acest șablon","Listă elevi","August","Septembrie","Octombrie","Noiembrie","Decembrie","Ianuarie","Februarie","Martie","Aprilie","Mai","Iunie","Iulie","Raport prezență elev"],"not_rendered":{"defined_names":16},"read":"whole","date_system":"1900"}

{"sheet":"Cum se utilizează acest șablon","index":0,"n_rows":25,"n_cols":5,"rows_kept":25,"merged":[[3,2,3,12],[4,4,4,12],[5,4,5,12],[6,4,6,12],[7,4,7,12],[8,4,8,7],[11,2,11,12],[12,4,12,12],[13,4,13,12],[14,4,14,12],[17,2,17,12],[18,4,18,12],[19,4,19,12],[20,4,20,12],[21,4,21,12],[24,2,24,12]]}
["CUM SE UTILIZEAZĂ ACEST ȘABLON"]
[]
[null,"DE UNDE ÎNCEP?"]
[null,null,"Sunt câțiva pași pe care ar trebui să-i urmați înainte să începeți să urmăriți prezența elevilor:"]
[{"$nulls":3},"1.","Adăugați elevii: În foaia Listă elevi introduceți informațiile despre fiecare elev, cum ar fi numele tutorelui și datele de contact. ID elev este o intrare importantă, deoarece furnizează un identificator unic pentru fiecare elev și este utilizată în tot registrul de lucru pentru diverse liste verticale ID elev pentru a facilita intrările de date. Informațiile introduse în Lista elev sunt utilizate și în alte foi, cum ar fi Raport prezență elev și înregistrările lunare de prezență."]
[{"$nulls":3},"2.","Schimbați anul calendarului școlar: În foaia August pentru prezență, faceți clic pe controlul de incrementare/decrementare din marginea de sus a antetului pentru a actualiza anul din calendar. Această modificare va actualiza antetul în toate înregistrările lunare de prezență din acest registru de lucru. (Observați că butonul de incrementare/decrementare nu se va imprima.)"]
[{"$nulls":3},"3.","(Opțional) Modificați culorile din registrul de lucru: Întâi navigați la ultima foaie, Raport prezență elev, iar pe fila Examinare, în grupul Modificări, faceți clic pe Deprotejare foaie. Apoi, pe fila Aspect pagină, în grupul Teme, faceți clic pe Culori și selectați alt set de culori temă din galeria de culori. După ce ați efectuat modificările de culori și toate celelalte modificări, reveniți la foaia Raport prezență elev, iar pe fila Examinare, în grupul Modificări, faceți clic pe Protejare foaie, apoi faceți clic pe OK."]
[{"$nulls":4},"Sfat: Creați un set de culori temă personalizate, care să se potrivească cu culorile școlii! Pentru aceasta, pe fila Aspect pagină, în grupul Teme, faceți clic peCulori, apoi, în partea de jos a galeriei de culori, faceți clic pe Creare culori noi pentru temă. Pentru mai multe informații despre cum să creați un set de culori personalizat, vedeți următorul subiect de Ajutor: "]
[{"$nulls":4},"Particularizați o temă de document."]
[]
[null,"MI-AM ADĂUGAT ELEVII, CE FAC ÎN CONTINUARE?"]
[null,null,"După ce elevii dvs. au fost introduși în foaia Listă elevi, puteți începe să le urmăriți prezența în timpul anului școlar utilizând acești pași:"]
[{"$nulls":3},"1.","Pentru a adăuga o înregistrare de prezență, faceți clic într-o celulă de sub coloana ID elev și selectați un ID din listă. Numele elevului se va afișa automat după ce este selectat un ID. "]
[{"$nulls":4},"Sfat: Economisiți pașii pentru introducerea datelor! După ce elevii dvs. sunt adăugați pentru o lună, selectați ID-urile elevilor, copiați-le, apoi lipiți-le în coloana ID elev pentru lunile rămase. "]
[{"$nulls":3},"2.","Apoi introduceți înregistrările prezenței pentru fiecare zi a lunii, utilizând tipurile de prezență furnizate în Cheie culori. Prezența elevilor este calculată automat după tipul de prezență pentru fiecare elev în coloana Total. Numărul total de absențe pentru fiecare zi este calculat automat în partea de jos a tabelului în rândul Total."]
[]
[null,"CUM ADAUG MAI MULȚI ELEVI LA O ÎNREGISTRARE LUNARĂ A PREZENȚEI?"]
[null,null,"Foile de înregistrări lunare de prezență și Lista elevi sunt tabele Excel. Pentru a adăuga rânduri noi la un tabel Excel, alegeți una dintre următoarele variante:"]
[{"$nulls":3},"● ","Dacă tabelul nu are un rând Total, începeți să tastați sub tabel, iar acesta se va extinde automat atunci când apăsați tastele Enter sau Tab."]
[{"$nulls":3},"● ","Plasați indicatorul celulei în ultima celulă de deasupra rândului Total, cum ar fi celula Zile de absență pentru ultimul elev, apoi apăsați tasta Tab."]
[{"$nulls":3},"● ","Faceți clic dreapta în tabel, iar în meniul pop-up, indicați spre Inserare, apoi faceți clic pe Rânduri tabel deasupra sau Rânduri tabel dedesubt. "]
[{"$nulls":3},"● ","În colțul din dreapta jos al tabelului, plasați mouse-ul pe ghidajul de redimensionare a tabelului și glisați în jos pentru a mări numărul de rânduri disponibile."]
[]
[null,"POT VIZUALIZA PREZENȚA UNUI ELEV PENTRU ÎNTREGUL AN ȘCOLAR?"]
[null,null,"Ultima foaie din acest registru de lucru, Raport prezență elev, urmărește prezența din an până la zi. Pentru a vizualiza un raport pentru un anumit elev, faceți clic în celula de sub ID elev, apoi selectați un ID din lista verticală. Informațiile introduse anterior în foaia Listă elev pentru elevul selectat se vor afișa automat. Rețineți că prima dată când utilizați Raportul prezență elevi trebuie să introduceți Școala, Clasa, Profesorul și Sala. Aceste informații nu se modifică dacă selectați alt elev. "]

{"sheet":"Listă elevi","index":1,"n_rows":8,"n_cols":19,"rows_kept":8}
["LISTĂ ELEVI"]
[]
[null,"ID elev","Prenume elev","Nume elev","Sex","Data nașterii","Părinte sau tutore 1","Relație Părinte/Tutore 1","Număr de telefon birou Părinte/Tutore 1","Număr de telefon acasă Părinte/Tutore 1","Părinte/Tutore 2","Relație Părinte/Tutore 2","Număr de telefon birou Părinte/Tutore 2","Număr de telefon acasă Părinte/Tutore 2","Contact urgențe","Relație de contact urgențe","Număr de telefon birou pentru contact urgențe","Număr de telefon acasă pentru contact urgențe","Nume complet elev"]
[null,"S001","David","Alexander","M","1997-03-28","Michelle","Alexander",1235550134,2345550134,"Michael Alexander","Tată",1235550134,2345550134,"Reed Koch","Bunic",7895550189,7895550134,{"$f":"ListăElevi[[#This Row],[Prenume elev]]&\" \" &ListăElevi[[#This Row],[Nume elev]]","v":"David Alexander"}]
[null,"S002","Elev",2,{"$nulls":14},{"$f":"ListăElevi[[#This Row],[Prenume elev]]&\" \" &ListăElevi[[#This Row],[Nume elev]]","v":"Elev 2"}]
[null,"S003","Elev",3,{"$nulls":14},{"$f":"ListăElevi[[#This Row],[Prenume elev]]&\" \" &ListăElevi[[#This Row],[Nume elev]]","v":"Elev 3"}]
[null,"S004","Elev",4,{"$nulls":14},{"$f":"ListăElevi[[#This Row],[Prenume elev]]&\" \" &ListăElevi[[#This Row],[Nume elev]]","v":"Elev 4"}]
[null,"S005","Elev",5,{"$nulls":14},{"$f":"ListăElevi[[#This Row],[Prenume elev]]&\" \" &ListăElevi[[#This Row],[Nume elev]]","v":"Elev 5"}]

{"sheet":"August","index":2,"n_rows":12,"n_cols":39,"rows_kept":12,"merged":[[4,34,4,38]]}
["CARNET DE PREZENȚE ELEV",{"$nulls":36},"Anul școlar începe:",2012]
[]
[null,null,"CHEIE CULORI","Î","Întârziat",null,null,"M","Motivat",null,null,"N","Nemotivat",null,null,"P","Prezent",null,null,"Nu","Nu a fost la școală"]
[]
[null,{"$f":"DATE(AnCalendar,8,1)","v":"2012-08-01"},null,{"$f":"TEXT(WEEKDAY(DATE(AnCalendar,8,1),1),\"aaa\")","v":"Mi"},{"$f":"TEXT(WEEKDAY(DATE(AnCalendar,8,2),1),\"aaa\")","v":"J"},{"$f":"TEXT(WEEKDAY(DATE(AnCalendar,8,3),1),\"aaa\")","v":"V"},{"$f":"TEXT(WEEKDAY(DATE(AnCalendar,8,4),1),\"aaa\")","v":"S"},{"$f":"TEXT(WEEKDAY(DATE(AnCalendar,8,5),1),\"aaa\")","v":"D"},{"$f":"TEXT(WEEKDAY(DATE(AnCalendar,8,6),1),\"aaa\")","v":"L"},{"$f":"TEXT(WEEKDAY(DATE(AnCalendar,8,7),1),\"aaa\")","v":"Ma"},{"$f":"TEXT(WEEKDAY(DATE(AnCalendar,8,8),1),\"aaa\")","v":"Mi"},{"$f":"TEXT(WEEKDAY(DATE(AnCalendar,8,9),1),\"aaa\")","v":"J"},{"$f":"TEXT(WEEKDAY(DATE(AnCalendar,8,10),1),\"aaa\")","v":"V"},{"$f":"TEXT(WEEKDAY(DATE(AnCalendar,8,11),1),\"aaa\")","v":"S"},{"$f":"TEXT(WEEKDAY(DATE(AnCalendar,8,12),1),\"aaa\")","v":"D"},{"$f":"TEXT(WEEKDAY(DATE(AnCalendar,8,13),1),\"aaa\")","v":"L"},{"$f":"TEXT(WEEKDAY(DATE(AnCalendar,8,14),1),\"aaa\")","v":"Ma"},{"$f":"TEXT(WEEKDAY(DATE(AnCalendar,8,15),1),\"aaa\")","v":"Mi"},{"$f":"TEXT(WEEKDAY(DATE(AnCalendar,8,16),1),\"aaa\")","v":"J"},{"$f":"TEXT(WEEKDAY(DATE(AnCalendar,8,17),1),\"aaa\")","v":"V"},{"$f":"TEXT(WEEKDAY(DATE(AnCalendar,8,18),1),\"aaa\")","v":"S"},{"$f":"TEXT(WEEKDAY(DATE(AnCalendar,8,19),1),\"aaa\")","v":"D"},{"$f":"TEXT(WEEKDAY(DATE(AnCalendar,8,20),1),\"aaa\")","v":"L"},{"$f":"TEXT(WEEKDAY(DATE(AnCalendar,8,21),1),\"aaa\")","v":"Ma"},{"$f":"TEXT(WEEKDAY(DATE(AnCalendar,8,22),1),\"aaa\")","v":"Mi"},{"$f":"TEXT(WEEKDAY(DATE(AnCalendar,8,23),1),\"aaa\")","v":"J"},{"$f":"TEXT(WEEKDAY(DATE(AnCalendar,8,24),1),\"aaa\")","v":"V"},{"$f":"TEXT(WEEKDAY(DATE(AnCalendar,8,25),1),\"aaa\")","v":"S"},{"$f":"TEXT(WEEKDAY(DATE(AnCalendar,8,26),1),\"aaa\")","v":"D"},{"$f":"TEXT(WEEKDAY(DATE(AnCalendar,8,27),1),\"aaa\")","v":"L"},{"$f":"TEXT(WEEKDAY(DATE(AnCalendar,8,28),1),\"aaa\")","v":"Ma"},{"$f":"TEXT(WEEKDAY(DATE(AnCalendar,8,29),1),\"aaa\")","v":"Mi"},{"$f":"TEXT(WEEKDAY(DATE(AnCalendar,8,30),1),\"aaa\")","v":"J"},{"$f":"TEXT(WEEKDAY(DATE(AnCalendar,8,31),1),\"aaa\")","v":"V"},"Total"]
[null,"ID elev","Nume elev","1","2","3","4","5","6","7","8","9","10","11","12","13","14","15","16","17","18","19","20","21","22","23","24","25","26","27","28","29","30","31","Î","M","N","P","Zile de absență"]
[null,"S001",{"$f":"IFERROR(VLOOKUP(PrezențăAugust[[#This Row],[ID elev]],ListăElevi[],18,FALSE),\"\")","v":"David Alexander"},"P","P","Î","Î","P","Nu","Nu","P","P","M","P","P","Nu","Nu","P","P","P","P","P","Nu","Nu","P","P","P","P","P","Nu","Nu","P","P","P",{"$f":"COUNTIF(PrezențăAugust[[#This Row],[1]:[31]],Cod_1)","v":2},{"$f":"COUNTIF(PrezențăAugust[[#This Row],[1]:[31]],Cod_2)","v":1},{"$f":"COUNTIF(PrezențăAugust[[#This Row],[1]:[31]],Cod_3)","v":0},{"$f":"COUNTIF(PrezențăAugust[[#This Row],[1]:[31]],Cod_4)","v":20},{"$f":"SUM(PrezențăAugust[[#This Row],[M]:[N]])","v":1}]
[null,"S002",{"$f":"IFERROR(VLOOKUP(PrezențăAugust[[#This Row],[ID elev]],ListăElevi[],18,FALSE),\"\")","v":"Elev 2"},"P","N","P","P","P","Nu","Nu","P","M","M","M","M","Nu","Nu","P","P","P","P","P","Nu","Nu","P","P","P","Î","Î","Nu","Nu","P","P","P",{"$f":"COUNTIF(PrezențăAugust[[#This Row],[1]:[31]],Cod_1)","v":2},{"$f":"COUNTIF(PrezențăAugust[[#This Row],[1]:[31]],Cod_2)","v":4},{"$f":"COUNTIF(PrezențăAugust[[#This Row],[1]:[31]],Cod_3)","v":1},{"$f":"COUNTIF(PrezențăAugust[[#This Row],[1]:[31]],Cod_4)","v":16},{"$f":"SUM(PrezențăAugust[[#This Row],[M]:[N]])","v":5}]
[null,"S003",{"$f":"IFERROR(VLOOKUP(PrezențăAugust[[#This Row],[ID elev]],ListăElevi[],18,FALSE),\"\")","v":"Elev 3"},"P","M","P","P","P","Nu","Nu","P","P","N","P","P","Nu","Nu","P","P","P","P","P","Nu","Nu","P","P","M","M","P","Nu","Nu","P","P","P",{"$f":"COUNTIF(PrezențăAugust[[#This Row],[1]:[31]],Cod_1)","v":0},{"$f":"COUNTIF(PrezențăAugust[[#This Row],[1]:[31]],Cod_2)","v":3},{"$f":"COUNTIF(PrezențăAugust[[#This Row],[1]:[31]],Cod_3)","v":1},{"$f":"COUNTIF(PrezențăAugust[[#This Row],[1]:[31]],Cod_4)","v":19},{"$f":"SUM(PrezențăAugust[[#This Row],[M]:[N]])","v":4}]
[null,"S004",{"$f":"IFERROR(VLOOKUP(PrezențăAugust[[#This Row],[ID elev]],ListăElevi[],18,FALSE),\"\")","v":"Elev 4"},"P","P","P","P","P","Nu","Nu","P","P","P","P","P","Nu","Nu","P","P","P","P","P","Nu","Nu","P","N","P","P","M","Nu","Nu","P","M","P",{"$f":"COUNTIF(PrezențăAugust[[#This Row],[1]:[31]],Cod_1)","v":0},{"$f":"COUNTIF(PrezențăAugust[[#This Row],[1]:[31]],Cod_2)","v":2},{"$f":"COUNTIF(PrezențăAugust[[#This Row],[1]:[31]],Cod_3)","v":1},{"$f":"COUNTIF(PrezențăAugust[[#This Row],[1]:[31]],Cod_4)","v":20},{"$f":"SUM(PrezențăAugust[[#This Row],[M]:[N]])","v":3}]
[null,"S005",{"$f":"IFERROR(VLOOKUP(PrezențăAugust[[#This Row],[ID elev]],ListăElevi[],18,FALSE),\"\")","v":"Elev 5"},"P","P","P","P","P","Nu","Nu","P","P","P","P","P","Nu","Nu","P","P","P","P","P","Nu","Nu","P","P","P","P","P","Nu","Nu","P","P","P",{"$f":"COUNTIF(PrezențăAugust[[#This Row],[1]:[31]],Cod_1)","v":0},{"$f":"COUNTIF(PrezențăAugust[[#This Row],[1]:[31]],Cod_2)","v":0},{"$f":"COUNTIF(PrezențăAugust[[#This Row],[1]:[31]],Cod_3)","v":0},{"$f":"COUNTIF(PrezențăAugust[[#This Row],[1]:[31]],Cod_4)","v":23},{"$f":"SUM(PrezențăAugust[[#This Row],[M]:[N]])","v":0}]
[null,null,"Numărul total de zile de absență",{"$f":"COUNTIF(PrezențăAugust[1],\"N\")+COUNTIF(PrezențăAugust[1],\"M\")","v":0},{"$f":"COUNTIF(PrezențăAugust[2],\"N\")+COUNTIF(PrezențăAugust[2],\"M\")","v":2},{"$f":"COUNTIF(PrezențăAugust[3],\"N\")+COUNTIF(PrezențăAugust[3],\"M\")","v":0},{"$f":"COUNTIF(PrezențăAugust[4],\"N\")+COUNTIF(PrezențăAugust[4],\"M\")","v":0},{"$f":"COUNTIF(PrezențăAugust[5],\"N\")+COUNTIF(PrezențăAugust[5],\"M\")","v":0},{"$f":"COUNTIF(PrezențăAugust[6],\"N\")+COUNTIF(PrezențăAugust[6],\"M\")","v":0},{"$f":"COUNTIF(PrezențăAugust[7],\"N\")+COUNTIF(PrezențăAugust[7],\"M\")","v":0},{"$f":"COUNTIF(PrezențăAugust[8],\"N\")+COUNTIF(PrezențăAugust[8],\"M\")","v":0},{"$f":"COUNTIF(PrezențăAugust[9],\"N\")+COUNTIF(PrezențăAugust[9],\"M\")","v":1},{"$f":"COUNTIF(PrezențăAugust[10],\"N\")+COUNTIF(PrezențăAugust[10],\"M\")","v":3},{"$f":"COUNTIF(PrezențăAugust[11],\"N\")+COUNTIF(PrezențăAugust[11],\"M\")","v":1},{"$f":"COUNTIF(PrezențăAugust[12],\"N\")+COUNTIF(PrezențăAugust[12],\"M\")","v":1},{"$f":"COUNTIF(PrezențăAugust[13],\"N\")+COUNTIF(PrezențăAugust[13],\"M\")","v":0},{"$f":"COUNTIF(PrezențăAugust[14],\"N\")+COUNTIF(PrezențăAugust[14],\"M\")","v":0},{"$f":"COUNTIF(PrezențăAugust[15],\"N\")+COUNTIF(PrezențăAugust[15],\"M\")","v":0},{"$f":"COUNTIF(PrezențăAugust[16],\"N\")+COUNTIF(PrezențăAugust[16],\"M\")","v":0},{"$f":"COUNTIF(PrezențăAugust[17],\"N\")+COUNTIF(PrezențăAugust[17],\"M\")","v":0},{"$f":"COUNTIF(PrezențăAugust[18],\"N\")+COUNTIF(PrezențăAugust[18],\"M\")","v":0},{"$f":"COUNTIF(PrezențăAugust[19],\"N\")+COUNTIF(PrezențăAugust[19],\"M\")","v":0},{"$f":"COUNTIF(PrezențăAugust[20],\"N\")+COUNTIF(PrezențăAugust[20],\"M\")","v":0},{"$f":"COUNTIF(PrezențăAugust[21],\"N\")+COUNTIF(PrezențăAugust[21],\"M\")","v":0},{"$f":"COUNTIF(PrezențăAugust[22],\"N\")+COUNTIF(PrezențăAugust[22],\"M\")","v":0},{"$f":"COUNTIF(PrezențăAugust[23],\"N\")+COUNTIF(PrezențăAugust[23],\"M\")","v":1},{"$f":"COUNTIF(PrezențăAugust[24],\"N\")+COUNTIF(PrezențăAugust[24],\"M\")","v":1},{"$f":"COUNTIF(PrezențăAugust[25],\"N\")+COUNTIF(PrezențăAugust[25],\"M\")","v":1},{"$f":"COUNTIF(PrezențăAugust[26],\"N\")+COUNTIF(PrezențăAugust[26],\"M\")","v":1},{"$f":"COUNTIF(PrezențăAugust[27],\"N\")+COUNTIF(PrezențăAugust[27],\"M\")","v":0},{"$f":"COUNTIF(PrezențăAugust[28],\"N\")+COUNTIF(PrezențăAugust[28],\"M\")","v":0},{"$f":"COUNTIF(PrezențăAugust[29],\"N\")+COUNTIF(PrezențăAugust[29],\"M\")","v":0},{"$f":"COUNTIF(PrezențăAugust[30],\"N\")+COUNTIF(PrezențăAugust[30],\"M\")","v":1},{"$f":"COUNTIF(PrezențăAugust[31],\"N\")+COUNTIF(PrezențăAugust[31],\"M\")","v":0},{"$f":"SUBTOTAL(109,PrezențăAugust[Î])","v":4},{"$f":"SUBTOTAL(109,PrezențăAugust[M])","v":10},{"$f":"SUBTOTAL(109,PrezențăAugust[P])","v":98},{"$f":"SUBTOTAL(109,PrezențăAugust[P])","v":98},{"$f":"SUBTOTAL(109,PrezențăAugust[Zile de absență])","v":13}]

{"sheet":"Septembrie","index":3,"n_rows":12,"n_cols":39,"rows_kept":12,"merged":[[4,34,4,38]]}
["CARNET DE PREZENȚE ELEV",{"$nulls":36},"Anul școlar începe:",{"$f":"AnCalendar","v":2012}]
[]
[null,null,{"$f":"CheieCuloareText","v":"CHEIE CULORI"},{"$f":"Cod_1","v":"Î"},{"$f":"Cod1Text","v":"Întârziat"},null,null,{"$f":"Cod_2","v":"M"},{"$f":"Cod2Text","v":"Motivat"},null,null,{"$f":"Cod_3","v":"N"},{"$f":"Cod3Text","v":"Nemotivat"},null,null,{"$f":"Cod_4","v":"P"},{"$f":"Cod4Text","v":"Prezent"},null,null,{"$f":"Cod_5","v":"Nu"},{"$f":"Cod5Text","v":"Nu a fost la școală"}]
[]
[null,{"$f":"DATE(AnCalendar,9,1)","v":"2012-09-01"},null,{"$f":"TEXT(WEEKDAY(DATE(AnCalendar,9,1),1),\"aaa\")","v":"S"},{"$f":"TEXT(WEEKDAY(DATE(AnCalendar,9,2),1),\"aaa\")","v":"D"},{"$f":"TEXT(WEEKDAY(DATE(AnCalendar,9,3),1),\"aaa\")","v":"L"},{"$f":"TEXT(WEEKDAY(DATE(AnCalendar,9,4),1),\"aaa\")","v":"Ma"},{"$f":"TEXT(WEEKDAY(DATE(AnCalendar,9,5),1),\"aaa\")","v":"Mi"},{"$f":"TEXT(WEEKDAY(DATE(AnCalendar,9,6),1),\"aaa\")","v":"J"},{"$f":"TEXT(WEEKDAY(DATE(AnCalendar,9,7),1),\"aaa\")","v":"V"},{"$f":"TEXT(WEEKDAY(DATE(AnCalendar,9,8),1),\"aaa\")","v":"S"},{"$f":"TEXT(WEEKDAY(DATE(AnCalendar,9,9),1),\"aaa\")","v":"D"},{"$f":"TEXT(WEEKDAY(DATE(AnCalendar,9,10),1),\"aaa\")","v":"L"},{"$f":"TEXT(WEEKDAY(DATE(AnCalendar,9,11),1),\"aaa\")","v":"Ma"},{"$f":"TEXT(WEEKDAY(DATE(AnCalendar,9,12),1),\"aaa\")","v":"Mi"},{"$f":"TEXT(WEEKDAY(DATE(AnCalendar,9,13),1),\"aaa\")","v":"J"},{"$f":"TEXT(WEEKDAY(DATE(AnCalendar,9,14),1),\"aaa\")","v":"V"},{"$f":"TEXT(WEEKDAY(DATE(AnCalendar,9,15),1),\"aaa\")","v":"S"},{"$f":"TEXT(WEEKDAY(DATE(AnCalendar,9,16),1),\"aaa\")","v":"D"},{"$f":"TEXT(WEEKDAY(DATE(AnCalendar,9,17),1),\"aaa\")","v":"L"},{"$f":"TEXT(WEEKDAY(DATE(AnCalendar,9,18),1),\"aaa\")","v":"Ma"},{"$f":"TEXT(WEEKDAY(DATE(AnCalendar,9,19),1),\"aaa\")","v":"Mi"},{"$f":"TEXT(WEEKDAY(DATE(AnCalendar,9,20),1),\"aaa\")","v":"J"},{"$f":"TEXT(WEEKDAY(DATE(AnCalendar,9,21),1),\"aaa\")","v":"V"},{"$f":"TEXT(WEEKDAY(DATE(AnCalendar,9,22),1),\"aaa\")","v":"S"},{"$f":"TEXT(WEEKDAY(DATE(AnCalendar,9,23),1),\"aaa\")","v":"D"},{"$f":"TEXT(WEEKDAY(DATE(AnCalendar,9,24),1),\"aaa\")","v":"L"},{"$f":"TEXT(WEEKDAY(DATE(AnCalendar,9,25),1),\"aaa\")","v":"Ma"},{"$f":"TEXT(WEEKDAY(DATE(AnCalendar,9,26),1),\"aaa\")","v":"Mi"},{"$f":"TEXT(WEEKDAY(DATE(AnCalendar,9,27),1),\"aaa\")","v":"J"},{"$f":"TEXT(WEEKDAY(DATE(AnCalendar,9,28),1),\"aaa\")","v":"V"},{"$f":"TEXT(WEEKDAY(DATE(AnCalendar,9,29),1),\"aaa\")","v":"S"},{"$f":"TEXT(WEEKDAY(DATE(AnCalendar,9,30),1),\"aaa\")","v":"D"},null,"Total"]
[null,"ID elev","Nume elev","1","2","3","4","5","6","7","8","9","10","11","12","13","14","15","16","17","18","19","20","21","22","23","24","25","26","27","28","29","30"," ","Î","M","N","P","Zile de absență"]
[null,null,{"$f":"IFERROR(VLOOKUP(PrezențăSeptembrie[[#This Row],[ID elev]],ListăElevi[],18,FALSE),\"\")","v":""},{"$nulls":31},{"$f":"COUNTIF(PrezențăSeptembrie[[#This Row],[1]:[ ]],Cod_1)","v":0},{"$f":"COUNTIF(PrezențăSeptembrie[[#This Row],[1]:[ ]],Cod_2)","v":0},{"$f":"COUNTIF(PrezențăSeptembrie[[#This Row],[1]:[ ]],Cod_3)","v":0},{"$f":"COUNTIF(PrezențăSeptembrie[[#This Row],[1]:[ ]],Cod_4)","v":0},{"$f":"SUM(PrezențăSeptembrie[[#This Row],[M]:[N]])","v":0}]
[null,null,{"$f":"IFERROR(VLOOKUP(PrezențăSeptembrie[[#This Row],[ID elev]],ListăElevi[],18,FALSE),\"\")","v":""},{"$nulls":31},{"$f":"COUNTIF(PrezențăSeptembrie[[#This Row],[1]:[ ]],Cod_1)","v":0},{"$f":"COUNTIF(PrezențăSeptembrie[[#This Row],[1]:[ ]],Cod_2)","v":0},{"$f":"COUNTIF(PrezențăSeptembrie[[#This Row],[1]:[ ]],Cod_3)","v":0},{"$f":"COUNTIF(PrezențăSeptembrie[[#This Row],[1]:[ ]],Cod_4)","v":0},{"$f":"SUM(PrezențăSeptembrie[[#This Row],[M]:[N]])","v":0}]
[null,null,{"$f":"IFERROR(VLOOKUP(PrezențăSeptembrie[[#This Row],[ID elev]],ListăElevi[],18,FALSE),\"\")","v":""},{"$nulls":31},{"$f":"COUNTIF(PrezențăSeptembrie[[#This Row],[1]:[ ]],Cod_1)","v":0},{"$f":"COUNTIF(PrezențăSeptembrie[[#This Row],[1]:[ ]],Cod_2)","v":0},{"$f":"COUNTIF(PrezențăSeptembrie[[#This Row],[1]:[ ]],Cod_3)","v":0},{"$f":"COUNTIF(PrezențăSeptembrie[[#This Row],[1]:[ ]],Cod_4)","v":0},{"$f":"SUM(PrezențăSeptembrie[[#This Row],[M]:[N]])","v":0}]
[null,null,{"$f":"IFERROR(VLOOKUP(PrezențăSeptembrie[[#This Row],[ID elev]],ListăElevi[],18,FALSE),\"\")","v":""},{"$nulls":31},{"$f":"COUNTIF(PrezențăSeptembrie[[#This Row],[1]:[ ]],Cod_1)","v":0},{"$f":"COUNTIF(PrezențăSeptembrie[[#This Row],[1]:[ ]],Cod_2)","v":0},{"$f":"COUNTIF(PrezențăSeptembrie[[#This Row],[1]:[ ]],Cod_3)","v":0},{"$f":"COUNTIF(PrezențăSeptembrie[[#This Row],[1]:[ ]],Cod_4)","v":0},{"$f":"SUM(PrezențăSeptembrie[[#This Row],[M]:[N]])","v":0}]
[null,null,{"$f":"IFERROR(VLOOKUP(PrezențăSeptembrie[[#This Row],[ID elev]],ListăElevi[],18,FALSE),\"\")","v":""},{"$nulls":31},{"$f":"COUNTIF(PrezențăSeptembrie[[#This Row],[1]:[ ]],Cod_1)","v":0},{"$f":"COUNTIF(PrezențăSeptembrie[[#This Row],[1]:[ ]],Cod_2)","v":0},{"$f":"COUNTIF(PrezențăSeptembrie[[#This Row],[1]:[ ]],Cod_3)","v":0},{"$f":"COUNTIF(PrezențăSeptembrie[[#This Row],[1]:[ ]],Cod_4)","v":0},{"$f":"SUM(PrezențăSeptembrie[[#This Row],[M]:[N]])","v":0}]
[null,null,"Numărul total de zile de absență",{"$f":"COUNTIF(PrezențăSeptembrie[1],\"N\")+COUNTIF(PrezențăSeptembrie[1],\"M\")","v":0},{"$f":"COUNTIF(PrezențăSeptembrie[2],\"N\")+COUNTIF(PrezențăSeptembrie[2],\"M\")","v":0},{"$f":"COUNTIF(PrezențăSeptembrie[3],\"N\")+COUNTIF(PrezențăSeptembrie[3],\"M\")","v":0},{"$f":"COUNTIF(PrezențăSeptembrie[4],\"N\")+COUNTIF(PrezențăSeptembrie[4],\"M\")","v":0},{"$f":"COUNTIF(PrezențăSeptembrie[5],\"N\")+COUNTIF(PrezențăSeptembrie[5],\"M\")","v":0},{"$f":"COUNTIF(PrezențăSeptembrie[6],\"N\")+COUNTIF(PrezențăSeptembrie[6],\"M\")","v":0},{"$f":"COUNTIF(PrezențăSeptembrie[7],\"N\")+COUNTIF(PrezențăSeptembrie[7],\"M\")","v":0},{"$f":"COUNTIF(PrezențăSeptembrie[8],\"N\")+COUNTIF(PrezențăSeptembrie[8],\"M\")","v":0},{"$f":"COUNTIF(PrezențăSeptembrie[9],\"N\")+COUNTIF(PrezențăSeptembrie[9],\"M\")","v":0},{"$f":"COUNTIF(PrezențăSeptembrie[10],\"N\")+COUNTIF(PrezențăSeptembrie[10],\"M\")","v":0},{"$f":"COUNTIF(PrezențăSeptembrie[11],\"N\")+COUNTIF(PrezențăSeptembrie[11],\"M\")","v":0},{"$f":"COUNTIF(PrezențăSeptembrie[12],\"N\")+COUNTIF(PrezențăSeptembrie[12],\"M\")","v":0},{"$f":"COUNTIF(PrezențăSeptembrie[13],\"N\")+COUNTIF(PrezențăSeptembrie[13],\"M\")","v":0},{"$f":"COUNTIF(PrezențăSeptembrie[14],\"N\")+COUNTIF(PrezențăSeptembrie[14],\"M\")","v":0},{"$f":"COUNTIF(PrezențăSeptembrie[15],\"N\")+COUNTIF(PrezențăSeptembrie[15],\"M\")","v":0},{"$f":"COUNTIF(PrezențăSeptembrie[16],\"N\")+COUNTIF(PrezențăSeptembrie[16],\"M\")","v":0},{"$f":"COUNTIF(PrezențăSeptembrie[17],\"N\")+COUNTIF(PrezențăSeptembrie[17],\"M\")","v":0},{"$f":"COUNTIF(PrezențăSeptembrie[18],\"N\")+COUNTIF(PrezențăSeptembrie[18],\"M\")","v":0},{"$f":"COUNTIF(PrezențăSeptembrie[19],\"N\")+COUNTIF(PrezențăSeptembrie[19],\"M\")","v":0},{"$f":"COUNTIF(PrezențăSeptembrie[20],\"N\")+COUNTIF(PrezențăSeptembrie[20],\"M\")","v":0},{"$f":"COUNTIF(PrezențăSeptembrie[21],\"N\")+COUNTIF(PrezențăSeptembrie[21],\"M\")","v":0},{"$f":"COUNTIF(PrezențăSeptembrie[22],\"N\")+COUNTIF(PrezențăSeptembrie[22],\"M\")","v":0},{"$f":"COUNTIF(PrezențăSeptembrie[23],\"N\")+COUNTIF(PrezențăSeptembrie[23],\"M\")","v":0},{"$f":"COUNTIF(PrezențăSeptembrie[24],\"N\")+COUNTIF(PrezențăSeptembrie[24],\"M\")","v":0},{"$f":"COUNTIF(PrezențăSeptembrie[25],\"N\")+COUNTIF(PrezențăSeptembrie[25],\"M\")","v":0},{"$f":"COUNTIF(PrezențăSeptembrie[26],\"N\")+COUNTIF(PrezențăSeptembrie[26],\"M\")","v":0},{"$f":"COUNTIF(PrezențăSeptembrie[27],\"N\")+COUNTIF(PrezențăSeptembrie[27],\"M\")","v":0},{"$f":"COUNTIF(PrezențăSeptembrie[28],\"N\")+COUNTIF(PrezențăSeptembrie[28],\"M\")","v":0},{"$f":"COUNTIF(PrezențăSeptembrie[29],\"N\")+COUNTIF(PrezențăSeptembrie[29],\"M\")","v":0},{"$f":"COUNTIF(PrezențăSeptembrie[30],\"N\")+COUNTIF(PrezențăSeptembrie[30],\"M\")","v":0},{"$f":"COUNTIF(PrezențăSeptembrie[[ ]],\"N\")+COUNTIF(PrezențăSeptembrie[[ ]],\"M\")","v":0},{"$f":"SUBTOTAL(109,PrezențăSeptembrie[Î])","v":0},{"$f":"SUBTOTAL(109,PrezențăSeptembrie[M])","v":0},{"$f":"SUBTOTAL(109,PrezențăSeptembrie[N])","v":0},{"$f":"SUBTOTAL(109,PrezențăSeptembrie[P])","v":0},{"$f":"SUBTOTAL(109,PrezențăSeptembrie[Zile de absență])","v":0}]

{"sheet":"Octombrie","index":4,"n_rows":12,"n_cols":39,"rows_kept":12,"merged":[[4,34,4,38]]}
["CARNET DE PREZENȚE ELEV",{"$nulls":36},"Anul școlar începe:",{"$f":"AnCalendar","v":2012}]
[]
[null,null,{"$f":"CheieCuloareText","v":"CHEIE CULORI"},{"$f":"Cod_1","v":"Î"},{"$f":"Cod1Text","v":"Întârziat"},null,null,{"$f":"Cod_2","v":"M"},{"$f":"Cod2Text","v":"Motivat"},null,null,{"$f":"Cod_3","v":"N"},{"$f":"Cod3Text","v":"Nemotivat"},null,null,{"$f":"Cod_4","v":"P"},{"$f":"Cod4Text","v":"Prezent"},null,null,{"$f":"Cod_5","v":"Nu"},{"$f":"Cod5Text","v":"Nu a fost la școală"}]
[]
[null,{"$f":"DATE(AnCalendar,10,1)","v":"2012-10-01"},null,{"$f":"TEXT(WEEKDAY(DATE(AnCalendar,10,1),1),\"aaa\")","v":"L"},{"$f":"TEXT(WEEKDAY(DATE(AnCalendar,10,2),1),\"aaa\")","v":"Ma"},{"$f":"TEXT(WEEKDAY(DATE(AnCalendar,10,3),1),\"aaa\")","v":"Mi"},{"$f":"TEXT(WEEKDAY(DATE(AnCalendar,10,4),1),\"aaa\")","v":"J"},{"$f":"TEXT(WEEKDAY(DATE(AnCalendar,10,5),1),\"aaa\")","v":"V"},{"$f":"TEXT(WEEKDAY(DATE(AnCalendar,10,6),1),\"aaa\")","v":"S"},{"$f":"TEXT(WEEKDAY(DATE(AnCalendar,10,7),1),\"aaa\")","v":"D"},{"$f":"TEXT(WEEKDAY(DATE(AnCalendar,10,8),1),\"aaa\")","v":"L"},{"$f":"TEXT(WEEKDAY(DATE(AnCalendar,10,9),1),\"aaa\")","v":"Ma"},{"$f":"TEXT(WEEKDAY(DATE(AnCalendar,10,10),1),\"aaa\")","v":"Mi"},{"$f":"TEXT(WEEKDAY(DATE(AnCalendar,10,11),1),\"aaa\")","v":"J"},{"$f":"TEXT(WEEKDAY(DATE(AnCalendar,10,12),1),\"aaa\")","v":"V"},{"$f":"TEXT(WEEKDAY(DATE(AnCalendar,10,13),1),\"aaa\")","v":"S"},{"$f":"TEXT(WEEKDAY(DATE(AnCalendar,10,14),1),\"aaa\")","v":"D"},{"$f":"TEXT(WEEKDAY(DATE(AnCalendar,10,15),1),\"aaa\")","v":"L"},{"$f":"TEXT(WEEKDAY(DATE(AnCalendar,10,16),1),\"aaa\")","v":"Ma"},{"$f":"TEXT(WEEKDAY(DATE(AnCalendar,10,17),1),\"aaa\")","v":"Mi"},{"$f":"TEXT(WEEKDAY(DATE(AnCalendar,10,18),1),\"aaa\")","v":"J"},{"$f":"TEXT(WEEKDAY(DATE(AnCalendar,10,19),1),\"aaa\")","v":"V"},{"$f":"TEXT(WEEKDAY(DATE(AnCalendar,10,20),1),\"aaa\")","v":"S"},{"$f":"TEXT(WEEKDAY(DATE(AnCalendar,10,21),1),\"aaa\")","v":"D"},{"$f":"TEXT(WEEKDAY(DATE(AnCalendar,10,22),1),\"aaa\")","v":"L"},{"$f":"TEXT(WEEKDAY(DATE(AnCalendar,10,23),1),\"aaa\")","v":"Ma"},{"$f":"TEXT(WEEKDAY(DATE(AnCalendar,10,24),1),\"aaa\")","v":"Mi"},{"$f":"TEXT(WEEKDAY(DATE(AnCalendar,10,25),1),\"aaa\")","v":"J"},{"$f":"TEXT(WEEKDAY(DATE(AnCalendar,10,26),1),\"aaa\")","v":"V"},{"$f":"TEXT(WEEKDAY(DATE(AnCalendar,10,27),1),\"aaa\")","v":"S"},{"$f":"TEXT(WEEKDAY(DATE(AnCalendar,10,28),1),\"aaa\")","v":"D"},{"$f":"TEXT(WEEKDAY(DATE(AnCalendar,10,29),1),\"aaa\")","v":"L"},{"$f":"TEXT(WEEKDAY(DATE(AnCalendar,10,30),1),\"aaa\")","v":"Ma"},{"$f":"TEXT(WEEKDAY(DATE(AnCalendar,10,31),1),\"aaa\")","v":"Mi"},"Total"]
[null,"ID elev","Nume elev","1","2","3","4","5","6","7","8","9","10","11","12","13","14","15","16","17","18","19","20","21","22","23","24","25","26","27","28","29","30","31","Î","M","N","P","Zile de absență"]
[null,null,{"$f":"IFERROR(VLOOKUP(PrezențăOctombrie[[#This Row],[ID elev]],ListăElevi[],18,FALSE),\"\")","v":""},{"$nulls":31},{"$f":"COUNTIF(PrezențăOctombrie[[#This Row],[1]:[31]],Cod_1)","v":0},{"$f":"COUNTIF(PrezențăOctombrie[[#This Row],[1]:[31]],Cod_2)","v":0},{"$f":"COUNTIF(PrezențăOctombrie[[#This Row],[1]:[31]],Cod_3)","v":0},{"$f":"COUNTIF(PrezențăOctombrie[[#This Row],[1]:[31]],Cod_4)","v":0},{"$f":"SUM(PrezențăOctombrie[[#This Row],[M]:[N]])","v":0}]
[null,null,{"$f":"IFERROR(VLOOKUP(PrezențăOctombrie[[#This Row],[ID elev]],ListăElevi[],18,FALSE),\"\")","v":""},{"$nulls":31},{"$f":"COUNTIF(PrezențăOctombrie[[#This Row],[1]:[31]],Cod_1)","v":0},{"$f":"COUNTIF(PrezențăOctombrie[[#This Row],[1]:[31]],Cod_2)","v":0},{"$f":"COUNTIF(PrezențăOctombrie[[#This Row],[1]:[31]],Cod_3)","v":0},{"$f":"COUNTIF(PrezențăOctombrie[[#This Row],[1]:[31]],Cod_4)","v":0},{"$f":"SUM(PrezențăOctombrie[[#This Row],[M]:[N]])","v":0}]
[null,null,{"$f":"IFERROR(VLOOKUP(PrezențăOctombrie[[#This Row],[ID elev]],ListăElevi[],18,FALSE),\"\")","v":""},{"$nulls":31},{"$f":"COUNTIF(PrezențăOctombrie[[#This Row],[1]:[31]],Cod_1)","v":0},{"$f":"COUNTIF(PrezențăOctombrie[[#This Row],[1]:[31]],Cod_2)","v":0},{"$f":"COUNTIF(PrezențăOctombrie[[#This Row],[1]:[31]],Cod_3)","v":0},{"$f":"COUNTIF(PrezențăOctombrie[[#This Row],[1]:[31]],Cod_4)","v":0},{"$f":"SUM(PrezențăOctombrie[[#This Row],[M]:[N]])","v":0}]
[null,null,{"$f":"IFERROR(VLOOKUP(PrezențăOctombrie[[#This Row],[ID elev]],ListăElevi[],18,FALSE),\"\")","v":""},{"$nulls":31},{"$f":"COUNTIF(PrezențăOctombrie[[#This Row],[1]:[31]],Cod_1)","v":0},{"$f":"COUNTIF(PrezențăOctombrie[[#This Row],[1]:[31]],Cod_2)","v":0},{"$f":"COUNTIF(PrezențăOctombrie[[#This Row],[1]:[31]],Cod_3)","v":0},{"$f":"COUNTIF(PrezențăOctombrie[[#This Row],[1]:[31]],Cod_4)","v":0},{"$f":"SUM(PrezențăOctombrie[[#This Row],[M]:[N]])","v":0}]
[null,null,{"$f":"IFERROR(VLOOKUP(PrezențăOctombrie[[#This Row],[ID elev]],ListăElevi[],18,FALSE),\"\")","v":""},{"$nulls":31},{"$f":"COUNTIF(PrezențăOctombrie[[#This Row],[1]:[31]],Cod_1)","v":0},{"$f":"COUNTIF(PrezențăOctombrie[[#This Row],[1]:[31]],Cod_2)","v":0},{"$f":"COUNTIF(PrezențăOctombrie[[#This Row],[1]:[31]],Cod_3)","v":0},{"$f":"COUNTIF(PrezențăOctombrie[[#This Row],[1]:[31]],Cod_4)","v":0},{"$f":"SUM(PrezențăOctombrie[[#This Row],[M]:[N]])","v":0}]
[null,null,"Numărul total de zile de absență",{"$f":"COUNTIF(PrezențăOctombrie[1],\"N\")+COUNTIF(PrezențăOctombrie[1],\"M\")","v":0},{"$f":"COUNTIF(PrezențăOctombrie[2],\"N\")+COUNTIF(PrezențăOctombrie[2],\"M\")","v":0},{"$f":"COUNTIF(PrezențăOctombrie[3],\"N\")+COUNTIF(PrezențăOctombrie[3],\"M\")","v":0},{"$f":"COUNTIF(PrezențăOctombrie[4],\"N\")+COUNTIF(PrezențăOctombrie[4],\"M\")","v":0},{"$f":"COUNTIF(PrezențăOctombrie[5],\"N\")+COUNTIF(PrezențăOctombrie[5],\"M\")","v":0},{"$f":"COUNTIF(PrezențăOctombrie[6],\"N\")+COUNTIF(PrezențăOctombrie[6],\"M\")","v":0},{"$f":"COUNTIF(PrezențăOctombrie[7],\"N\")+COUNTIF(PrezențăOctombrie[7],\"M\")","v":0},{"$f":"COUNTIF(PrezențăOctombrie[8],\"N\")+COUNTIF(PrezențăOctombrie[8],\"M\")","v":0},{"$f":"COUNTIF(PrezențăOctombrie[9],\"N\")+COUNTIF(PrezențăOctombrie[9],\"M\")","v":0},{"$f":"COUNTIF(PrezențăOctombrie[10],\"N\")+COUNTIF(PrezențăOctombrie[10],\"M\")","v":0},{"$f":"COUNTIF(PrezențăOctombrie[11],\"N\")+COUNTIF(PrezențăOctombrie[11],\"M\")","v":0},{"$f":"COUNTIF(PrezențăOctombrie[12],\"N\")+COUNTIF(PrezențăOctombrie[12],\"M\")","v":0},{"$f":"COUNTIF(PrezențăOctombrie[13],\"N\")+COUNTIF(PrezențăOctombrie[13],\"M\")","v":0},{"$f":"COUNTIF(PrezențăOctombrie[14],\"N\")+COUNTIF(PrezențăOctombrie[14],\"M\")","v":0},{"$f":"COUNTIF(PrezențăOctombrie[15],\"N\")+COUNTIF(PrezențăOctombrie[15],\"M\")","v":0},{"$f":"COUNTIF(PrezențăOctombrie[16],\"N\")+COUNTIF(PrezențăOctombrie[16],\"M\")","v":0},{"$f":"COUNTIF(PrezențăOctombrie[17],\"N\")+COUNTIF(PrezențăOctombrie[17],\"M\")","v":0},{"$f":"COUNTIF(PrezențăOctombrie[18],\"N\")+COUNTIF(PrezențăOctombrie[18],\"M\")","v":0},{"$f":"COUNTIF(PrezențăOctombrie[19],\"N\")+COUNTIF(PrezențăOctombrie[19],\"M\")","v":0},{"$f":"COUNTIF(PrezențăOctombrie[20],\"N\")+COUNTIF(PrezențăOctombrie[20],\"M\")","v":0},{"$f":"COUNTIF(PrezențăOctombrie[21],\"N\")+COUNTIF(PrezențăOctombrie[21],\"M\")","v":0},{"$f":"COUNTIF(PrezențăOctombrie[22],\"N\")+COUNTIF(PrezențăOctombrie[22],\"M\")","v":0},{"$f":"COUNTIF(PrezențăOctombrie[23],\"N\")+COUNTIF(PrezențăOctombrie[23],\"M\")","v":0},{"$f":"COUNTIF(PrezențăOctombrie[24],\"N\")+COUNTIF(PrezențăOctombrie[24],\"M\")","v":0},{"$f":"COUNTIF(PrezențăOctombrie[25],\"N\")+COUNTIF(PrezențăOctombrie[25],\"M\")","v":0},{"$f":"COUNTIF(PrezențăOctombrie[26],\"N\")+COUNTIF(PrezențăOctombrie[26],\"M\")","v":0},{"$f":"COUNTIF(PrezențăOctombrie[27],\"N\")+COUNTIF(PrezențăOctombrie[27],\"M\")","v":0},{"$f":"COUNTIF(PrezențăOctombrie[28],\"N\")+COUNTIF(PrezențăOctombrie[28],\"M\")","v":0},{"$f":"COUNTIF(PrezențăOctombrie[29],\"N\")+COUNTIF(PrezențăOctombrie[29],\"M\")","v":0},{"$f":"COUNTIF(PrezențăOctombrie[30],\"N\")+COUNTIF(PrezențăOctombrie[30],\"M\")","v":0},{"$f":"COUNTIF(PrezențăOctombrie[31],\"N\")+COUNTIF(PrezențăOctombrie[31],\"M\")","v":0},{"$f":"SUBTOTAL(109,PrezențăOctombrie[Î])","v":0},{"$f":"SUBTOTAL(109,PrezențăOctombrie[M])","v":0},{"$f":"SUBTOTAL(109,PrezențăOctombrie[P])","v":0},{"$f":"SUBTOTAL(109,PrezențăOctombrie[P])","v":0},{"$f":"SUBTOTAL(109,PrezențăOctombrie[Zile de absență])","v":0}]

{"sheet":"Noiembrie","index":5,"n_rows":12,"n_cols":39,"rows_kept":12,"merged":[[4,34,4,38]]}
["CARNET DE PREZENȚE ELEV",{"$nulls":36},"Anul școlar începe:",{"$f":"AnCalendar","v":2012}]
[]
[null,null,{"$f":"CheieCuloareText","v":"CHEIE CULORI"},{"$f":"Cod_1","v":"Î"},{"$f":"Cod1Text","v":"Întârziat"},null,null,{"$f":"Cod_2","v":"M"},{"$f":"Cod2Text","v":"Motivat"},null,null,{"$f":"Cod_3","v":"N"},{"$f":"Cod3Text","v":"Nemotivat"},null,null,{"$f":"Cod_4","v":"P"},{"$f":"Cod4Text","v":"Prezent"},null,null,{"$f":"Cod_5","v":"Nu"},{"$f":"Cod5Text","v":"Nu a fost la școală"}]
[]
[null,{"$f":"DATE(AnCalendar,11,1)","v":"2012-11-01"},null,{"$f":"TEXT(WEEKDAY(DATE(AnCalendar,11,1),1),\"aaa\")","v":"J"},{"$f":"TEXT(WEEKDAY(DATE(AnCalendar,11,2),1),\"aaa\")","v":"V"},{"$f":"TEXT(WEEKDAY(DATE(AnCalendar,11,3),1),\"aaa\")","v":"S"},{"$f":"TEXT(WEEKDAY(DATE(AnCalendar,11,4),1),\"aaa\")","v":"D"},{"$f":"TEXT(WEEKDAY(DATE(AnCalendar,11,5),1),\"aaa\")","v":"L"},{"$f":"TEXT(WEEKDAY(DATE(AnCalendar,11,6),1),\"aaa\")","v":"Ma"},{"$f":"TEXT(WEEKDAY(DATE(AnCalendar,11,7),1),\"aaa\")","v":"Mi"},{"$f":"TEXT(WEEKDAY(DATE(AnCalendar,11,8),1),\"aaa\")","v":"J"},{"$f":"TEXT(WEEKDAY(DATE(AnCalendar,11,9),1),\"aaa\")","v":"V"},{"$f":"TEXT(WEEKDAY(DATE(AnCalendar,11,10),1),\"aaa\")","v":"S"},{"$f":"TEXT(WEEKDAY(DATE(AnCalendar,11,11),1),\"aaa\")","v":"D"},{"$f":"TEXT(WEEKDAY(DATE(AnCalendar,11,12),1),\"aaa\")","v":"L"},{"$f":"TEXT(WEEKDAY(DATE(AnCalendar,11,13),1),\"aaa\")","v":"Ma"},{"$f":"TEXT(WEEKDAY(DATE(AnCalendar,11,14),1),\"aaa\")","v":"Mi"},{"$f":"TEXT(WEEKDAY(DATE(AnCalendar,11,15),1),\"aaa\")","v":"J"},{"$f":"TEXT(WEEKDAY(DATE(AnCalendar,11,16),1),\"aaa\")","v":"V"},{"$f":"TEXT(WEEKDAY(DATE(AnCalendar,11,17),1),\"aaa\")","v":"S"},{"$f":"TEXT(WEEKDAY(DATE(AnCalendar,11,18),1),\"aaa\")","v":"D"},{"$f":"TEXT(WEEKDAY(DATE(AnCalendar,11,19),1),\"aaa\")","v":"L"},{"$f":"TEXT(WEEKDAY(DATE(AnCalendar,11,20),1),\"aaa\")","v":"Ma"},{"$f":"TEXT(WEEKDAY(DATE(AnCalendar,11,21),1),\"aaa\")","v":"Mi"},{"$f":"TEXT(WEEKDAY(DATE(AnCalendar,11,22),1),\"aaa\")","v":"J"},{"$f":"TEXT(WEEKDAY(DATE(AnCalendar,11,23),1),\"aaa\")","v":"V"},{"$f":"TEXT(WEEKDAY(DATE(AnCalendar,11,24),1),\"aaa\")","v":"S"},{"$f":"TEXT(WEEKDAY(DATE(AnCalendar,11,25),1),\"aaa\")","v":"D"},{"$f":"TEXT(WEEKDAY(DATE(AnCalendar,11,26),1),\"aaa\")","v":"L"},{"$f":"TEXT(WEEKDAY(DATE(AnCalendar,11,27),1),\"aaa\")","v":"Ma"},{"$f":"TEXT(WEEKDAY(DATE(AnCalendar,11,28),1),\"aaa\")","v":"Mi"},{"$f":"TEXT(WEEKDAY(DATE(AnCalendar,11,29),1),\"aaa\")","v":"J"},{"$f":"TEXT(WEEKDAY(DATE(AnCalendar,11,30),1),\"aaa\")","v":"V"},null,"Total"]
[null,"ID elev","Nume elev","1","2","3","4","5","6","7","8","9","10","11","12","13","14","15","16","17","18","19","20","21","22","23","24","25","26","27","28","29","30"," ","Î","M","N","P","Zile de absență"]
[null,null,{"$f":"IFERROR(VLOOKUP(PrezențăNoiembrie[[#This Row],[ID elev]],ListăElevi[],18,FALSE),\"\")","v":""},{"$nulls":31},{"$f":"COUNTIF(PrezențăNoiembrie[[#This Row],[1]:[ ]],Cod_1)","v":0},{"$f":"COUNTIF(PrezențăNoiembrie[[#This Row],[1]:[ ]],Cod_2)","v":0},{"$f":"COUNTIF(PrezențăNoiembrie[[#This Row],[1]:[ ]],Cod_3)","v":0},{"$f":"COUNTIF(PrezențăNoiembrie[[#This Row],[1]:[ ]],Cod_4)","v":0},{"$f":"SUM(PrezențăNoiembrie[[#This Row],[M]:[N]])","v":0}]
[null,null,{"$f":"IFERROR(VLOOKUP(PrezențăNoiembrie[[#This Row],[ID elev]],ListăElevi[],18,FALSE),\"\")","v":""},{"$nulls":31},{"$f":"COUNTIF(PrezențăNoiembrie[[#This Row],[1]:[ ]],Cod_1)","v":0},{"$f":"COUNTIF(PrezențăNoiembrie[[#This Row],[1]:[ ]],Cod_2)","v":0},{"$f":"COUNTIF(PrezențăNoiembrie[[#This Row],[1]:[ ]],Cod_3)","v":0},{"$f":"COUNTIF(PrezențăNoiembrie[[#This Row],[1]:[ ]],Cod_4)","v":0},{"$f":"SUM(PrezențăNoiembrie[[#This Row],[M]:[N]])","v":0}]
[null,null,{"$f":"IFERROR(VLOOKUP(PrezențăNoiembrie[[#This Row],[ID elev]],ListăElevi[],18,FALSE),\"\")","v":""},{"$nulls":31},{"$f":"COUNTIF(PrezențăNoiembrie[[#This Row],[1]:[ ]],Cod_1)","v":0},{"$f":"COUNTIF(PrezențăNoiembrie[[#This Row],[1]:[ ]],Cod_2)","v":0},{"$f":"COUNTIF(PrezențăNoiembrie[[#This Row],[1]:[ ]],Cod_3)","v":0},{"$f":"COUNTIF(PrezențăNoiembrie[[#This Row],[1]:[ ]],Cod_4)","v":0},{"$f":"SUM(PrezențăNoiembrie[[#This Row],[M]:[N]])","v":0}]
[null,null,{"$f":"IFERROR(VLOOKUP(PrezențăNoiembrie[[#This Row],[ID elev]],ListăElevi[],18,FALSE),\"\")","v":""},{"$nulls":31},{"$f":"COUNTIF(PrezențăNoiembrie[[#This Row],[1]:[ ]],Cod_1)","v":0},{"$f":"COUNTIF(PrezențăNoiembrie[[#This Row],[1]:[ ]],Cod_2)","v":0},{"$f":"COUNTIF(PrezențăNoiembrie[[#This Row],[1]:[ ]],Cod_3)","v":0},{"$f":"COUNTIF(PrezențăNoiembrie[[#This Row],[1]:[ ]],Cod_4)","v":0},{"$f":"SUM(PrezențăNoiembrie[[#This Row],[M]:[N]])","v":0}]
[null,null,{"$f":"IFERROR(VLOOKUP(PrezențăNoiembrie[[#This Row],[ID elev]],ListăElevi[],18,FALSE),\"\")","v":""},{"$nulls":31},{"$f":"COUNTIF(PrezențăNoiembrie[[#This Row],[1]:[ ]],Cod_1)","v":0},{"$f":"COUNTIF(PrezențăNoiembrie[[#This Row],[1]:[ ]],Cod_2)","v":0},{"$f":"COUNTIF(PrezențăNoiembrie[[#This Row],[1]:[ ]],Cod_3)","v":0},{"$f":"COUNTIF(PrezențăNoiembrie[[#This Row],[1]:[ ]],Cod_4)","v":0},{"$f":"SUM(PrezențăNoiembrie[[#This Row],[M]:[N]])","v":0}]
[null,null,"Numărul total de zile de absență",{"$f":"COUNTIF(PrezențăNoiembrie[1],\"N\")+COUNTIF(PrezențăNoiembrie[1],\"M\")","v":0},{"$f":"COUNTIF(PrezențăNoiembrie[2],\"N\")+COUNTIF(PrezențăNoiembrie[2],\"M\")","v":0},{"$f":"COUNTIF(PrezențăNoiembrie[3],\"N\")+COUNTIF(PrezențăNoiembrie[3],\"M\")","v":0},{"$f":"COUNTIF(PrezențăNoiembrie[4],\"N\")+COUNTIF(PrezențăNoiembrie[4],\"M\")","v":0},{"$f":"COUNTIF(PrezențăNoiembrie[5],\"N\")+COUNTIF(PrezențăNoiembrie[5],\"M\")","v":0},{"$f":"COUNTIF(PrezențăNoiembrie[6],\"N\")+COUNTIF(PrezențăNoiembrie[6],\"M\")","v":0},{"$f":"COUNTIF(PrezențăNoiembrie[7],\"N\")+COUNTIF(PrezențăNoiembrie[7],\"M\")","v":0},{"$f":"COUNTIF(PrezențăNoiembrie[8],\"N\")+COUNTIF(PrezențăNoiembrie[8],\"M\")","v":0},{"$f":"COUNTIF(PrezențăNoiembrie[9],\"N\")+COUNTIF(PrezențăNoiembrie[9],\"M\")","v":0},{"$f":"COUNTIF(PrezențăNoiembrie[10],\"N\")+COUNTIF(PrezențăNoiembrie[10],\"M\")","v":0},{"$f":"COUNTIF(PrezențăNoiembrie[11],\"N\")+COUNTIF(PrezențăNoiembrie[11],\"M\")","v":0},{"$f":"COUNTIF(PrezențăNoiembrie[12],\"N\")+COUNTIF(PrezențăNoiembrie[12],\"M\")","v":0},{"$f":"COUNTIF(PrezențăNoiembrie[13],\"N\")+COUNTIF(PrezențăNoiembrie[13],\"M\")","v":0},{"$f":"COUNTIF(PrezențăNoiembrie[14],\"N\")+COUNTIF(PrezențăNoiembrie[14],\"M\")","v":0},{"$f":"COUNTIF(PrezențăNoiembrie[15],\"N\")+COUNTIF(PrezențăNoiembrie[15],\"M\")","v":0},{"$f":"COUNTIF(PrezențăNoiembrie[16],\"N\")+COUNTIF(PrezențăNoiembrie[16],\"M\")","v":0},{"$f":"COUNTIF(PrezențăNoiembrie[17],\"N\")+COUNTIF(PrezențăNoiembrie[17],\"M\")","v":0},{"$f":"COUNTIF(PrezențăNoiembrie[18],\"N\")+COUNTIF(PrezențăNoiembrie[18],\"M\")","v":0},{"$f":"COUNTIF(PrezențăNoiembrie[19],\"N\")+COUNTIF(PrezențăNoiembrie[19],\"M\")","v":0},{"$f":"COUNTIF(PrezențăNoiembrie[20],\"N\")+COUNTIF(PrezențăNoiembrie[20],\"M\")","v":0},{"$f":"COUNTIF(PrezențăNoiembrie[21],\"N\")+COUNTIF(PrezențăNoiembrie[21],\"M\")","v":0},{"$f":"COUNTIF(PrezențăNoiembrie[22],\"N\")+COUNTIF(PrezențăNoiembrie[22],\"M\")","v":0},{"$f":"COUNTIF(PrezențăNoiembrie[23],\"N\")+COUNTIF(PrezențăNoiembrie[23],\"M\")","v":0},{"$f":"COUNTIF(PrezențăNoiembrie[24],\"N\")+COUNTIF(PrezențăNoiembrie[24],\"M\")","v":0},{"$f":"COUNTIF(PrezențăNoiembrie[25],\"N\")+COUNTIF(PrezențăNoiembrie[25],\"M\")","v":0},{"$f":"COUNTIF(PrezențăNoiembrie[26],\"N\")+COUNTIF(PrezențăNoiembrie[26],\"M\")","v":0},{"$f":"COUNTIF(PrezențăNoiembrie[27],\"N\")+COUNTIF(PrezențăNoiembrie[27],\"M\")","v":0},{"$f":"COUNTIF(PrezențăNoiembrie[28],\"N\")+COUNTIF(PrezențăNoiembrie[28],\"M\")","v":0},{"$f":"COUNTIF(PrezențăNoiembrie[29],\"N\")+COUNTIF(PrezențăNoiembrie[29],\"M\")","v":0},{"$f":"COUNTIF(PrezențăNoiembrie[30],\"N\")+COUNTIF(PrezențăNoiembrie[30],\"M\")","v":0},{"$f":"COUNTIF(PrezențăNoiembrie[[ ]],\"N\")+COUNTIF(PrezențăNoiembrie[[ ]],\"M\")","v":0},{"$f":"SUBTOTAL(109,PrezențăNoiembrie[Î])","v":0},{"$f":"SUBTOTAL(109,PrezențăNoiembrie[M])","v":0},{"$f":"SUBTOTAL(109,PrezențăNoiembrie[N])","v":0},{"$f":"SUBTOTAL(109,PrezențăNoiembrie[P])","v":0},{"$f":"SUBTOTAL(109,PrezențăNoiembrie[Zile de absență])","v":0}]

{"sheet":"Decembrie","index":6,"n_rows":12,"n_cols":39,"rows_kept":12,"merged":[[4,34,4,38]]}
["CARNET DE PREZENȚE ELEV",{"$nulls":36},"Anul școlar începe:",{"$f":"AnCalendar","v":2012}]
[]
[null,null,{"$f":"CheieCuloareText","v":"CHEIE CULORI"},{"$f":"Cod_1","v":"Î"},{"$f":"Cod1Text","v":"Întârziat"},null,null,{"$f":"Cod_2","v":"M"},{"$f":"Cod2Text","v":"Motivat"},null,null,{"$f":"Cod_3","v":"N"},{"$f":"Cod3Text","v":"Nemotivat"},null,null,{"$f":"Cod_4","v":"P"},{"$f":"Cod4Text","v":"Prezent"},null,null,{"$f":"Cod_5","v":"Nu"},{"$f":"Cod5Text","v":"Nu a fost la școală"}]
[]
[null,{"$f":"DATE(AnCalendar,12,1)","v":"2012-12-01"},null,{"$f":"TEXT(WEEKDAY(DATE(AnCalendar,12,1),1),\"aaa\")","v":"S"},{"$f":"TEXT(WEEKDAY(DATE(AnCalendar,12,2),1),\"aaa\")","v":"D"},{"$f":"TEXT(WEEKDAY(DATE(AnCalendar,12,3),1),\"aaa\")","v":"L"},{"$f":"TEXT(WEEKDAY(DATE(AnCalendar,12,4),1),\"aaa\")","v":"Ma"},{"$f":"TEXT(WEEKDAY(DATE(AnCalendar,12,5),1),\"aaa\")","v":"Mi"},{"$f":"TEXT(WEEKDAY(DATE(AnCalendar,12,6),1),\"aaa\")","v":"J"},{"$f":"TEXT(WEEKDAY(DATE(AnCalendar,12,7),1),\"aaa\")","v":"V"},{"$f":"TEXT(WEEKDAY(DATE(AnCalendar,12,8),1),\"aaa\")","v":"S"},{"$f":"TEXT(WEEKDAY(DATE(AnCalendar,12,9),1),\"aaa\")","v":"D"},{"$f":"TEXT(WEEKDAY(DATE(AnCalendar,12,10),1),\"aaa\")","v":"L"},{"$f":"TEXT(WEEKDAY(DATE(AnCalendar,12,11),1),\"aaa\")","v":"Ma"},{"$f":"TEXT(WEEKDAY(DATE(AnCalendar,12,12),1),\"aaa\")","v":"Mi"},{"$f":"TEXT(WEEKDAY(DATE(AnCalendar,12,13),1),\"aaa\")","v":"J"},{"$f":"TEXT(WEEKDAY(DATE(AnCalendar,12,14),1),\"aaa\")","v":"V"},{"$f":"TEXT(WEEKDAY(DATE(AnCalendar,12,15),1),\"aaa\")","v":"S"},{"$f":"TEXT(WEEKDAY(DATE(AnCalendar,12,16),1),\"aaa\")","v":"D"},{"$f":"TEXT(WEEKDAY(DATE(AnCalendar,12,17),1),\"aaa\")","v":"L"},{"$f":"TEXT(WEEKDAY(DATE(AnCalendar,12,18),1),\"aaa\")","v":"Ma"},{"$f":"TEXT(WEEKDAY(DATE(AnCalendar,12,19),1),\"aaa\")","v":"Mi"},{"$f":"TEXT(WEEKDAY(DATE(AnCalendar,12,20),1),\"aaa\")","v":"J"},{"$f":"TEXT(WEEKDAY(DATE(AnCalendar,12,21),1),\"aaa\")","v":"V"},{"$f":"TEXT(WEEKDAY(DATE(AnCalendar,12,22),1),\"aaa\")","v":"S"},{"$f":"TEXT(WEEKDAY(DATE(AnCalendar,12,23),1),\"aaa\")","v":"D"},{"$f":"TEXT(WEEKDAY(DATE(AnCalendar,12,24),1),\"aaa\")","v":"L"},{"$f":"TEXT(WEEKDAY(DATE(AnCalendar,12,25),1),\"aaa\")","v":"Ma"},{"$f":"TEXT(WEEKDAY(DATE(AnCalendar,12,26),1),\"aaa\")","v":"Mi"},{"$f":"TEXT(WEEKDAY(DATE(AnCalendar,12,27),1),\"aaa\")","v":"J"},{"$f":"TEXT(WEEKDAY(DATE(AnCalendar,12,28),1),\"aaa\")","v":"V"},{"$f":"TEXT(WEEKDAY(DATE(AnCalendar,12,29),1),\"aaa\")","v":"S"},{"$f":"TEXT(WEEKDAY(DATE(AnCalendar,12,30),1),\"aaa\")","v":"D"},{"$f":"TEXT(WEEKDAY(DATE(AnCalendar,12,31),1),\"aaa\")","v":"L"},"Total"]
[null,"ID elev","Nume elev","1","2","3","4","5","6","7","8","9","10","11","12","13","14","15","16","17","18","19","20","21","22","23","24","25","26","27","28","29","30","31","Î","M","N","P","Zile de absență"]
[null,null,{"$f":"IFERROR(VLOOKUP(PrezențăDecembrie[[#This Row],[ID elev]],ListăElevi[],18,FALSE),\"\")","v":""},{"$nulls":31},{"$f":"COUNTIF(PrezențăDecembrie[[#This Row],[1]:[31]],Cod_1)","v":0},{"$f":"COUNTIF(PrezențăDecembrie[[#This Row],[1]:[31]],Cod_2)","v":0},{"$f":"COUNTIF(PrezențăDecembrie[[#This Row],[1]:[31]],Cod_3)","v":0},{"$f":"COUNTIF(PrezențăDecembrie[[#This Row],[1]:[31]],Cod_4)","v":0},{"$f":"SUM(PrezențăDecembrie[[#This Row],[M]:[N]])","v":0}]
[null,null,{"$f":"IFERROR(VLOOKUP(PrezențăDecembrie[[#This Row],[ID elev]],ListăElevi[],18,FALSE),\"\")","v":""},{"$nulls":31},{"$f":"COUNTIF(PrezențăDecembrie[[#This Row],[1]:[31]],Cod_1)","v":0},{"$f":"COUNTIF(PrezențăDecembrie[[#This Row],[1]:[31]],Cod_2)","v":0},{"$f":"COUNTIF(PrezențăDecembrie[[#This Row],[1]:[31]],Cod_3)","v":0},{"$f":"COUNTIF(PrezențăDecembrie[[#This Row],[1]:[31]],Cod_4)","v":0},{"$f":"SUM(PrezențăDecembrie[[#This Row],[M]:[N]])","v":0}]
[null,null,{"$f":"IFERROR(VLOOKUP(PrezențăDecembrie[[#This Row],[ID elev]],ListăElevi[],18,FALSE),\"\")","v":""},{"$nulls":31},{"$f":"COUNTIF(PrezențăDecembrie[[#This Row],[1]:[31]],Cod_1)","v":0},{"$f":"COUNTIF(PrezențăDecembrie[[#This Row],[1]:[31]],Cod_2)","v":0},{"$f":"COUNTIF(PrezențăDecembrie[[#This Row],[1]:[31]],Cod_3)","v":0},{"$f":"COUNTIF(PrezențăDecembrie[[#This Row],[1]:[31]],Cod_4)","v":0},{"$f":"SUM(PrezențăDecembrie[[#This Row],[M]:[N]])","v":0}]
[null,null,{"$f":"IFERROR(VLOOKUP(PrezențăDecembrie[[#This Row],[ID elev]],ListăElevi[],18,FALSE),\"\")","v":""},{"$nulls":31},{"$f":"COUNTIF(PrezențăDecembrie[[#This Row],[1]:[31]],Cod_1)","v":0},{"$f":"COUNTIF(PrezențăDecembrie[[#This Row],[1]:[31]],Cod_2)","v":0},{"$f":"COUNTIF(PrezențăDecembrie[[#This Row],[1]:[31]],Cod_3)","v":0},{"$f":"COUNTIF(PrezențăDecembrie[[#This Row],[1]:[31]],Cod_4)","v":0},{"$f":"SUM(PrezențăDecembrie[[#This Row],[M]:[N]])","v":0}]
[null,null,{"$f":"IFERROR(VLOOKUP(PrezențăDecembrie[[#This Row],[ID elev]],ListăElevi[],18,FALSE),\"\")","v":""},{"$nulls":31},{"$f":"COUNTIF(PrezențăDecembrie[[#This Row],[1]:[31]],Cod_1)","v":0},{"$f":"COUNTIF(PrezențăDecembrie[[#This Row],[1]:[31]],Cod_2)","v":0},{"$f":"COUNTIF(PrezențăDecembrie[[#This Row],[1]:[31]],Cod_3)","v":0},{"$f":"COUNTIF(PrezențăDecembrie[[#This Row],[1]:[31]],Cod_4)","v":0},{"$f":"SUM(PrezențăDecembrie[[#This Row],[M]:[N]])","v":0}]
[null,null,"Numărul total de zile de absență",{"$f":"COUNTIF(PrezențăDecembrie[1],\"N\")+COUNTIF(PrezențăDecembrie[1],\"M\")","v":0},{"$f":"COUNTIF(PrezențăDecembrie[2],\"N\")+COUNTIF(PrezențăDecembrie[2],\"M\")","v":0},{"$f":"COUNTIF(PrezențăDecembrie[3],\"N\")+COUNTIF(PrezențăDecembrie[3],\"M\")","v":0},{"$f":"COUNTIF(PrezențăDecembrie[4],\"N\")+COUNTIF(PrezențăDecembrie[4],\"M\")","v":0},{"$f":"COUNTIF(PrezențăDecembrie[5],\"N\")+COUNTIF(PrezențăDecembrie[5],\"M\")","v":0},{"$f":"COUNTIF(PrezențăDecembrie[6],\"N\")+COUNTIF(PrezențăDecembrie[6],\"M\")","v":0},{"$f":"COUNTIF(PrezențăDecembrie[7],\"N\")+COUNTIF(PrezențăDecembrie[7],\"M\")","v":0},{"$f":"COUNTIF(PrezențăDecembrie[8],\"N\")+COUNTIF(PrezențăDecembrie[8],\"M\")","v":0},{"$f":"COUNTIF(PrezențăDecembrie[9],\"N\")+COUNTIF(PrezențăDecembrie[9],\"M\")","v":0},{"$f":"COUNTIF(PrezențăDecembrie[10],\"N\")+COUNTIF(PrezențăDecembrie[10],\"M\")","v":0},{"$f":"COUNTIF(PrezențăDecembrie[11],\"N\")+COUNTIF(PrezențăDecembrie[11],\"M\")","v":0},{"$f":"COUNTIF(PrezențăDecembrie[12],\"N\")+COUNTIF(PrezențăDecembrie[12],\"M\")","v":0},{"$f":"COUNTIF(PrezențăDecembrie[13],\"N\")+COUNTIF(PrezențăDecembrie[13],\"M\")","v":0},{"$f":"COUNTIF(PrezențăDecembrie[14],\"N\")+COUNTIF(PrezențăDecembrie[14],\"M\")","v":0},{"$f":"COUNTIF(PrezențăDecembrie[15],\"N\")+COUNTIF(PrezențăDecembrie[15],\"M\")","v":0},{"$f":"COUNTIF(PrezențăDecembrie[16],\"N\")+COUNTIF(PrezențăDecembrie[16],\"M\")","v":0},{"$f":"COUNTIF(PrezențăDecembrie[17],\"N\")+COUNTIF(PrezențăDecembrie[17],\"M\")","v":0},{"$f":"COUNTIF(PrezențăDecembrie[18],\"N\")+COUNTIF(PrezențăDecembrie[18],\"M\")","v":0},{"$f":"COUNTIF(PrezențăDecembrie[19],\"N\")+COUNTIF(PrezențăDecembrie[19],\"M\")","v":0},{"$f":"COUNTIF(PrezențăDecembrie[20],\"N\")+COUNTIF(PrezențăDecembrie[20],\"M\")","v":0},{"$f":"COUNTIF(PrezențăDecembrie[21],\"N\")+COUNTIF(PrezențăDecembrie[21],\"M\")","v":0},{"$f":"COUNTIF(PrezențăDecembrie[22],\"N\")+COUNTIF(PrezențăDecembrie[22],\"M\")","v":0},{"$f":"COUNTIF(PrezențăDecembrie[23],\"N\")+COUNTIF(PrezențăDecembrie[23],\"M\")","v":0},{"$f":"COUNTIF(PrezențăDecembrie[24],\"N\")+COUNTIF(PrezențăDecembrie[24],\"M\")","v":0},{"$f":"COUNTIF(PrezențăDecembrie[25],\"N\")+COUNTIF(PrezențăDecembrie[25],\"M\")","v":0},{"$f":"COUNTIF(PrezențăDecembrie[26],\"N\")+COUNTIF(PrezențăDecembrie[26],\"M\")","v":0},{"$f":"COUNTIF(PrezențăDecembrie[27],\"N\")+COUNTIF(PrezențăDecembrie[27],\"M\")","v":0},{"$f":"COUNTIF(PrezențăDecembrie[28],\"N\")+COUNTIF(PrezențăDecembrie[28],\"M\")","v":0},{"$f":"COUNTIF(PrezențăDecembrie[29],\"N\")+COUNTIF(PrezențăDecembrie[29],\"M\")","v":0},{"$f":"COUNTIF(PrezențăDecembrie[30],\"N\")+COUNTIF(PrezențăDecembrie[30],\"M\")","v":0},{"$f":"COUNTIF(PrezențăDecembrie[31],\"N\")+COUNTIF(PrezențăDecembrie[31],\"M\")","v":0},{"$f":"SUBTOTAL(109,PrezențăDecembrie[Î])","v":0},{"$f":"SUBTOTAL(109,PrezențăDecembrie[M])","v":0},{"$f":"SUBTOTAL(109,PrezențăDecembrie[N])","v":0},{"$f":"SUBTOTAL(109,PrezențăDecembrie[P])","v":0},{"$f":"SUBTOTAL(109,PrezențăDecembrie[Zile de absență])","v":0}]

{"sheet":"Ianuarie","index":7,"n_rows":12,"n_cols":39,"rows_kept":12,"merged":[[4,34,4,38]]}
["CARNET DE PREZENȚE ELEV",{"$nulls":36},"Anul școlar începe:",{"$f":"AnCalendar","v":2012}]
[]
[null,null,{"$f":"CheieCuloareText","v":"CHEIE CULORI"},{"$f":"Cod_1","v":"Î"},{"$f":"Cod1Text","v":"Întârziat"},null,null,{"$f":"Cod_2","v":"M"},{"$f":"Cod2Text","v":"Motivat"},null,null,{"$f":"Cod_3","v":"N"},{"$f":"Cod3Text","v":"Nemotivat"},null,null,{"$f":"Cod_4","v":"P"},{"$f":"Cod4Text","v":"Prezent"},null,null,{"$f":"Cod_5","v":"Nu"},{"$f":"Cod5Text","v":"Nu a fost la școală"}]
[]
[null,{"$f":"DATE(AnCalendar+1,1,1)","v":"2013-01-01"},null,{"$f":"TEXT(WEEKDAY(DATE(AnCalendar+1,1,1),1),\"aaa\")","v":"Ma"},{"$f":"TEXT(WEEKDAY(DATE(AnCalendar+1,1,2),1),\"aaa\")","v":"Mi"},{"$f":"TEXT(WEEKDAY(DATE(AnCalendar+1,1,3),1),\"aaa\")","v":"J"},{"$f":"TEXT(WEEKDAY(DATE(AnCalendar+1,1,4),1),\"aaa\")","v":"V"},{"$f":"TEXT(WEEKDAY(DATE(AnCalendar+1,1,5),1),\"aaa\")","v":"S"},{"$f":"TEXT(WEEKDAY(DATE(AnCalendar+1,1,6),1),\"aaa\")","v":"D"},{"$f":"TEXT(WEEKDAY(DATE(AnCalendar+1,1,7),1),\"aaa\")","v":"L"},{"$f":"TEXT(WEEKDAY(DATE(AnCalendar+1,1,8),1),\"aaa\")","v":"Ma"},{"$f":"TEXT(WEEKDAY(DATE(AnCalendar+1,1,9),1),\"aaa\")","v":"Mi"},{"$f":"TEXT(WEEKDAY(DATE(AnCalendar+1,1,10),1),\"aaa\")","v":"J"},{"$f":"TEXT(WEEKDAY(DATE(AnCalendar+1,1,11),1),\"aaa\")","v":"V"},{"$f":"TEXT(WEEKDAY(DATE(AnCalendar+1,1,12),1),\"aaa\")","v":"S"},{"$f":"TEXT(WEEKDAY(DATE(AnCalendar+1,1,13),1),\"aaa\")","v":"D"},{"$f":"TEXT(WEEKDAY(DATE(AnCalendar+1,1,14),1),\"aaa\")","v":"L"},{"$f":"TEXT(WEEKDAY(DATE(AnCalendar+1,1,15),1),\"aaa\")","v":"Ma"},{"$f":"TEXT(WEEKDAY(DATE(AnCalendar+1,1,16),1),\"aaa\")","v":"Mi"},{"$f":"TEXT(WEEKDAY(DATE(AnCalendar+1,1,17),1),\"aaa\")","v":"J"},{"$f":"TEXT(WEEKDAY(DATE(AnCalendar+1,1,18),1),\"aaa\")","v":"V"},{"$f":"TEXT(WEEKDAY(DATE(AnCalendar+1,1,19),1),\"aaa\")","v":"S"},{"$f":"TEXT(WEEKDAY(DATE(AnCalendar+1,1,20),1),\"aaa\")","v":"D"},{"$f":"TEXT(WEEKDAY(DATE(AnCalendar+1,1,21),1),\"aaa\")","v":"L"},{"$f":"TEXT(WEEKDAY(DATE(AnCalendar+1,1,22),1),\"aaa\")","v":"Ma"},{"$f":"TEXT(WEEKDAY(DATE(AnCalendar+1,1,23),1),\"aaa\")","v":"Mi"},{"$f":"TEXT(WEEKDAY(DATE(AnCalendar+1,1,24),1),\"aaa\")","v":"J"},{"$f":"TEXT(WEEKDAY(DATE(AnCalendar+1,1,25),1),\"aaa\")","v":"V"},{"$f":"TEXT(WEEKDAY(DATE(AnCalendar+1,1,26),1),\"aaa\")","v":"S"},{"$f":"TEXT(WEEKDAY(DATE(AnCalendar+1,1,27),1),\"aaa\")","v":"D"},{"$f":"TEXT(WEEKDAY(DATE(AnCalendar+1,1,28),1),\"aaa\")","v":"L"},{"$f":"TEXT(WEEKDAY(DATE(AnCalendar+1,1,29),1),\"aaa\")","v":"Ma"},{"$f":"TEXT(WEEKDAY(DATE(AnCalendar+1,1,30),1),\"aaa\")","v":"Mi"},{"$f":"TEXT(WEEKDAY(DATE(AnCalendar+1,1,31),1),\"aaa\")","v":"J"},"Total"]
[null,"ID elev","Nume elev","1","2","3","4","5","6","7","8","9","10","11","12","13","14","15","16","17","18","19","20","21","22","23","24","25","26","27","28","29","30","31","Î","M","N","P","Zile de absență"]
[null,null,{"$f":"IFERROR(VLOOKUP(PrezențăIanuarie[[#This Row],[ID elev]],ListăElevi[],18,FALSE),\"\")","v":""},{"$nulls":31},{"$f":"COUNTIF(PrezențăIanuarie[[#This Row],[1]:[31]],Cod_1)","v":0},{"$f":"COUNTIF(PrezențăIanuarie[[#This Row],[1]:[31]],Cod_2)","v":0},{"$f":"COUNTIF(PrezențăIanuarie[[#This Row],[1]:[31]],Cod_3)","v":0},{"$f":"COUNTIF(PrezențăIanuarie[[#This Row],[1]:[31]],Cod_4)","v":0},{"$f":"SUM(PrezențăIanuarie[[#This Row],[M]:[N]])","v":0}]
[null,null,{"$f":"IFERROR(VLOOKUP(PrezențăIanuarie[[#This Row],[ID elev]],ListăElevi[],18,FALSE),\"\")","v":""},{"$nulls":31},{"$f":"COUNTIF(PrezențăIanuarie[[#This Row],[1]:[31]],Cod_1)","v":0},{"$f":"COUNTIF(PrezențăIanuarie[[#This Row],[1]:[31]],Cod_2)","v":0},{"$f":"COUNTIF(PrezențăIanuarie[[#This Row],[1]:[31]],Cod_3)","v":0},{"$f":"COUNTIF(PrezențăIanuarie[[#This Row],[1]:[31]],Cod_4)","v":0},{"$f":"SUM(PrezențăIanuarie[[#This Row],[M]:[N]])","v":0}]
[null,null,{"$f":"IFERROR(VLOOKUP(PrezențăIanuarie[[#This Row],[ID elev]],ListăElevi[],18,FALSE),\"\")","v":""},{"$nulls":31},{"$f":"COUNTIF(PrezențăIanuarie[[#This Row],[1]:[31]],Cod_1)","v":0},{"$f":"COUNTIF(PrezențăIanuarie[[#This Row],[1]:[31]],Cod_2)","v":0},{"$f":"COUNTIF(PrezențăIanuarie[[#This Row],[1]:[31]],Cod_3)","v":0},{"$f":"COUNTIF(PrezențăIanuarie[[#This Row],[1]:[31]],Cod_4)","v":0},{"$f":"SUM(PrezențăIanuarie[[#This Row],[M]:[N]])","v":0}]
[null,null,{"$f":"IFERROR(VLOOKUP(PrezențăIanuarie[[#This Row],[ID elev]],ListăElevi[],18,FALSE),\"\")","v":""},{"$nulls":31},{"$f":"COUNTIF(PrezențăIanuarie[[#This Row],[1]:[31]],Cod_1)","v":0},{"$f":"COUNTIF(PrezențăIanuarie[[#This Row],[1]:[31]],Cod_2)","v":0},{"$f":"COUNTIF(PrezențăIanuarie[[#This Row],[1]:[31]],Cod_3)","v":0},{"$f":"COUNTIF(PrezențăIanuarie[[#This Row],[1]:[31]],Cod_4)","v":0},{"$f":"SUM(PrezențăIanuarie[[#This Row],[M]:[N]])","v":0}]
[null,null,{"$f":"IFERROR(VLOOKUP(PrezențăIanuarie[[#This Row],[ID elev]],ListăElevi[],18,FALSE),\"\")","v":""},{"$nulls":31},{"$f":"COUNTIF(PrezențăIanuarie[[#This Row],[1]:[31]],Cod_1)","v":0},{"$f":"COUNTIF(PrezențăIanuarie[[#This Row],[1]:[31]],Cod_2)","v":0},{"$f":"COUNTIF(PrezențăIanuarie[[#This Row],[1]:[31]],Cod_3)","v":0},{"$f":"COUNTIF(PrezențăIanuarie[[#This Row],[1]:[31]],Cod_4)","v":0},{"$f":"SUM(PrezențăIanuarie[[#This Row],[M]:[N]])","v":0}]
[null,null,"Numărul total de zile de absență",{"$f":"COUNTIF(PrezențăIanuarie[1],\"N\")+COUNTIF(PrezențăIanuarie[1],\"M\")","v":0},{"$f":"COUNTIF(PrezențăIanuarie[2],\"N\")+COUNTIF(PrezențăIanuarie[2],\"M\")","v":0},{"$f":"COUNTIF(PrezențăIanuarie[3],\"N\")+COUNTIF(PrezențăIanuarie[3],\"M\")","v":0},{"$f":"COUNTIF(PrezențăIanuarie[4],\"N\")+COUNTIF(PrezențăIanuarie[4],\"M\")","v":0},{"$f":"COUNTIF(PrezențăIanuarie[5],\"N\")+COUNTIF(PrezențăIanuarie[5],\"M\")","v":0},{"$f":"COUNTIF(PrezențăIanuarie[6],\"N\")+COUNTIF(PrezențăIanuarie[6],\"M\")","v":0},{"$f":"COUNTIF(PrezențăIanuarie[7],\"N\")+COUNTIF(PrezențăIanuarie[7],\"M\")","v":0},{"$f":"COUNTIF(PrezențăIanuarie[8],\"N\")+COUNTIF(PrezențăIanuarie[8],\"M\")","v":0},{"$f":"COUNTIF(PrezențăIanuarie[9],\"N\")+COUNTIF(PrezențăIanuarie[9],\"M\")","v":0},{"$f":"COUNTIF(PrezențăIanuarie[10],\"N\")+COUNTIF(PrezențăIanuarie[10],\"M\")","v":0},{"$f":"COUNTIF(PrezențăIanuarie[11],\"N\")+COUNTIF(PrezențăIanuarie[11],\"M\")","v":0},{"$f":"COUNTIF(PrezențăIanuarie[12],\"N\")+COUNTIF(PrezențăIanuarie[12],\"M\")","v":0},{"$f":"COUNTIF(PrezențăIanuarie[13],\"N\")+COUNTIF(PrezențăIanuarie[13],\"M\")","v":0},{"$f":"COUNTIF(PrezențăIanuarie[14],\"N\")+COUNTIF(PrezențăIanuarie[14],\"M\")","v":0},{"$f":"COUNTIF(PrezențăIanuarie[15],\"N\")+COUNTIF(PrezențăIanuarie[15],\"M\")","v":0},{"$f":"COUNTIF(PrezențăIanuarie[16],\"N\")+COUNTIF(PrezențăIanuarie[16],\"M\")","v":0},{"$f":"COUNTIF(PrezențăIanuarie[17],\"N\")+COUNTIF(PrezențăIanuarie[17],\"M\")","v":0},{"$f":"COUNTIF(PrezențăIanuarie[18],\"N\")+COUNTIF(PrezențăIanuarie[18],\"M\")","v":0},{"$f":"COUNTIF(PrezențăIanuarie[19],\"N\")+COUNTIF(PrezențăIanuarie[19],\"M\")","v":0},{"$f":"COUNTIF(PrezențăIanuarie[20],\"N\")+COUNTIF(PrezențăIanuarie[20],\"M\")","v":0},{"$f":"COUNTIF(PrezențăIanuarie[21],\"N\")+COUNTIF(PrezențăIanuarie[21],\"M\")","v":0},{"$f":"COUNTIF(PrezențăIanuarie[22],\"N\")+COUNTIF(PrezențăIanuarie[22],\"M\")","v":0},{"$f":"COUNTIF(PrezențăIanuarie[23],\"N\")+COUNTIF(PrezențăIanuarie[23],\"M\")","v":0},{"$f":"COUNTIF(PrezențăIanuarie[24],\"N\")+COUNTIF(PrezențăIanuarie[24],\"M\")","v":0},{"$f":"COUNTIF(PrezențăIanuarie[25],\"N\")+COUNTIF(PrezențăIanuarie[25],\"M\")","v":0},{"$f":"COUNTIF(PrezențăIanuarie[26],\"N\")+COUNTIF(PrezențăIanuarie[26],\"M\")","v":0},{"$f":"COUNTIF(PrezențăIanuarie[27],\"N\")+COUNTIF(PrezențăIanuarie[27],\"M\")","v":0},{"$f":"COUNTIF(PrezențăIanuarie[28],\"N\")+COUNTIF(PrezențăIanuarie[28],\"M\")","v":0},{"$f":"COUNTIF(PrezențăIanuarie[29],\"N\")+COUNTIF(PrezențăIanuarie[29],\"M\")","v":0},null,null,{"$f":"SUBTOTAL(109,PrezențăIanuarie[Î])","v":0},{"$f":"SUBTOTAL(109,PrezențăIanuarie[M])","v":0},{"$f":"SUBTOTAL(109,PrezențăIanuarie[N])","v":0},{"$f":"SUBTOTAL(109,PrezențăIanuarie[P])","v":0},{"$f":"SUBTOTAL(109,PrezențăIanuarie[Zile de absență])","v":0}]

{"sheet":"Februarie","index":8,"n_rows":12,"n_cols":39,"rows_kept":12,"merged":[[4,34,4,38]]}
["CARNET DE PREZENȚE ELEV",{"$nulls":36},"Anul școlar începe:",{"$f":"AnCalendar","v":2012}]
[]
[null,null,{"$f":"CheieCuloareText","v":"CHEIE CULORI"},{"$f":"Cod_1","v":"Î"},{"$f":"Cod1Text","v":"Întârziat"},null,null,{"$f":"Cod_2","v":"M"},{"$f":"Cod2Text","v":"Motivat"},null,null,{"$f":"Cod_3","v":"N"},{"$f":"Cod3Text","v":"Nemotivat"},null,null,{"$f":"Cod_4","v":"P"},{"$f":"Cod4Text","v":"Prezent"},null,null,{"$f":"Cod_5","v":"Nu"},{"$f":"Cod5Text","v":"Nu a fost la școală"}]
[]
[null,{"$f":"DATE(AnCalendar+1,2,1)","v":"2013-02-01"},null,{"$f":"TEXT(WEEKDAY(DATE(AnCalendar+1,2,1),1),\"aaa\")","v":"V"},{"$f":"TEXT(WEEKDAY(DATE(AnCalendar+1,2,2),1),\"aaa\")","v":"S"},{"$f":"TEXT(WEEKDAY(DATE(AnCalendar+1,2,3),1),\"aaa\")","v":"D"},{"$f":"TEXT(WEEKDAY(DATE(AnCalendar+1,2,4),1),\"aaa\")","v":"L"},{"$f":"TEXT(WEEKDAY(DATE(AnCalendar+1,2,5),1),\"aaa\")","v":"Ma"},{"$f":"TEXT(WEEKDAY(DATE(AnCalendar+1,2,6),1),\"aaa\")","v":"Mi"},{"$f":"TEXT(WEEKDAY(DATE(AnCalendar+1,2,7),1),\"aaa\")","v":"J"},{"$f":"TEXT(WEEKDAY(DATE(AnCalendar+1,2,8),1),\"aaa\")","v":"V"},{"$f":"TEXT(WEEKDAY(DATE(AnCalendar+1,2,9),1),\"aaa\")","v":"S"},{"$f":"TEXT(WEEKDAY(DATE(AnCalendar+1,2,10),1),\"aaa\")","v":"D"},{"$f":"TEXT(WEEKDAY(DATE(AnCalendar+1,2,11),1),\"aaa\")","v":"L"},{"$f":"TEXT(WEEKDAY(DATE(AnCalendar+1,2,12),1),\"aaa\")","v":"Ma"},{"$f":"TEXT(WEEKDAY(DATE(AnCalendar+1,2,13),1),\"aaa\")","v":"Mi"},{"$f":"TEXT(WEEKDAY(DATE(AnCalendar+1,2,14),1),\"aaa\")","v":"J"},{"$f":"TEXT(WEEKDAY(DATE(AnCalendar+1,2,15),1),\"aaa\")","v":"V"},{"$f":"TEXT(WEEKDAY(DATE(AnCalendar+1,2,16),1),\"aaa\")","v":"S"},{"$f":"TEXT(WEEKDAY(DATE(AnCalendar+1,2,17),1),\"aaa\")","v":"D"},{"$f":"TEXT(WEEKDAY(DATE(AnCalendar+1,2,18),1),\"aaa\")","v":"L"},{"$f":"TEXT(WEEKDAY(DATE(AnCalendar+1,2,19),1),\"aaa\")","v":"Ma"},{"$f":"TEXT(WEEKDAY(DATE(AnCalendar+1,2,20),1),\"aaa\")","v":"Mi"},{"$f":"TEXT(WEEKDAY(DATE(AnCalendar+1,2,21),1),\"aaa\")","v":"J"},{"$f":"TEXT(WEEKDAY(DATE(AnCalendar+1,2,22),1),\"aaa\")","v":"V"},{"$f":"TEXT(WEEKDAY(DATE(AnCalendar+1,2,23),1),\"aaa\")","v":"S"},{"$f":"TEXT(WEEKDAY(DATE(AnCalendar+1,2,24),1),\"aaa\")","v":"D"},{"$f":"TEXT(WEEKDAY(DATE(AnCalendar+1,2,25),1),\"aaa\")","v":"L"},{"$f":"TEXT(WEEKDAY(DATE(AnCalendar+1,2,26),1),\"aaa\")","v":"Ma"},{"$f":"TEXT(WEEKDAY(DATE(AnCalendar+1,2,27),1),\"aaa\")","v":"Mi"},{"$f":"TEXT(WEEKDAY(DATE(AnCalendar+1,2,28),1),\"aaa\")","v":"J"},{"$f":"TEXT(WEEKDAY(DATE(AnCalendar+1,2,29),1),\"aaa\")","v":"V"},null,null,"Total"]
[null,"ID elev","Nume elev","1","2","3","4","5","6","7","8","9","10","11","12","13","14","15","16","17","18","19","20","21","22","23","24","25","26","27","28","29","30","31","Î","M","N","P","Zile de absență"]
[null,null,{"$f":"IFERROR(VLOOKUP(PrezențăFebruarie[[#This Row],[ID elev]],ListăElevi[],18,FALSE),\"\")","v":""},{"$nulls":31},{"$f":"COUNTIF(PrezențăFebruarie[[#This Row],[1]:[31]],Cod_1)","v":0},{"$f":"COUNTIF(PrezențăFebruarie[[#This Row],[1]:[31]],Cod_2)","v":0},{"$f":"COUNTIF(PrezențăFebruarie[[#This Row],[1]:[31]],Cod_3)","v":0},{"$f":"COUNTIF(PrezențăFebruarie[[#This Row],[1]:[31]],Cod_4)","v":0},{"$f":"SUM(PrezențăFebruarie[[#This Row],[M]:[N]])","v":0}]
[null,null,{"$f":"IFERROR(VLOOKUP(PrezențăFebruarie[[#This Row],[ID elev]],ListăElevi[],18,FALSE),\"\")","v":""},{"$nulls":31},{"$f":"COUNTIF(PrezențăFebruarie[[#This Row],[1]:[31]],Cod_1)","v":0},{"$f":"COUNTIF(PrezențăFebruarie[[#This Row],[1]:[31]],Cod_2)","v":0},{"$f":"COUNTIF(PrezențăFebruarie[[#This Row],[1]:[31]],Cod_3)","v":0},{"$f":"COUNTIF(PrezențăFebruarie[[#This Row],[1]:[31]],Cod_4)","v":0},{"$f":"SUM(PrezențăFebruarie[[#This Row],[M]:[N]])","v":0}]
[null,null,{"$f":"IFERROR(VLOOKUP(PrezențăFebruarie[[#This Row],[ID elev]],ListăElevi[],18,FALSE),\"\")","v":""},{"$nulls":31},{"$f":"COUNTIF(PrezențăFebruarie[[#This Row],[1]:[31]],Cod_1)","v":0},{"$f":"COUNTIF(PrezențăFebruarie[[#This Row],[1]:[31]],Cod_2)","v":0},{"$f":"COUNTIF(PrezențăFebruarie[[#This Row],[1]:[31]],Cod_3)","v":0},{"$f":"COUNTIF(PrezențăFebruarie[[#This Row],[1]:[31]],Cod_4)","v":0},{"$f":"SUM(PrezențăFebruarie[[#This Row],[M]:[N]])","v":0}]
[null,null,{"$f":"IFERROR(VLOOKUP(PrezențăFebruarie[[#This Row],[ID elev]],ListăElevi[],18,FALSE),\"\")","v":""},{"$nulls":31},{"$f":"COUNTIF(PrezențăFebruarie[[#This Row],[1]:[31]],Cod_1)","v":0},{"$f":"COUNTIF(PrezențăFebruarie[[#This Row],[1]:[31]],Cod_2)","v":0},{"$f":"COUNTIF(PrezențăFebruarie[[#This Row],[1]:[31]],Cod_3)","v":0},{"$f":"COUNTIF(PrezențăFebruarie[[#This Row],[1]:[31]],Cod_4)","v":0},{"$f":"SUM(PrezențăFebruarie[[#This Row],[M]:[N]])","v":0}]
[null,null,{"$f":"IFERROR(VLOOKUP(PrezențăFebruarie[[#This Row],[ID elev]],ListăElevi[],18,FALSE),\"\")","v":""},{"$nulls":31},{"$f":"COUNTIF(PrezențăFebruarie[[#This Row],[1]:[31]],Cod_1)","v":0},{"$f":"COUNTIF(PrezențăFebruarie[[#This Row],[1]:[31]],Cod_2)","v":0},{"$f":"COUNTIF(PrezențăFebruarie[[#This Row],[1]:[31]],Cod_3)","v":0},{"$f":"COUNTIF(PrezențăFebruarie[[#This Row],[1]:[31]],Cod_4)","v":0},{"$f":"SUM(PrezențăFebruarie[[#This Row],[M]:[N]])","v":0}]
[null,null,"Numărul total de zile de absență",{"$f":"COUNTIF(PrezențăFebruarie[1],\"N\")+COUNTIF(PrezențăFebruarie[1],\"M\")","v":0},{"$f":"COUNTIF(PrezențăFebruarie[2],\"N\")+COUNTIF(PrezențăFebruarie[2],\"M\")","v":0},{"$f":"COUNTIF(PrezențăFebruarie[3],\"N\")+COUNTIF(PrezențăFebruarie[3],\"M\")","v":0},{"$f":"COUNTIF(PrezențăFebruarie[4],\"N\")+COUNTIF(PrezențăFebruarie[4],\"M\")","v":0},{"$f":"COUNTIF(PrezențăFebruarie[5],\"N\")+COUNTIF(PrezențăFebruarie[5],\"M\")","v":0},{"$f":"COUNTIF(PrezențăFebruarie[6],\"N\")+COUNTIF(PrezențăFebruarie[6],\"M\")","v":0},{"$f":"COUNTIF(PrezențăFebruarie[7],\"N\")+COUNTIF(PrezențăFebruarie[7],\"M\")","v":0},{"$f":"COUNTIF(PrezențăFebruarie[8],\"N\")+COUNTIF(PrezențăFebruarie[8],\"M\")","v":0},{"$f":"COUNTIF(PrezențăFebruarie[9],\"N\")+COUNTIF(PrezențăFebruarie[9],\"M\")","v":0},{"$f":"COUNTIF(PrezențăFebruarie[10],\"N\")+COUNTIF(PrezențăFebruarie[10],\"M\")","v":0},{"$f":"COUNTIF(PrezențăFebruarie[11],\"N\")+COUNTIF(PrezențăFebruarie[11],\"M\")","v":0},{"$f":"COUNTIF(PrezențăFebruarie[12],\"N\")+COUNTIF(PrezențăFebruarie[12],\"M\")","v":0},{"$f":"COUNTIF(PrezențăFebruarie[13],\"N\")+COUNTIF(PrezențăFebruarie[13],\"M\")","v":0},{"$f":"COUNTIF(PrezențăFebruarie[14],\"N\")+COUNTIF(PrezențăFebruarie[14],\"M\")","v":0},{"$f":"COUNTIF(PrezențăFebruarie[15],\"N\")+COUNTIF(PrezențăFebruarie[15],\"M\")","v":0},{"$f":"COUNTIF(PrezențăFebruarie[16],\"N\")+COUNTIF(PrezențăFebruarie[16],\"M\")","v":0},{"$f":"COUNTIF(PrezențăFebruarie[17],\"N\")+COUNTIF(PrezențăFebruarie[17],\"M\")","v":0},{"$f":"COUNTIF(PrezențăFebruarie[18],\"N\")+COUNTIF(PrezențăFebruarie[18],\"M\")","v":0},{"$f":"COUNTIF(PrezențăFebruarie[19],\"N\")+COUNTIF(PrezențăFebruarie[19],\"M\")","v":0},{"$f":"COUNTIF(PrezențăFebruarie[20],\"N\")+COUNTIF(PrezențăFebruarie[20],\"M\")","v":0},{"$f":"COUNTIF(PrezențăFebruarie[21],\"N\")+COUNTIF(PrezențăFebruarie[21],\"M\")","v":0},{"$f":"COUNTIF(PrezențăFebruarie[22],\"N\")+COUNTIF(PrezențăFebruarie[22],\"M\")","v":0},{"$f":"COUNTIF(PrezențăFebruarie[23],\"N\")+COUNTIF(PrezențăFebruarie[23],\"M\")","v":0},{"$f":"COUNTIF(PrezențăFebruarie[24],\"N\")+COUNTIF(PrezențăFebruarie[24],\"M\")","v":0},{"$f":"COUNTIF(PrezențăFebruarie[25],\"N\")+COUNTIF(PrezențăFebruarie[25],\"M\")","v":0},{"$f":"COUNTIF(PrezențăFebruarie[26],\"N\")+COUNTIF(PrezențăFebruarie[26],\"M\")","v":0},{"$f":"COUNTIF(PrezențăFebruarie[27],\"N\")+COUNTIF(PrezențăFebruarie[27],\"M\")","v":0},{"$f":"COUNTIF(PrezențăFebruarie[28],\"N\")+COUNTIF(PrezențăFebruarie[28],\"M\")","v":0},{"$f":"COUNTIF(PrezențăFebruarie[29],\"N\")+COUNTIF(PrezențăFebruarie[29],\"M\")","v":0},null,null,{"$f":"SUBTOTAL(109,PrezențăFebruarie[Î])","v":0},{"$f":"SUBTOTAL(109,PrezențăFebruarie[M])","v":0},{"$f":"SUBTOTAL(109,PrezențăFebruarie[N])","v":0},{"$f":"SUBTOTAL(109,PrezențăFebruarie[P])","v":0},{"$f":"SUBTOTAL(109,PrezențăFebruarie[Zile de absență])","v":0}]

{"sheet":"Martie","index":9,"n_rows":12,"n_cols":39,"rows_kept":12,"merged":[[4,34,4,38]]}
["CARNET DE PREZENȚE ELEV",{"$nulls":36},"Anul școlar începe:",{"$f":"AnCalendar","v":2012}]
[]
[null,null,{"$f":"CheieCuloareText","v":"CHEIE CULORI"},{"$f":"Cod_1","v":"Î"},{"$f":"Cod1Text","v":"Întârziat"},null,null,{"$f":"Cod_2","v":"M"},{"$f":"Cod2Text","v":"Motivat"},null,null,{"$f":"Cod_3","v":"N"},{"$f":"Cod3Text","v":"Nemotivat"},null,null,{"$f":"Cod_4","v":"P"},{"$f":"Cod4Text","v":"Prezent"},null,null,{"$f":"Cod_5","v":"Nu"},{"$f":"Cod5Text","v":"Nu a fost la școală"}]
[]
[null,{"$f":"DATE(AnCalendar+1,3,1)","v":"2013-03-01"},null,{"$f":"TEXT(WEEKDAY(DATE(AnCalendar+1,3,1),1),\"aaa\")","v":"V"},{"$f":"TEXT(WEEKDAY(DATE(AnCalendar+1,3,2),1),\"aaa\")","v":"S"},{"$f":"TEXT(WEEKDAY(DATE(AnCalendar+1,3,3),1),\"aaa\")","v":"D"},{"$f":"TEXT(WEEKDAY(DATE(AnCalendar+1,3,4),1),\"aaa\")","v":"L"},{"$f":"TEXT(WEEKDAY(DATE(AnCalendar+1,3,5),1),\"aaa\")","v":"Ma"},{"$f":"TEXT(WEEKDAY(DATE(AnCalendar+1,3,6),1),\"aaa\")","v":"Mi"},{"$f":"TEXT(WEEKDAY(DATE(AnCalendar+1,3,7),1),\"aaa\")","v":"J"},{"$f":"TEXT(WEEKDAY(DATE(AnCalendar+1,3,8),1),\"aaa\")","v":"V"},{"$f":"TEXT(WEEKDAY(DATE(AnCalendar+1,3,9),1),\"aaa\")","v":"S"},{"$f":"TEXT(WEEKDAY(DATE(AnCalendar+1,3,10),1),\"aaa\")","v":"D"},{"$f":"TEXT(WEEKDAY(DATE(AnCalendar+1,3,11),1),\"aaa\")","v":"L"},{"$f":"TEXT(WEEKDAY(DATE(AnCalendar+1,3,12),1),\"aaa\")","v":"Ma"},{"$f":"TEXT(WEEKDAY(DATE(AnCalendar+1,3,13),1),\"aaa\")","v":"Mi"},{"$f":"TEXT(WEEKDAY(DATE(AnCalendar+1,3,14),1),\"aaa\")","v":"J"},{"$f":"TEXT(WEEKDAY(DATE(AnCalendar+1,3,15),1),\"aaa\")","v":"V"},{"$f":"TEXT(WEEKDAY(DATE(AnCalendar+1,3,16),1),\"aaa\")","v":"S"},{"$f":"TEXT(WEEKDAY(DATE(AnCalendar+1,3,17),1),\"aaa\")","v":"D"},{"$f":"TEXT(WEEKDAY(DATE(AnCalendar+1,3,18),1),\"aaa\")","v":"L"},{"$f":"TEXT(WEEKDAY(DATE(AnCalendar+1,3,19),1),\"aaa\")","v":"Ma"},{"$f":"TEXT(WEEKDAY(DATE(AnCalendar+1,3,20),1),\"aaa\")","v":"Mi"},{"$f":"TEXT(WEEKDAY(DATE(AnCalendar+1,3,21),1),\"aaa\")","v":"J"},{"$f":"TEXT(WEEKDAY(DATE(AnCalendar+1,3,22),1),\"aaa\")","v":"V"},{"$f":"TEXT(WEEKDAY(DATE(AnCalendar+1,3,23),1),\"aaa\")","v":"S"},{"$f":"TEXT(WEEKDAY(DATE(AnCalendar+1,3,24),1),\"aaa\")","v":"D"},{"$f":"TEXT(WEEKDAY(DATE(AnCalendar+1,3,25),1),\"aaa\")","v":"L"},{"$f":"TEXT(WEEKDAY(DATE(AnCalendar+1,3,26),1),\"aaa\")","v":"Ma"},{"$f":"TEXT(WEEKDAY(DATE(AnCalendar+1,3,27),1),\"aaa\")","v":"Mi"},{"$f":"TEXT(WEEKDAY(DATE(AnCalendar+1,3,28),1),\"aaa\")","v":"J"},{"$f":"TEXT(WEEKDAY(DATE(AnCalendar+1,3,29),1),\"aaa\")","v":"V"},{"$f":"TEXT(WEEKDAY(DATE(AnCalendar+1,3,30),1),\"aaa\")","v":"S"},{"$f":"TEXT(WEEKDAY(DATE(AnCalendar+1,3,31),1),\"aaa\")","v":"D"},"Total"]
[null,"ID elev","Nume elev","1","2","3","4","5","6","7","8","9","10","11","12","13","14","15","16","17","18","19","20","21","22","23","24","25","26","27","28","29","30","31","Î","M","N","P","Zile de absență"]
[null,null,{"$f":"IFERROR(VLOOKUP(PrezențăMartie[[#This Row],[ID elev]],ListăElevi[],18,FALSE),\"\")","v":""},{"$nulls":31},{"$f":"COUNTIF(PrezențăMartie[[#This Row],[1]:[31]],Cod_1)","v":0},{"$f":"COUNTIF(PrezențăMartie[[#This Row],[1]:[31]],Cod_2)","v":0},{"$f":"COUNTIF(PrezențăMartie[[#This Row],[1]:[31]],Cod_3)","v":0},{"$f":"COUNTIF(PrezențăMartie[[#This Row],[1]:[31]],Cod_4)","v":0},{"$f":"SUM(PrezențăMartie[[#This Row],[M]:[N]])","v":0}]
[null,null,{"$f":"IFERROR(VLOOKUP(PrezențăMartie[[#This Row],[ID elev]],ListăElevi[],18,FALSE),\"\")","v":""},{"$nulls":31},{"$f":"COUNTIF(PrezențăMartie[[#This Row],[1]:[31]],Cod_1)","v":0},{"$f":"COUNTIF(PrezențăMartie[[#This Row],[1]:[31]],Cod_2)","v":0},{"$f":"COUNTIF(PrezențăMartie[[#This Row],[1]:[31]],Cod_3)","v":0},{"$f":"COUNTIF(PrezențăMartie[[#This Row],[1]:[31]],Cod_4)","v":0},{"$f":"SUM(PrezențăMartie[[#This Row],[M]:[N]])","v":0}]
[null,null,{"$f":"IFERROR(VLOOKUP(PrezențăMartie[[#This Row],[ID elev]],ListăElevi[],18,FALSE),\"\")","v":""},{"$nulls":31},{"$f":"COUNTIF(PrezențăMartie[[#This Row],[1]:[31]],Cod_1)","v":0},{"$f":"COUNTIF(PrezențăMartie[[#This Row],[1]:[31]],Cod_2)","v":0},{"$f":"COUNTIF(PrezențăMartie[[#This Row],[1]:[31]],Cod_3)","v":0},{"$f":"COUNTIF(PrezențăMartie[[#This Row],[1]:[31]],Cod_4)","v":0},{"$f":"SUM(PrezențăMartie[[#This Row],[M]:[N]])","v":0}]
[null,null,{"$f":"IFERROR(VLOOKUP(PrezențăMartie[[#This Row],[ID elev]],ListăElevi[],18,FALSE),\"\")","v":""},{"$nulls":31},{"$f":"COUNTIF(PrezențăMartie[[#This Row],[1]:[31]],Cod_1)","v":0},{"$f":"COUNTIF(PrezențăMartie[[#This Row],[1]:[31]],Cod_2)","v":0},{"$f":"COUNTIF(PrezențăMartie[[#This Row],[1]:[31]],Cod_3)","v":0},{"$f":"COUNTIF(PrezențăMartie[[#This Row],[1]:[31]],Cod_4)","v":0},{"$f":"SUM(PrezențăMartie[[#This Row],[M]:[N]])","v":0}]
[null,null,{"$f":"IFERROR(VLOOKUP(PrezențăMartie[[#This Row],[ID elev]],ListăElevi[],18,FALSE),\"\")","v":""},{"$nulls":31},{"$f":"COUNTIF(PrezențăMartie[[#This Row],[1]:[31]],Cod_1)","v":0},{"$f":"COUNTIF(PrezențăMartie[[#This Row],[1]:[31]],Cod_2)","v":0},{"$f":"COUNTIF(PrezențăMartie[[#This Row],[1]:[31]],Cod_3)","v":0},{"$f":"COUNTIF(PrezențăMartie[[#This Row],[1]:[31]],Cod_4)","v":0},{"$f":"SUM(PrezențăMartie[[#This Row],[M]:[N]])","v":0}]
[null,null,"Numărul total de zile de absență",{"$f":"COUNTIF(PrezențăMartie[1],\"N\")+COUNTIF(PrezențăMartie[1],\"M\")","v":0},{"$f":"COUNTIF(PrezențăMartie[2],\"N\")+COUNTIF(PrezențăMartie[2],\"M\")","v":0},{"$f":"COUNTIF(PrezențăMartie[3],\"N\")+COUNTIF(PrezențăMartie[3],\"M\")","v":0},{"$f":"COUNTIF(PrezențăMartie[4],\"N\")+COUNTIF(PrezențăMartie[4],\"M\")","v":0},{"$f":"COUNTIF(PrezențăMartie[5],\"N\")+COUNTIF(PrezențăMartie[5],\"M\")","v":0},{"$f":"COUNTIF(PrezențăMartie[6],\"N\")+COUNTIF(PrezențăMartie[6],\"M\")","v":0},{"$f":"COUNTIF(PrezențăMartie[7],\"N\")+COUNTIF(PrezențăMartie[7],\"M\")","v":0},{"$f":"COUNTIF(PrezențăMartie[8],\"N\")+COUNTIF(PrezențăMartie[8],\"M\")","v":0},{"$f":"COUNTIF(PrezențăMartie[9],\"N\")+COUNTIF(PrezențăMartie[9],\"M\")","v":0},{"$f":"COUNTIF(PrezențăMartie[10],\"N\")+COUNTIF(PrezențăMartie[10],\"M\")","v":0},{"$f":"COUNTIF(PrezențăMartie[11],\"N\")+COUNTIF(PrezențăMartie[11],\"M\")","v":0},{"$f":"COUNTIF(PrezențăMartie[12],\"N\")+COUNTIF(PrezențăMartie[12],\"M\")","v":0},{"$f":"COUNTIF(PrezențăMartie[13],\"N\")+COUNTIF(PrezențăMartie[13],\"M\")","v":0},{"$f":"COUNTIF(PrezențăMartie[14],\"N\")+COUNTIF(PrezențăMartie[14],\"M\")","v":0},{"$f":"COUNTIF(PrezențăMartie[15],\"N\")+COUNTIF(PrezențăMartie[15],\"M\")","v":0},{"$f":"COUNTIF(PrezențăMartie[16],\"N\")+COUNTIF(PrezențăMartie[16],\"M\")","v":0},{"$f":"COUNTIF(PrezențăMartie[17],\"N\")+COUNTIF(PrezențăMartie[17],\"M\")","v":0},{"$f":"COUNTIF(PrezențăMartie[18],\"N\")+COUNTIF(PrezențăMartie[18],\"M\")","v":0},{"$f":"COUNTIF(PrezențăMartie[19],\"N\")+COUNTIF(PrezențăMartie[19],\"M\")","v":0},{"$f":"COUNTIF(PrezențăMartie[20],\"N\")+COUNTIF(PrezențăMartie[20],\"M\")","v":0},{"$f":"COUNTIF(PrezențăMartie[21],\"N\")+COUNTIF(PrezențăMartie[21],\"M\")","v":0},{"$f":"COUNTIF(PrezențăMartie[22],\"N\")+COUNTIF(PrezențăMartie[22],\"M\")","v":0},{"$f":"COUNTIF(PrezențăMartie[23],\"N\")+COUNTIF(PrezențăMartie[23],\"M\")","v":0},{"$f":"COUNTIF(PrezențăMartie[24],\"N\")+COUNTIF(PrezențăMartie[24],\"M\")","v":0},{"$f":"COUNTIF(PrezențăMartie[25],\"N\")+COUNTIF(PrezențăMartie[25],\"M\")","v":0},{"$f":"COUNTIF(PrezențăMartie[26],\"N\")+COUNTIF(PrezențăMartie[26],\"M\")","v":0},{"$f":"COUNTIF(PrezențăMartie[27],\"N\")+COUNTIF(PrezențăMartie[27],\"M\")","v":0},{"$f":"COUNTIF(PrezențăMartie[28],\"N\")+COUNTIF(PrezențăMartie[28],\"M\")","v":0},{"$f":"COUNTIF(PrezențăMartie[29],\"N\")+COUNTIF(PrezențăMartie[29],\"M\")","v":0},null,null,{"$f":"SUBTOTAL(109,PrezențăMartie[Î])","v":0},{"$f":"SUBTOTAL(109,PrezențăMartie[M])","v":0},{"$f":"SUBTOTAL(109,PrezențăMartie[N])","v":0},{"$f":"SUBTOTAL(109,PrezențăMartie[P])","v":0},{"$f":"SUBTOTAL(109,PrezențăMartie[Zile de absență])","v":0}]

{"sheet":"Aprilie","index":10,"n_rows":12,"n_cols":39,"rows_kept":12,"merged":[[4,34,4,38]]}
["CARNET DE PREZENȚE ELEV",{"$nulls":36},"Anul școlar începe:",{"$f":"AnCalendar","v":2012}]
[]
[null,null,{"$f":"CheieCuloareText","v":"CHEIE CULORI"},{"$f":"Cod_1","v":"Î"},{"$f":"Cod1Text","v":"Întârziat"},null,null,{"$f":"Cod_2","v":"M"},{"$f":"Cod2Text","v":"Motivat"},null,null,{"$f":"Cod_3","v":"N"},{"$f":"Cod3Text","v":"Nemotivat"},null,null,{"$f":"Cod_4","v":"P"},{"$f":"Cod4Text","v":"Prezent"},null,null,{"$f":"Cod_5","v":"Nu"},{"$f":"Cod5Text","v":"Nu a fost la școală"}]
[]
[null,{"$f":"DATE(AnCalendar+1,4,1)","v":"2013-04-01"},null,{"$f":"TEXT(WEEKDAY(DATE(AnCalendar+1,4,1),1),\"aaa\")","v":"L"},{"$f":"TEXT(WEEKDAY(DATE(AnCalendar+1,4,2),1),\"aaa\")","v":"Ma"},{"$f":"TEXT(WEEKDAY(DATE(AnCalendar+1,4,3),1),\"aaa\")","v":"Mi"},{"$f":"TEXT(WEEKDAY(DATE(AnCalendar+1,4,4),1),\"aaa\")","v":"J"},{"$f":"TEXT(WEEKDAY(DATE(AnCalendar+1,4,5),1),\"aaa\")","v":"V"},{"$f":"TEXT(WEEKDAY(DATE(AnCalendar+1,4,6),1),\"aaa\")","v":"S"},{"$f":"TEXT(WEEKDAY(DATE(AnCalendar+1,4,7),1),\"aaa\")","v":"D"},{"$f":"TEXT(WEEKDAY(DATE(AnCalendar+1,4,8),1),\"aaa\")","v":"L"},{"$f":"TEXT(WEEKDAY(DATE(AnCalendar+1,4,9),1),\"aaa\")","v":"Ma"},{"$f":"TEXT(WEEKDAY(DATE(AnCalendar+1,4,10),1),\"aaa\")","v":"Mi"},{"$f":"TEXT(WEEKDAY(DATE(AnCalendar+1,4,11),1),\"aaa\")","v":"J"},{"$f":"TEXT(WEEKDAY(DATE(AnCalendar+1,4,12),1),\"aaa\")","v":"V"},{"$f":"TEXT(WEEKDAY(DATE(AnCalendar+1,4,13),1),\"aaa\")","v":"S"},{"$f":"TEXT(WEEKDAY(DATE(AnCalendar+1,4,14),1),\"aaa\")","v":"D"},{"$f":"TEXT(WEEKDAY(DATE(AnCalendar+1,4,15),1),\"aaa\")","v":"L"},{"$f":"TEXT(WEEKDAY(DATE(AnCalendar+1,4,16),1),\"aaa\")","v":"Ma"},{"$f":"TEXT(WEEKDAY(DATE(AnCalendar+1,4,17),1),\"aaa\")","v":"Mi"},{"$f":"TEXT(WEEKDAY(DATE(AnCalendar+1,4,18),1),\"aaa\")","v":"J"},{"$f":"TEXT(WEEKDAY(DATE(AnCalendar+1,4,19),1),\"aaa\")","v":"V"},{"$f":"TEXT(WEEKDAY(DATE(AnCalendar+1,4,20),1),\"aaa\")","v":"S"},{"$f":"TEXT(WEEKDAY(DATE(AnCalendar+1,4,21),1),\"aaa\")","v":"D"},{"$f":"TEXT(WEEKDAY(DATE(AnCalendar+1,4,22),1),\"aaa\")","v":"L"},{"$f":"TEXT(WEEKDAY(DATE(AnCalendar+1,4,23),1),\"aaa\")","v":"Ma"},{"$f":"TEXT(WEEKDAY(DATE(AnCalendar+1,4,24),1),\"aaa\")","v":"Mi"},{"$f":"TEXT(WEEKDAY(DATE(AnCalendar+1,4,25),1),\"aaa\")","v":"J"},{"$f":"TEXT(WEEKDAY(DATE(AnCalendar+1,4,26),1),\"aaa\")","v":"V"},{"$f":"TEXT(WEEKDAY(DATE(AnCalendar+1,4,27),1),\"aaa\")","v":"S"},{"$f":"TEXT(WEEKDAY(DATE(AnCalendar+1,4,28),1),\"aaa\")","v":"D"},{"$f":"TEXT(WEEKDAY(DATE(AnCalendar+1,4,29),1),\"aaa\")","v":"L"},{"$f":"TEXT(WEEKDAY(DATE(AnCalendar+1,4,30),1),\"aaa\")","v":"Ma"},null,"Total"]
[null,"ID elev","Nume elev","1","2","3","4","5","6","7","8","9","10","11","12","13","14","15","16","17","18","19","20","21","22","23","24","25","26","27","28","29","30"," ","Î","M","N","P","Zile de absență"]
[null,null,{"$f":"IFERROR(VLOOKUP(PrezențăAprilie[[#This Row],[ID elev]],ListăElevi[],18,FALSE),\"\")","v":""},{"$nulls":31},{"$f":"COUNTIF(PrezențăAprilie[[#This Row],[1]:[ ]],Cod_1)","v":0},{"$f":"COUNTIF(PrezențăAprilie[[#This Row],[1]:[ ]],Cod_2)","v":0},{"$f":"COUNTIF(PrezențăAprilie[[#This Row],[1]:[ ]],Cod_3)","v":0},{"$f":"COUNTIF(PrezențăAprilie[[#This Row],[1]:[ ]],Cod_4)","v":0},{"$f":"SUM(PrezențăAprilie[[#This Row],[M]:[N]])","v":0}]
[null,null,{"$f":"IFERROR(VLOOKUP(PrezențăAprilie[[#This Row],[ID elev]],ListăElevi[],18,FALSE),\"\")","v":""},{"$nulls":31},{"$f":"COUNTIF(PrezențăAprilie[[#This Row],[1]:[ ]],Cod_1)","v":0},{"$f":"COUNTIF(PrezențăAprilie[[#This Row],[1]:[ ]],Cod_2)","v":0},{"$f":"COUNTIF(PrezențăAprilie[[#This Row],[1]:[ ]],Cod_3)","v":0},{"$f":"COUNTIF(PrezențăAprilie[[#This Row],[1]:[ ]],Cod_4)","v":0},{"$f":"SUM(PrezențăAprilie[[#This Row],[M]:[N]])","v":0}]
[null,null,{"$f":"IFERROR(VLOOKUP(PrezențăAprilie[[#This Row],[ID elev]],ListăElevi[],18,FALSE),\"\")","v":""},{"$nulls":31},{"$f":"COUNTIF(PrezențăAprilie[[#This Row],[1]:[ ]],Cod_1)","v":0},{"$f":"COUNTIF(PrezențăAprilie[[#This Row],[1]:[ ]],Cod_2)","v":0},{"$f":"COUNTIF(PrezențăAprilie[[#This Row],[1]:[ ]],Cod_3)","v":0},{"$f":"COUNTIF(PrezențăAprilie[[#This Row],[1]:[ ]],Cod_4)","v":0},{"$f":"SUM(PrezențăAprilie[[#This Row],[M]:[N]])","v":0}]
[null,null,{"$f":"IFERROR(VLOOKUP(PrezențăAprilie[[#This Row],[ID elev]],ListăElevi[],18,FALSE),\"\")","v":""},{"$nulls":31},{"$f":"COUNTIF(PrezențăAprilie[[#This Row],[1]:[ ]],Cod_1)","v":0},{"$f":"COUNTIF(PrezențăAprilie[[#This Row],[1]:[ ]],Cod_2)","v":0},{"$f":"COUNTIF(PrezențăAprilie[[#This Row],[1]:[ ]],Cod_3)","v":0},{"$f":"COUNTIF(PrezențăAprilie[[#This Row],[1]:[ ]],Cod_4)","v":0},{"$f":"SUM(PrezențăAprilie[[#This Row],[M]:[N]])","v":0}]
[null,null,{"$f":"IFERROR(VLOOKUP(PrezențăAprilie[[#This Row],[ID elev]],ListăElevi[],18,FALSE),\"\")","v":""},{"$nulls":31},{"$f":"COUNTIF(PrezențăAprilie[[#This Row],[1]:[ ]],Cod_1)","v":0},{"$f":"COUNTIF(PrezențăAprilie[[#This Row],[1]:[ ]],Cod_2)","v":0},{"$f":"COUNTIF(PrezențăAprilie[[#This Row],[1]:[ ]],Cod_3)","v":0},{"$f":"COUNTIF(PrezențăAprilie[[#This Row],[1]:[ ]],Cod_4)","v":0},{"$f":"SUM(PrezențăAprilie[[#This Row],[M]:[N]])","v":0}]
[null,null,"Numărul total de zile de absență",{"$f":"COUNTIF(PrezențăAprilie[1],\"N\")+COUNTIF(PrezențăAprilie[1],\"M\")","v":0},{"$f":"COUNTIF(PrezențăAprilie[2],\"N\")+COUNTIF(PrezențăAprilie[2],\"M\")","v":0},{"$f":"COUNTIF(PrezențăAprilie[3],\"N\")+COUNTIF(PrezențăAprilie[3],\"M\")","v":0},{"$f":"COUNTIF(PrezențăAprilie[4],\"N\")+COUNTIF(PrezențăAprilie[4],\"M\")","v":0},{"$f":"COUNTIF(PrezențăAprilie[5],\"N\")+COUNTIF(PrezențăAprilie[5],\"M\")","v":0},{"$f":"COUNTIF(PrezențăAprilie[6],\"N\")+COUNTIF(PrezențăAprilie[6],\"M\")","v":0},{"$f":"COUNTIF(PrezențăAprilie[7],\"N\")+COUNTIF(PrezențăAprilie[7],\"M\")","v":0},{"$f":"COUNTIF(PrezențăAprilie[8],\"N\")+COUNTIF(PrezențăAprilie[8],\"M\")","v":0},{"$f":"COUNTIF(PrezențăAprilie[9],\"N\")+COUNTIF(PrezențăAprilie[9],\"M\")","v":0},{"$f":"COUNTIF(PrezențăAprilie[10],\"N\")+COUNTIF(PrezențăAprilie[10],\"M\")","v":0},{"$f":"COUNTIF(PrezențăAprilie[11],\"N\")+COUNTIF(PrezențăAprilie[11],\"M\")","v":0},{"$f":"COUNTIF(PrezențăAprilie[12],\"N\")+COUNTIF(PrezențăAprilie[12],\"M\")","v":0},{"$f":"COUNTIF(PrezențăAprilie[13],\"N\")+COUNTIF(PrezențăAprilie[13],\"M\")","v":0},{"$f":"COUNTIF(PrezențăAprilie[14],\"N\")+COUNTIF(PrezențăAprilie[14],\"M\")","v":0},{"$f":"COUNTIF(PrezențăAprilie[15],\"N\")+COUNTIF(PrezențăAprilie[15],\"M\")","v":0},{"$f":"COUNTIF(PrezențăAprilie[16],\"N\")+COUNTIF(PrezențăAprilie[16],\"M\")","v":0},{"$f":"COUNTIF(PrezențăAprilie[17],\"N\")+COUNTIF(PrezențăAprilie[17],\"M\")","v":0},{"$f":"COUNTIF(PrezențăAprilie[18],\"N\")+COUNTIF(PrezențăAprilie[18],\"M\")","v":0},{"$f":"COUNTIF(PrezențăAprilie[19],\"N\")+COUNTIF(PrezențăAprilie[19],\"M\")","v":0},{"$f":"COUNTIF(PrezențăAprilie[20],\"N\")+COUNTIF(PrezențăAprilie[20],\"M\")","v":0},{"$f":"COUNTIF(PrezențăAprilie[21],\"N\")+COUNTIF(PrezențăAprilie[21],\"M\")","v":0},{"$f":"COUNTIF(PrezențăAprilie[22],\"N\")+COUNTIF(PrezențăAprilie[22],\"M\")","v":0},{"$f":"COUNTIF(PrezențăAprilie[23],\"N\")+COUNTIF(PrezențăAprilie[23],\"M\")","v":0},{"$f":"COUNTIF(PrezențăAprilie[24],\"N\")+COUNTIF(PrezențăAprilie[24],\"M\")","v":0},{"$f":"COUNTIF(PrezențăAprilie[25],\"N\")+COUNTIF(PrezențăAprilie[25],\"M\")","v":0},{"$f":"COUNTIF(PrezențăAprilie[26],\"N\")+COUNTIF(PrezențăAprilie[26],\"M\")","v":0},{"$f":"COUNTIF(PrezențăAprilie[27],\"N\")+COUNTIF(PrezențăAprilie[27],\"M\")","v":0},{"$f":"COUNTIF(PrezențăAprilie[28],\"N\")+COUNTIF(PrezențăAprilie[28],\"M\")","v":0},{"$f":"COUNTIF(PrezențăAprilie[29],\"N\")+COUNTIF(PrezențăAprilie[29],\"M\")","v":0},null,null,{"$f":"SUBTOTAL(109,PrezențăAprilie[Î])","v":0},{"$f":"SUBTOTAL(109,PrezențăAprilie[M])","v":0},{"$f":"SUBTOTAL(109,PrezențăAprilie[N])","v":0},{"$f":"SUBTOTAL(109,PrezențăAprilie[P])","v":0},{"$f":"SUBTOTAL(109,PrezențăAprilie[Zile de absență])","v":0}]

{"sheet":"Mai","index":11,"n_rows":12,"n_cols":39,"rows_kept":12,"merged":[[4,34,4,38]]}
["CARNET DE PREZENȚE ELEV",{"$nulls":36},"Anul școlar începe:",{"$f":"AnCalendar","v":2012}]
[]
[null,null,{"$f":"CheieCuloareText","v":"CHEIE CULORI"},{"$f":"Cod_1","v":"Î"},{"$f":"Cod1Text","v":"Întârziat"},null,null,{"$f":"Cod_2","v":"M"},{"$f":"Cod2Text","v":"Motivat"},null,null,{"$f":"Cod_3","v":"N"},{"$f":"Cod3Text","v":"Nemotivat"},null,null,{"$f":"Cod_4","v":"P"},{"$f":"Cod4Text","v":"Prezent"},null,null,{"$f":"Cod_5","v":"Nu"},{"$f":"Cod5Text","v":"Nu a fost la școală"}]
[]
[null,{"$f":"DATE(AnCalendar+1,5,1)","v":"2013-05-01"},null,{"$f":"TEXT(WEEKDAY(DATE(AnCalendar+1,5,1),1),\"aaa\")","v":"Mi"},{"$f":"TEXT(WEEKDAY(DATE(AnCalendar+1,5,2),1),\"aaa\")","v":"J"},{"$f":"TEXT(WEEKDAY(DATE(AnCalendar+1,5,3),1),\"aaa\")","v":"V"},{"$f":"TEXT(WEEKDAY(DATE(AnCalendar+1,5,4),1),\"aaa\")","v":"S"},{"$f":"TEXT(WEEKDAY(DATE(AnCalendar+1,5,5),1),\"aaa\")","v":"D"},{"$f":"TEXT(WEEKDAY(DATE(AnCalendar+1,5,6),1),\"aaa\")","v":"L"},{"$f":"TEXT(WEEKDAY(DATE(AnCalendar+1,5,7),1),\"aaa\")","v":"Ma"},{"$f":"TEXT(WEEKDAY(DATE(AnCalendar+1,5,8),1),\"aaa\")","v":"Mi"},{"$f":"TEXT(WEEKDAY(DATE(AnCalendar+1,5,9),1),\"aaa\")","v":"J"},{"$f":"TEXT(WEEKDAY(DATE(AnCalendar+1,5,10),1),\"aaa\")","v":"V"},{"$f":"TEXT(WEEKDAY(DATE(AnCalendar+1,5,11),1),\"aaa\")","v":"S"},{"$f":"TEXT(WEEKDAY(DATE(AnCalendar+1,5,12),1),\"aaa\")","v":"D"},{"$f":"TEXT(WEEKDAY(DATE(AnCalendar+1,5,13),1),\"aaa\")","v":"L"},{"$f":"TEXT(WEEKDAY(DATE(AnCalendar+1,5,14),1),\"aaa\")","v":"Ma"},{"$f":"TEXT(WEEKDAY(DATE(AnCalendar+1,5,15),1),\"aaa\")","v":"Mi"},{"$f":"TEXT(WEEKDAY(DATE(AnCalendar+1,5,16),1),\"aaa\")","v":"J"},{"$f":"TEXT(WEEKDAY(DATE(AnCalendar+1,5,17),1),\"aaa\")","v":"V"},{"$f":"TEXT(WEEKDAY(DATE(AnCalendar+1,5,18),1),\"aaa\")","v":"S"},{"$f":"TEXT(WEEKDAY(DATE(AnCalendar+1,5,19),1),\"aaa\")","v":"D"},{"$f":"TEXT(WEEKDAY(DATE(AnCalendar+1,5,20),1),\"aaa\")","v":"L"},{"$f":"TEXT(WEEKDAY(DATE(AnCalendar+1,5,21),1),\"aaa\")","v":"Ma"},{"$f":"TEXT(WEEKDAY(DATE(AnCalendar+1,5,22),1),\"aaa\")","v":"Mi"},{"$f":"TEXT(WEEKDAY(DATE(AnCalendar+1,5,23),1),\"aaa\")","v":"J"},{"$f":"TEXT(WEEKDAY(DATE(AnCalendar+1,5,24),1),\"aaa\")","v":"V"},{"$f":"TEXT(WEEKDAY(DATE(AnCalendar+1,5,25),1),\"aaa\")","v":"S"},{"$f":"TEXT(WEEKDAY(DATE(AnCalendar+1,5,26),1),\"aaa\")","v":"D"},{"$f":"TEXT(WEEKDAY(DATE(AnCalendar+1,5,27),1),\"aaa\")","v":"L"},{"$f":"TEXT(WEEKDAY(DATE(AnCalendar+1,5,28),1),\"aaa\")","v":"Ma"},{"$f":"TEXT(WEEKDAY(DATE(AnCalendar+1,5,29),1),\"aaa\")","v":"Mi"},{"$f":"TEXT(WEEKDAY(DATE(AnCalendar+1,5,30),1),\"aaa\")","v":"J"},{"$f":"TEXT(WEEKDAY(DATE(AnCalendar+1,5,31),1),\"aaa\")","v":"V"},"Total"]
[null,"ID elev","Nume elev","1","2","3","4","5","6","7","8","9","10","11","12","13","14","15","16","17","18","19","20","21","22","23","24","25","26","27","28","29","30","31","Î","M","N","P","Zile de absență"]
[null,null,{"$f":"IFERROR(VLOOKUP(PrezențăMai[[#This Row],[ID elev]],ListăElevi[],18,FALSE),\"\")","v":""},{"$nulls":31},{"$f":"COUNTIF(PrezențăMai[[#This Row],[1]:[31]],Cod_1)","v":0},{"$f":"COUNTIF(PrezențăMai[[#This Row],[1]:[31]],Cod_2)","v":0},{"$f":"COUNTIF(PrezențăMai[[#This Row],[1]:[31]],Cod_3)","v":0},{"$f":"COUNTIF(PrezențăMai[[#This Row],[1]:[31]],Cod_4)","v":0},{"$f":"SUM(PrezențăMai[[#This Row],[M]:[N]])","v":0}]
[null,null,{"$f":"IFERROR(VLOOKUP(PrezențăMai[[#This Row],[ID elev]],ListăElevi[],18,FALSE),\"\")","v":""},{"$nulls":31},{"$f":"COUNTIF(PrezențăMai[[#This Row],[1]:[31]],Cod_1)","v":0},{"$f":"COUNTIF(PrezențăMai[[#This Row],[1]:[31]],Cod_2)","v":0},{"$f":"COUNTIF(PrezențăMai[[#This Row],[1]:[31]],Cod_3)","v":0},{"$f":"COUNTIF(PrezențăMai[[#This Row],[1]:[31]],Cod_4)","v":0},{"$f":"SUM(PrezențăMai[[#This Row],[M]:[N]])","v":0}]
[null,null,{"$f":"IFERROR(VLOOKUP(PrezențăMai[[#This Row],[ID elev]],ListăElevi[],18,FALSE),\"\")","v":""},{"$nulls":31},{"$f":"COUNTIF(PrezențăMai[[#This Row],[1]:[31]],Cod_1)","v":0},{"$f":"COUNTIF(PrezențăMai[[#This Row],[1]:[31]],Cod_2)","v":0},{"$f":"COUNTIF(PrezențăMai[[#This Row],[1]:[31]],Cod_3)","v":0},{"$f":"COUNTIF(PrezențăMai[[#This Row],[1]:[31]],Cod_4)","v":0},{"$f":"SUM(PrezențăMai[[#This Row],[M]:[N]])","v":0}]
[null,null,{"$f":"IFERROR(VLOOKUP(PrezențăMai[[#This Row],[ID elev]],ListăElevi[],18,FALSE),\"\")","v":""},{"$nulls":31},{"$f":"COUNTIF(PrezențăMai[[#This Row],[1]:[31]],Cod_1)","v":0},{"$f":"COUNTIF(PrezențăMai[[#This Row],[1]:[31]],Cod_2)","v":0},{"$f":"COUNTIF(PrezențăMai[[#This Row],[1]:[31]],Cod_3)","v":0},{"$f":"COUNTIF(PrezențăMai[[#This Row],[1]:[31]],Cod_4)","v":0},{"$f":"SUM(PrezențăMai[[#This Row],[M]:[N]])","v":0}]
[null,null,{"$f":"IFERROR(VLOOKUP(PrezențăMai[[#This Row],[ID elev]],ListăElevi[],18,FALSE),\"\")","v":""},{"$nulls":31},{"$f":"COUNTIF(PrezențăMai[[#This Row],[1]:[31]],Cod_1)","v":0},{"$f":"COUNTIF(PrezențăMai[[#This Row],[1]:[31]],Cod_2)","v":0},{"$f":"COUNTIF(PrezențăMai[[#This Row],[1]:[31]],Cod_3)","v":0},{"$f":"COUNTIF(PrezențăMai[[#This Row],[1]:[31]],Cod_4)","v":0},{"$f":"SUM(PrezențăMai[[#This Row],[M]:[N]])","v":0}]
[null,null,"Numărul total de zile de absență",{"$f":"COUNTIF(PrezențăMai[1],\"N\")+COUNTIF(PrezențăMai[1],\"M\")","v":0},{"$f":"COUNTIF(PrezențăMai[2],\"N\")+COUNTIF(PrezențăMai[2],\"M\")","v":0},{"$f":"COUNTIF(PrezențăMai[3],\"N\")+COUNTIF(PrezențăMai[3],\"M\")","v":0},{"$f":"COUNTIF(PrezențăMai[4],\"N\")+COUNTIF(PrezențăMai[4],\"M\")","v":0},{"$f":"COUNTIF(PrezențăMai[5],\"N\")+COUNTIF(PrezențăMai[5],\"M\")","v":0},{"$f":"COUNTIF(PrezențăMai[6],\"N\")+COUNTIF(PrezențăMai[6],\"M\")","v":0},{"$f":"COUNTIF(PrezențăMai[7],\"N\")+COUNTIF(PrezențăMai[7],\"M\")","v":0},{"$f":"COUNTIF(PrezențăMai[8],\"N\")+COUNTIF(PrezențăMai[8],\"M\")","v":0},{"$f":"COUNTIF(PrezențăMai[9],\"N\")+COUNTIF(PrezențăMai[9],\"M\")","v":0},{"$f":"COUNTIF(PrezențăMai[10],\"N\")+COUNTIF(PrezențăMai[10],\"M\")","v":0},{"$f":"COUNTIF(PrezențăMai[11],\"N\")+COUNTIF(PrezențăMai[11],\"M\")","v":0},{"$f":"COUNTIF(PrezențăMai[12],\"N\")+COUNTIF(PrezențăMai[12],\"M\")","v":0},{"$f":"COUNTIF(PrezențăMai[13],\"N\")+COUNTIF(PrezențăMai[13],\"M\")","v":0},{"$f":"COUNTIF(PrezențăMai[14],\"N\")+COUNTIF(PrezențăMai[14],\"M\")","v":0},{"$f":"COUNTIF(PrezențăMai[15],\"N\")+COUNTIF(PrezențăMai[15],\"M\")","v":0},{"$f":"COUNTIF(PrezențăMai[16],\"N\")+COUNTIF(PrezențăMai[16],\"M\")","v":0},{"$f":"COUNTIF(PrezențăMai[17],\"N\")+COUNTIF(PrezențăMai[17],\"M\")","v":0},{"$f":"COUNTIF(PrezențăMai[18],\"N\")+COUNTIF(PrezențăMai[18],\"M\")","v":0},{"$f":"COUNTIF(PrezențăMai[19],\"N\")+COUNTIF(PrezențăMai[19],\"M\")","v":0},{"$f":"COUNTIF(PrezențăMai[20],\"N\")+COUNTIF(PrezențăMai[20],\"M\")","v":0},{"$f":"COUNTIF(PrezențăMai[21],\"N\")+COUNTIF(PrezențăMai[21],\"M\")","v":0},{"$f":"COUNTIF(PrezențăMai[22],\"N\")+COUNTIF(PrezențăMai[22],\"M\")","v":0},{"$f":"COUNTIF(PrezențăMai[23],\"N\")+COUNTIF(PrezențăMai[23],\"M\")","v":0},{"$f":"COUNTIF(PrezențăMai[24],\"N\")+COUNTIF(PrezențăMai[24],\"M\")","v":0},{"$f":"COUNTIF(PrezențăMai[25],\"N\")+COUNTIF(PrezențăMai[25],\"M\")","v":0},{"$f":"COUNTIF(PrezențăMai[26],\"N\")+COUNTIF(PrezențăMai[26],\"M\")","v":0},{"$f":"COUNTIF(PrezențăMai[27],\"N\")+COUNTIF(PrezențăMai[27],\"M\")","v":0},{"$f":"COUNTIF(PrezențăMai[28],\"N\")+COUNTIF(PrezențăMai[28],\"M\")","v":0},{"$f":"COUNTIF(PrezențăMai[29],\"N\")+COUNTIF(PrezențăMai[29],\"M\")","v":0},null,null,{"$f":"SUBTOTAL(109,PrezențăMai[Î])","v":0},{"$f":"SUBTOTAL(109,PrezențăMai[M])","v":0},{"$f":"SUBTOTAL(109,PrezențăMai[N])","v":0},{"$f":"SUBTOTAL(109,PrezențăMai[P])","v":0},{"$f":"SUBTOTAL(109,PrezențăMai[Zile de absență])","v":0}]

{"sheet":"Iunie","index":12,"n_rows":12,"n_cols":39,"rows_kept":12,"merged":[[4,34,4,38]]}
["CARNET DE PREZENȚE ELEV",{"$nulls":36},"Anul școlar începe:",{"$f":"AnCalendar","v":2012}]
[]
[null,null,{"$f":"CheieCuloareText","v":"CHEIE CULORI"},{"$f":"Cod_1","v":"Î"},{"$f":"Cod1Text","v":"Întârziat"},null,null,{"$f":"Cod_2","v":"M"},{"$f":"Cod2Text","v":"Motivat"},null,null,{"$f":"Cod_3","v":"N"},{"$f":"Cod3Text","v":"Nemotivat"},null,null,{"$f":"Cod_4","v":"P"},{"$f":"Cod4Text","v":"Prezent"},null,null,{"$f":"Cod_5","v":"Nu"},{"$f":"Cod5Text","v":"Nu a fost la școală"}]
[]
[null,{"$f":"DATE(AnCalendar+1,6,1)","v":"2013-06-01"},null,{"$f":"TEXT(WEEKDAY(DATE(AnCalendar+1,6,1),1),\"aaa\")","v":"S"},{"$f":"TEXT(WEEKDAY(DATE(AnCalendar+1,6,2),1),\"aaa\")","v":"D"},{"$f":"TEXT(WEEKDAY(DATE(AnCalendar+1,6,3),1),\"aaa\")","v":"L"},{"$f":"TEXT(WEEKDAY(DATE(AnCalendar+1,6,4),1),\"aaa\")","v":"Ma"},{"$f":"TEXT(WEEKDAY(DATE(AnCalendar+1,6,5),1),\"aaa\")","v":"Mi"},{"$f":"TEXT(WEEKDAY(DATE(AnCalendar+1,6,6),1),\"aaa\")","v":"J"},{"$f":"TEXT(WEEKDAY(DATE(AnCalendar+1,6,7),1),\"aaa\")","v":"V"},{"$f":"TEXT(WEEKDAY(DATE(AnCalendar+1,6,8),1),\"aaa\")","v":"S"},{"$f":"TEXT(WEEKDAY(DATE(AnCalendar+1,6,9),1),\"aaa\")","v":"D"},{"$f":"TEXT(WEEKDAY(DATE(AnCalendar+1,6,10),1),\"aaa\")","v":"L"},{"$f":"TEXT(WEEKDAY(DATE(AnCalendar+1,6,11),1),\"aaa\")","v":"Ma"},{"$f":"TEXT(WEEKDAY(DATE(AnCalendar+1,6,12),1),\"aaa\")","v":"Mi"},{"$f":"TEXT(WEEKDAY(DATE(AnCalendar+1,6,13),1),\"aaa\")","v":"J"},{"$f":"TEXT(WEEKDAY(DATE(AnCalendar+1,6,14),1),\"aaa\")","v":"V"},{"$f":"TEXT(WEEKDAY(DATE(AnCalendar+1,6,15),1),\"aaa\")","v":"S"},{"$f":"TEXT(WEEKDAY(DATE(AnCalendar+1,6,16),1),\"aaa\")","v":"D"},{"$f":"TEXT(WEEKDAY(DATE(AnCalendar+1,6,17),1),\"aaa\")","v":"L"},{"$f":"TEXT(WEEKDAY(DATE(AnCalendar+1,6,18),1),\"aaa\")","v":"Ma"},{"$f":"TEXT(WEEKDAY(DATE(AnCalendar+1,6,19),1),\"aaa\")","v":"Mi"},{"$f":"TEXT(WEEKDAY(DATE(AnCalendar+1,6,20),1),\"aaa\")","v":"J"},{"$f":"TEXT(WEEKDAY(DATE(AnCalendar+1,6,21),1),\"aaa\")","v":"V"},{"$f":"TEXT(WEEKDAY(DATE(AnCalendar+1,6,22),1),\"aaa\")","v":"S"},{"$f":"TEXT(WEEKDAY(DATE(AnCalendar+1,6,23),1),\"aaa\")","v":"D"},{"$f":"TEXT(WEEKDAY(DATE(AnCalendar+1,6,24),1),\"aaa\")","v":"L"},{"$f":"TEXT(WEEKDAY(DATE(AnCalendar+1,6,25),1),\"aaa\")","v":"Ma"},{"$f":"TEXT(WEEKDAY(DATE(AnCalendar+1,6,26),1),\"aaa\")","v":"Mi"},{"$f":"TEXT(WEEKDAY(DATE(AnCalendar+1,6,27),1),\"aaa\")","v":"J"},{"$f":"TEXT(WEEKDAY(DATE(AnCalendar+1,6,28),1),\"aaa\")","v":"V"},{"$f":"TEXT(WEEKDAY(DATE(AnCalendar+1,6,29),1),\"aaa\")","v":"S"},{"$f":"TEXT(WEEKDAY(DATE(AnCalendar+1,6,30),1),\"aaa\")","v":"D"},null,"Total"]
[null,"ID elev","Nume elev","1","2","3","4","5","6","7","8","9","10","11","12","13","14","15","16","17","18","19","20","21","22","23","24","25","26","27","28","29","30"," ","Î","M","N","P","Zile de absență"]
[null,null,{"$f":"IFERROR(VLOOKUP(PrezențăIunie[[#This Row],[ID elev]],ListăElevi[],18,FALSE),\"\")","v":""},{"$nulls":31},{"$f":"COUNTIF(PrezențăIunie[[#This Row],[1]:[ ]],Cod_1)","v":0},{"$f":"COUNTIF(PrezențăIunie[[#This Row],[1]:[ ]],Cod_2)","v":0},{"$f":"COUNTIF(PrezențăIunie[[#This Row],[1]:[ ]],Cod_3)","v":0},{"$f":"COUNTIF(PrezențăIunie[[#This Row],[1]:[ ]],Cod_4)","v":0},{"$f":"SUM(PrezențăIunie[[#This Row],[M]:[N]])","v":0}]
[null,null,{"$f":"IFERROR(VLOOKUP(PrezențăIunie[[#This Row],[ID elev]],ListăElevi[],18,FALSE),\"\")","v":""},{"$nulls":31},{"$f":"COUNTIF(PrezențăIunie[[#This Row],[1]:[ ]],Cod_1)","v":0},{"$f":"COUNTIF(PrezențăIunie[[#This Row],[1]:[ ]],Cod_2)","v":0},{"$f":"COUNTIF(PrezențăIunie[[#This Row],[1]:[ ]],Cod_3)","v":0},{"$f":"COUNTIF(PrezențăIunie[[#This Row],[1]:[ ]],Cod_4)","v":0},{"$f":"SUM(PrezențăIunie[[#This Row],[M]:[N]])","v":0}]
[null,null,{"$f":"IFERROR(VLOOKUP(PrezențăIunie[[#This Row],[ID elev]],ListăElevi[],18,FALSE),\"\")","v":""},{"$nulls":31},{"$f":"COUNTIF(PrezențăIunie[[#This Row],[1]:[ ]],Cod_1)","v":0},{"$f":"COUNTIF(PrezențăIunie[[#This Row],[1]:[ ]],Cod_2)","v":0},{"$f":"COUNTIF(PrezențăIunie[[#This Row],[1]:[ ]],Cod_3)","v":0},{"$f":"COUNTIF(PrezențăIunie[[#This Row],[1]:[ ]],Cod_4)","v":0},{"$f":"SUM(PrezențăIunie[[#This Row],[M]:[N]])","v":0}]
[null,null,{"$f":"IFERROR(VLOOKUP(PrezențăIunie[[#This Row],[ID elev]],ListăElevi[],18,FALSE),\"\")","v":""},{"$nulls":31},{"$f":"COUNTIF(PrezențăIunie[[#This Row],[1]:[ ]],Cod_1)","v":0},{"$f":"COUNTIF(PrezențăIunie[[#This Row],[1]:[ ]],Cod_2)","v":0},{"$f":"COUNTIF(PrezențăIunie[[#This Row],[1]:[ ]],Cod_3)","v":0},{"$f":"COUNTIF(PrezențăIunie[[#This Row],[1]:[ ]],Cod_4)","v":0},{"$f":"SUM(PrezențăIunie[[#This Row],[M]:[N]])","v":0}]
[null,null,{"$f":"IFERROR(VLOOKUP(PrezențăIunie[[#This Row],[ID elev]],ListăElevi[],18,FALSE),\"\")","v":""},{"$nulls":31},{"$f":"COUNTIF(PrezențăIunie[[#This Row],[1]:[ ]],Cod_1)","v":0},{"$f":"COUNTIF(PrezențăIunie[[#This Row],[1]:[ ]],Cod_2)","v":0},{"$f":"COUNTIF(PrezențăIunie[[#This Row],[1]:[ ]],Cod_3)","v":0},{"$f":"COUNTIF(PrezențăIunie[[#This Row],[1]:[ ]],Cod_4)","v":0},{"$f":"SUM(PrezențăIunie[[#This Row],[M]:[N]])","v":0}]
[null,null,"Numărul total de zile de absență",{"$f":"COUNTIF(PrezențăIunie[1],\"N\")+COUNTIF(PrezențăIunie[1],\"M\")","v":0},{"$f":"COUNTIF(PrezențăIunie[2],\"N\")+COUNTIF(PrezențăIunie[2],\"M\")","v":0},{"$f":"COUNTIF(PrezențăIunie[3],\"N\")+COUNTIF(PrezențăIunie[3],\"M\")","v":0},{"$f":"COUNTIF(PrezențăIunie[4],\"N\")+COUNTIF(PrezențăIunie[4],\"M\")","v":0},{"$f":"COUNTIF(PrezențăIunie[5],\"N\")+COUNTIF(PrezențăIunie[5],\"M\")","v":0},{"$f":"COUNTIF(PrezențăIunie[6],\"N\")+COUNTIF(PrezențăIunie[6],\"M\")","v":0},{"$f":"COUNTIF(PrezențăIunie[7],\"N\")+COUNTIF(PrezențăIunie[7],\"M\")","v":0},{"$f":"COUNTIF(PrezențăIunie[8],\"N\")+COUNTIF(PrezențăIunie[8],\"M\")","v":0},{"$f":"COUNTIF(PrezențăIunie[9],\"N\")+COUNTIF(PrezențăIunie[9],\"M\")","v":0},{"$f":"COUNTIF(PrezențăIunie[10],\"N\")+COUNTIF(PrezențăIunie[10],\"M\")","v":0},{"$f":"COUNTIF(PrezențăIunie[11],\"N\")+COUNTIF(PrezențăIunie[11],\"M\")","v":0},{"$f":"COUNTIF(PrezențăIunie[12],\"N\")+COUNTIF(PrezențăIunie[12],\"M\")","v":0},{"$f":"COUNTIF(PrezențăIunie[13],\"N\")+COUNTIF(PrezențăIunie[13],\"M\")","v":0},{"$f":"COUNTIF(PrezențăIunie[14],\"N\")+COUNTIF(PrezențăIunie[14],\"M\")","v":0},{"$f":"COUNTIF(PrezențăIunie[15],\"N\")+COUNTIF(PrezențăIunie[15],\"M\")","v":0},{"$f":"COUNTIF(PrezențăIunie[16],\"N\")+COUNTIF(PrezențăIunie[16],\"M\")","v":0},{"$f":"COUNTIF(PrezențăIunie[17],\"N\")+COUNTIF(PrezențăIunie[17],\"M\")","v":0},{"$f":"COUNTIF(PrezențăIunie[18],\"N\")+COUNTIF(PrezențăIunie[18],\"M\")","v":0},{"$f":"COUNTIF(PrezențăIunie[19],\"N\")+COUNTIF(PrezențăIunie[19],\"M\")","v":0},{"$f":"COUNTIF(PrezențăIunie[20],\"N\")+COUNTIF(PrezențăIunie[20],\"M\")","v":0},{"$f":"COUNTIF(PrezențăIunie[21],\"N\")+COUNTIF(PrezențăIunie[21],\"M\")","v":0},{"$f":"COUNTIF(PrezențăIunie[22],\"N\")+COUNTIF(PrezențăIunie[22],\"M\")","v":0},{"$f":"COUNTIF(PrezențăIunie[23],\"N\")+COUNTIF(PrezențăIunie[23],\"M\")","v":0},{"$f":"COUNTIF(PrezențăIunie[24],\"N\")+COUNTIF(PrezențăIunie[24],\"M\")","v":0},{"$f":"COUNTIF(PrezențăIunie[25],\"N\")+COUNTIF(PrezențăIunie[25],\"M\")","v":0},{"$f":"COUNTIF(PrezențăIunie[26],\"N\")+COUNTIF(PrezențăIunie[26],\"M\")","v":0},{"$f":"COUNTIF(PrezențăIunie[27],\"N\")+COUNTIF(PrezențăIunie[27],\"M\")","v":0},{"$f":"COUNTIF(PrezențăIunie[28],\"N\")+COUNTIF(PrezențăIunie[28],\"M\")","v":0},{"$f":"COUNTIF(PrezențăIunie[29],\"N\")+COUNTIF(PrezențăIunie[29],\"M\")","v":0},null,null,{"$f":"SUBTOTAL(109,PrezențăIunie[Î])","v":0},{"$f":"SUBTOTAL(109,PrezențăIunie[M])","v":0},{"$f":"SUBTOTAL(109,PrezențăIunie[N])","v":0},{"$f":"SUBTOTAL(109,PrezențăIunie[P])","v":0},{"$f":"SUBTOTAL(109,PrezențăIunie[Zile de absență])","v":0}]

{"sheet":"Iulie","index":13,"n_rows":12,"n_cols":39,"rows_kept":12,"merged":[[4,34,4,38]]}
["CARNET DE PREZENȚE ELEV",{"$nulls":36},"Anul școlar începe:",{"$f":"AnCalendar","v":2012}]
[]
[null,null,{"$f":"CheieCuloareText","v":"CHEIE CULORI"},{"$f":"Cod_1","v":"Î"},{"$f":"Cod1Text","v":"Întârziat"},null,null,{"$f":"Cod_2","v":"M"},{"$f":"Cod2Text","v":"Motivat"},null,null,{"$f":"Cod_3","v":"N"},{"$f":"Cod3Text","v":"Nemotivat"},null,null,{"$f":"Cod_4","v":"P"},{"$f":"Cod4Text","v":"Prezent"},null,null,{"$f":"Cod_5","v":"Nu"},{"$f":"Cod5Text","v":"Nu a fost la școală"}]
[]
[null,{"$f":"DATE(AnCalendar+1,7,1)","v":"2013-07-01"},null,{"$f":"TEXT(WEEKDAY(DATE(AnCalendar+1,7,1),1),\"aaa\")","v":"L"},{"$f":"TEXT(WEEKDAY(DATE(AnCalendar+1,7,2),1),\"aaa\")","v":"Ma"},{"$f":"TEXT(WEEKDAY(DATE(AnCalendar+1,7,3),1),\"aaa\")","v":"Mi"},{"$f":"TEXT(WEEKDAY(DATE(AnCalendar+1,7,4),1),\"aaa\")","v":"J"},{"$f":"TEXT(WEEKDAY(DATE(AnCalendar+1,7,5),1),\"aaa\")","v":"V"},{"$f":"TEXT(WEEKDAY(DATE(AnCalendar+1,7,6),1),\"aaa\")","v":"S"},{"$f":"TEXT(WEEKDAY(DATE(AnCalendar+1,7,7),1),\"aaa\")","v":"D"},{"$f":"TEXT(WEEKDAY(DATE(AnCalendar+1,7,8),1),\"aaa\")","v":"L"},{"$f":"TEXT(WEEKDAY(DATE(AnCalendar+1,7,9),1),\"aaa\")","v":"Ma"},{"$f":"TEXT(WEEKDAY(DATE(AnCalendar+1,7,10),1),\"aaa\")","v":"Mi"},{"$f":"TEXT(WEEKDAY(DATE(AnCalendar+1,7,11),1),\"aaa\")","v":"J"},{"$f":"TEXT(WEEKDAY(DATE(AnCalendar+1,7,12),1),\"aaa\")","v":"V"},{"$f":"TEXT(WEEKDAY(DATE(AnCalendar+1,7,13),1),\"aaa\")","v":"S"},{"$f":"TEXT(WEEKDAY(DATE(AnCalendar+1,7,14),1),\"aaa\")","v":"D"},{"$f":"TEXT(WEEKDAY(DATE(AnCalendar+1,7,15),1),\"aaa\")","v":"L"},{"$f":"TEXT(WEEKDAY(DATE(AnCalendar+1,7,16),1),\"aaa\")","v":"Ma"},{"$f":"TEXT(WEEKDAY(DATE(AnCalendar+1,7,17),1),\"aaa\")","v":"Mi"},{"$f":"TEXT(WEEKDAY(DATE(AnCalendar+1,7,18),1),\"aaa\")","v":"J"},{"$f":"TEXT(WEEKDAY(DATE(AnCalendar+1,7,19),1),\"aaa\")","v":"V"},{"$f":"TEXT(WEEKDAY(DATE(AnCalendar+1,7,20),1),\"aaa\")","v":"S"},{"$f":"TEXT(WEEKDAY(DATE(AnCalendar+1,7,21),1),\"aaa\")","v":"D"},{"$f":"TEXT(WEEKDAY(DATE(AnCalendar+1,7,22),1),\"aaa\")","v":"L"},{"$f":"TEXT(WEEKDAY(DATE(AnCalendar+1,7,23),1),\"aaa\")","v":"Ma"},{"$f":"TEXT(WEEKDAY(DATE(AnCalendar+1,7,24),1),\"aaa\")","v":"Mi"},{"$f":"TEXT(WEEKDAY(DATE(AnCalendar+1,7,25),1),\"aaa\")","v":"J"},{"$f":"TEXT(WEEKDAY(DATE(AnCalendar+1,7,26),1),\"aaa\")","v":"V"},{"$f":"TEXT(WEEKDAY(DATE(AnCalendar+1,7,27),1),\"aaa\")","v":"S"},{"$f":"TEXT(WEEKDAY(DATE(AnCalendar+1,7,28),1),\"aaa\")","v":"D"},{"$f":"TEXT(WEEKDAY(DATE(AnCalendar+1,7,29),1),\"aaa\")","v":"L"},{"$f":"TEXT(WEEKDAY(DATE(AnCalendar+1,7,30),1),\"aaa\")","v":"Ma"},{"$f":"TEXT(WEEKDAY(DATE(AnCalendar+1,7,31),1),\"aaa\")","v":"Mi"},"Total"]
[null,"ID elev","Nume elev","1","2","3","4","5","6","7","8","9","10","11","12","13","14","15","16","17","18","19","20","21","22","23","24","25","26","27","28","29","30","31","Î","M","N","P","Zile de absență"]
[null,null,{"$f":"IFERROR(VLOOKUP(PrezențăIulie[[#This Row],[ID elev]],ListăElevi[],18,FALSE),\"\")","v":""},{"$nulls":31},{"$f":"COUNTIF(PrezențăIulie[[#This Row],[1]:[31]],Cod_1)","v":0},{"$f":"COUNTIF(PrezențăIulie[[#This Row],[1]:[31]],Cod_2)","v":0},{"$f":"COUNTIF(PrezențăIulie[[#This Row],[1]:[31]],Cod_3)","v":0},{"$f":"COUNTIF(PrezențăIulie[[#This Row],[1]:[31]],Cod_4)","v":0},{"$f":"SUM(PrezențăIulie[[#This Row],[M]:[N]])","v":0}]
[null,null,{"$f":"IFERROR(VLOOKUP(PrezențăIulie[[#This Row],[ID elev]],ListăElevi[],18,FALSE),\"\")","v":""},{"$nulls":31},{"$f":"COUNTIF(PrezențăIulie[[#This Row],[1]:[31]],Cod_1)","v":0},{"$f":"COUNTIF(PrezențăIulie[[#This Row],[1]:[31]],Cod_2)","v":0},{"$f":"COUNTIF(PrezențăIulie[[#This Row],[1]:[31]],Cod_3)","v":0},{"$f":"COUNTIF(PrezențăIulie[[#This Row],[1]:[31]],Cod_4)","v":0},{"$f":"SUM(PrezențăIulie[[#This Row],[M]:[N]])","v":0}]
[null,null,{"$f":"IFERROR(VLOOKUP(PrezențăIulie[[#This Row],[ID elev]],ListăElevi[],18,FALSE),\"\")","v":""},{"$nulls":31},{"$f":"COUNTIF(PrezențăIulie[[#This Row],[1]:[31]],Cod_1)","v":0},{"$f":"COUNTIF(PrezențăIulie[[#This Row],[1]:[31]],Cod_2)","v":0},{"$f":"COUNTIF(PrezențăIulie[[#This Row],[1]:[31]],Cod_3)","v":0},{"$f":"COUNTIF(PrezențăIulie[[#This Row],[1]:[31]],Cod_4)","v":0},{"$f":"SUM(PrezențăIulie[[#This Row],[M]:[N]])","v":0}]
[null,null,{"$f":"IFERROR(VLOOKUP(PrezențăIulie[[#This Row],[ID elev]],ListăElevi[],18,FALSE),\"\")","v":""},{"$nulls":31},{"$f":"COUNTIF(PrezențăIulie[[#This Row],[1]:[31]],Cod_1)","v":0},{"$f":"COUNTIF(PrezențăIulie[[#This Row],[1]:[31]],Cod_2)","v":0},{"$f":"COUNTIF(PrezențăIulie[[#This Row],[1]:[31]],Cod_3)","v":0},{"$f":"COUNTIF(PrezențăIulie[[#This Row],[1]:[31]],Cod_4)","v":0},{"$f":"SUM(PrezențăIulie[[#This Row],[M]:[N]])","v":0}]
[null,null,{"$f":"IFERROR(VLOOKUP(PrezențăIulie[[#This Row],[ID elev]],ListăElevi[],18,FALSE),\"\")","v":""},{"$nulls":31},{"$f":"COUNTIF(PrezențăIulie[[#This Row],[1]:[31]],Cod_1)","v":0},{"$f":"COUNTIF(PrezențăIulie[[#This Row],[1]:[31]],Cod_2)","v":0},{"$f":"COUNTIF(PrezențăIulie[[#This Row],[1]:[31]],Cod_3)","v":0},{"$f":"COUNTIF(PrezențăIulie[[#This Row],[1]:[31]],Cod_4)","v":0},{"$f":"SUM(PrezențăIulie[[#This Row],[M]:[N]])","v":0}]
[null,null,"Numărul total de zile de absență",{"$f":"COUNTIF(PrezențăIulie[1],\"N\")+COUNTIF(PrezențăIulie[1],\"M\")","v":0},{"$f":"COUNTIF(PrezențăIulie[2],\"N\")+COUNTIF(PrezențăIulie[2],\"M\")","v":0},{"$f":"COUNTIF(PrezențăIulie[3],\"N\")+COUNTIF(PrezențăIulie[3],\"M\")","v":0},{"$f":"COUNTIF(PrezențăIulie[4],\"N\")+COUNTIF(PrezențăIulie[4],\"M\")","v":0},{"$f":"COUNTIF(PrezențăIulie[5],\"N\")+COUNTIF(PrezențăIulie[5],\"M\")","v":0},{"$f":"COUNTIF(PrezențăIulie[6],\"N\")+COUNTIF(PrezențăIulie[6],\"M\")","v":0},{"$f":"COUNTIF(PrezențăIulie[7],\"N\")+COUNTIF(PrezențăIulie[7],\"M\")","v":0},{"$f":"COUNTIF(PrezențăIulie[8],\"N\")+COUNTIF(PrezențăIulie[8],\"M\")","v":0},{"$f":"COUNTIF(PrezențăIulie[9],\"N\")+COUNTIF(PrezențăIulie[9],\"M\")","v":0},{"$f":"COUNTIF(PrezențăIulie[10],\"N\")+COUNTIF(PrezențăIulie[10],\"M\")","v":0},{"$f":"COUNTIF(PrezențăIulie[11],\"N\")+COUNTIF(PrezențăIulie[11],\"M\")","v":0},{"$f":"COUNTIF(PrezențăIulie[12],\"N\")+COUNTIF(PrezențăIulie[12],\"M\")","v":0},{"$f":"COUNTIF(PrezențăIulie[13],\"N\")+COUNTIF(PrezențăIulie[13],\"M\")","v":0},{"$f":"COUNTIF(PrezențăIulie[14],\"N\")+COUNTIF(PrezențăIulie[14],\"M\")","v":0},{"$f":"COUNTIF(PrezențăIulie[15],\"N\")+COUNTIF(PrezențăIulie[15],\"M\")","v":0},{"$f":"COUNTIF(PrezențăIulie[16],\"N\")+COUNTIF(PrezențăIulie[16],\"M\")","v":0},{"$f":"COUNTIF(PrezențăIulie[17],\"N\")+COUNTIF(PrezențăIulie[17],\"M\")","v":0},{"$f":"COUNTIF(PrezențăIulie[18],\"N\")+COUNTIF(PrezențăIulie[18],\"M\")","v":0},{"$f":"COUNTIF(PrezențăIulie[19],\"N\")+COUNTIF(PrezențăIulie[19],\"M\")","v":0},{"$f":"COUNTIF(PrezențăIulie[20],\"N\")+COUNTIF(PrezențăIulie[20],\"M\")","v":0},{"$f":"COUNTIF(PrezențăIulie[21],\"N\")+COUNTIF(PrezențăIulie[21],\"M\")","v":0},{"$f":"COUNTIF(PrezențăIulie[22],\"N\")+COUNTIF(PrezențăIulie[22],\"M\")","v":0},{"$f":"COUNTIF(PrezențăIulie[23],\"N\")+COUNTIF(PrezențăIulie[23],\"M\")","v":0},{"$f":"COUNTIF(PrezențăIulie[24],\"N\")+COUNTIF(PrezențăIulie[24],\"M\")","v":0},{"$f":"COUNTIF(PrezențăIulie[25],\"N\")+COUNTIF(PrezențăIulie[25],\"M\")","v":0},{"$f":"COUNTIF(PrezențăIulie[26],\"N\")+COUNTIF(PrezențăIulie[26],\"M\")","v":0},{"$f":"COUNTIF(PrezențăIulie[27],\"N\")+COUNTIF(PrezențăIulie[27],\"M\")","v":0},{"$f":"COUNTIF(PrezențăIulie[28],\"N\")+COUNTIF(PrezențăIulie[28],\"M\")","v":0},{"$f":"COUNTIF(PrezențăIulie[29],\"N\")+COUNTIF(PrezențăIulie[29],\"M\")","v":0},null,null,{"$f":"SUBTOTAL(109,PrezențăIulie[Î])","v":0},{"$f":"SUBTOTAL(109,PrezențăIulie[M])","v":0},{"$f":"SUBTOTAL(109,PrezențăIulie[N])","v":0},{"$f":"SUBTOTAL(109,PrezențăIulie[P])","v":0},{"$f":"SUBTOTAL(109,PrezențăIulie[Zile de absență])","v":0}]

{"sheet":"Raport prezență elev","index":14,"n_rows":40,"n_cols":37,"rows_kept":40,"merged":[[2,3,2,14],[2,15,2,17],[2,18,2,21],[2,22,2,29],[2,30,2,31],[2,32,2,35],[3,1,3,2],[3,3,3,14],[3,15,3,17],[3,18,3,21],[3,22,3,29],[3,30,3,31],[3,32,3,35],[4,1,4,9],[4,10,4,21],[4,22,4,29],[4,30,4,36],[5,1,5,9],[5,10,5,21],[5,22,5,29],[5,30,5,36],[6,1,6,9],[6,10,6,21],[6,22,6,29],[6,30,6,36],[7,1,7,9],[7,10,7,21],[7,22,7,29],[7,30,7,36],[8,1,8,9],[8,10,8,21],[8,22,8,29],[8,30,8,36],[9,1,9,9],[9,10,9,21],[9,22,9,29],[9,30,9,36],[13,1,14,32],[13,33,13,36],[15,1,16,1],[15,33,16,33],[15,34,16,34],[15,35,16,35],[15,36,16,36],[17,1,18,1],[17,33,18,33],[17,34,18,34],[17,35,18,35],[17,36,18,36],[19,1,20,1],[19,33,20,33],[19,34,20,34],[19,35,20,35],[19,36,20,36],[21,1,22,1],[21,33,22,33],[21,34,22,34],[21,35,22,35],[21,36,22,36],[23,1,24,1],[23,33,24,33],[23,34,24,34],[23,35,24,35],[23,36,24,36],[25,1,26,1],[25,33,26,33],[25,34,26,34],[25,35,26,35],[25,36,26,36],[27,1,28,1],[27,33,28,33],[27,34,28,34],[27,35,28,35],[27,36,28,36],[29,1,30,1],[29,33,30,33],[29,34,30,34],[29,35,30,35],[29,36,30,36],[31,1,32,1],[31,33,32,33],[31,34,32,34],[31,35,32,35],[31,36,32,36],[33,1,34,1],[33,33,34,33],[33,34,34,34],[33,35,34,35],[33,36,34,36],[35,1,36,1],[35,33,36,33],[35,34,36,34],[35,35,36,35],[35,36,36,36],[37,1,38,1],[37,33,38,33],[37,34,38,34],[37,35,38,35],[37,36,38,36],[39,30,39,32]]}
[{"$f":"\"Înregistrare prezență pentru\"","v":"Înregistrare prezență pentru"},{"$nulls":7},{"$f":"D4","v":""}]
[]
[null,"ID elev",null,"Nume elev",{"$nulls":11},"Sex",null,null,"Data nașterii",{"$nulls":3},"Școală",{"$nulls":7},"Clasă",null,"Profesor",{"$nulls":3},"Sală"]
[{"$nulls":3},{"$f":"IFERROR(VLOOKUP(CăutareCursant,ListăElevi[],18,FALSE),\"\")","v":""},{"$nulls":11},{"$f":"IFERROR(VLOOKUP(CăutareCursant,ListăElevi[],4,FALSE),\"\")","v":""},null,null,{"$f":"IFERROR(VLOOKUP(CăutareCursant,ListăElevi[],5,FALSE),\"\")","v":""},{"$nulls":3},"Școala de arte ",{"$nulls":7},7,null,"Luca Argentiero",{"$nulls":3},123]
[null,"Numele părintelui sau tutorelui 1",{"$nulls":8},"Relație",{"$nulls":11},"Număr de telefon birou",{"$nulls":7},"Număr de telefon acasă"]
[null,{"$f":"IFERROR(VLOOKUP(CăutareCursant,ListăElevi[],6,FALSE),\"\")","v":""},{"$nulls":8},{"$f":"IFERROR(VLOOKUP(CăutareCursant,ListăElevi[],7,FALSE),\"\")","v":""},{"$nulls":11},{"$f":"IFERROR(VLOOKUP(CăutareCursant,ListăElevi[],8,FALSE),\"\")","v":""},{"$nulls":7},{"$f":"IFERROR(VLOOKUP(CăutareCursant,ListăElevi[],9,FALSE),\"\")","v":""}]
[null,"Numele părintelui sau tutorelui 2",{"$nulls":8},"Relație",{"$nulls":11},"Număr de telefon birou",{"$nulls":7},"Număr de telefon acasă"]
[null,{"$f":"IFERROR(VLOOKUP(CăutareCursant,ListăElevi[],10,FALSE),\"\")","v":""},{"$nulls":8},{"$f":"IFERROR(VLOOKUP(CăutareCursant,ListăElevi[],11,FALSE),\"\")","v":""},{"$nulls":11},{"$f":"IFERROR(VLOOKUP(CăutareCursant,ListăElevi[],12,FALSE),\"\")","v":""},{"$nulls":7},{"$f":"IFERROR(VLOOKUP(CăutareCursant,ListăElevi[],13,FALSE),\"\")","v":""}]
[null,"Contact urgențe",{"$nulls":8},"Relație",{"$nulls":11},"Număr de telefon birou",{"$nulls":7},"Număr de telefon acasă"]
[null,{"$f":"IFERROR(VLOOKUP(CăutareCursant,ListăElevi[],14,FALSE),\"\")","v":""},{"$nulls":8},{"$f":"IFERROR(VLOOKUP(CăutareCursant,ListăElevi[],15,FALSE),\"\")","v":""},{"$nulls":11},{"$f":"IFERROR(VLOOKUP(CăutareCursant,ListăElevi[],16,FALSE),\"\")","v":""},{"$nulls":7},{"$f":"IFERROR(VLOOKUP(CăutareCursant,ListăElevi[],17,FALSE),\"\")","v":""}]
[]
[null,{"$f":"August!C3","v":"CHEIE CULORI"},{"$f":"August!D3","v":"Î"},{"$f":"August!E3","v":"Întârziat"},null,null,{"$f":"August!H3","v":"M"},{"$f":"August!I3","v":"Motivat"},null,null,{"$f":"August!L3","v":"N"},{"$f":"August!M3","v":"Nemotivat"},{"$nulls":3},{"$f":"August!P3","v":"P"},{"$f":"August!Q3","v":"Prezent"},null,null,{"$f":"August!T3","v":"Nu"},{"$f":"August!U3","v":"Nu a fost la școală"}]
[]
[null,"Prezență",{"$nulls":31},"Total prezență"]
[{"$nulls":33},"Î","M","N","P"]
[null,"August",1,2,3,4,5,6,7,8,9,10,11,12,13,14,15,16,17,18,19,20,21,22,23,24,25,26,27,28,29,30,31,{"$f":"COUNTIF($D17:$AH17,Cod_1)","v":0},{"$f":"COUNTIF($D17:$AH17,Cod_2)","v":0},{"$f":"COUNTIF($D17:$AH17,Cod_3)","v":0},{"$f":"COUNTIF($D17:$AH17,Cod_4)","v":0}]
[null,null,{"$f":"IFERROR(VLOOKUP(CăutareCursant,PrezențăAugust[],3,FALSE),\"\")","v":""},{"$f":"IFERROR(VLOOKUP(CăutareCursant,PrezențăAugust[],4,FALSE),\"\")","v":""},{"$f":"IFERROR(VLOOKUP(CăutareCursant,PrezențăAugust[],5,FALSE),\"\")","v":""},{"$f":"IFERROR(VLOOKUP(CăutareCursant,PrezențăAugust[],6,FALSE),\"\")","v":""},{"$f":"IFERROR(VLOOKUP(CăutareCursant,PrezențăAugust[],7,FALSE),\"\")","v":""},{"$f":"IFERROR(VLOOKUP(CăutareCursant,PrezențăAugust[],8,FALSE),\"\")","v":""},{"$f":"IFERROR(VLOOKUP(CăutareCursant,PrezențăAugust[],9,FALSE),\"\")","v":""},{"$f":"IFERROR(VLOOKUP(CăutareCursant,PrezențăAugust[],10,FALSE),\"\")","v":""},{"$f":"IFERROR(VLOOKUP(CăutareCursant,PrezențăAugust[],11,FALSE),\"\")","v":""},{"$f":"IFERROR(VLOOKUP(CăutareCursant,PrezențăAugust[],12,FALSE),\"\")","v":""},{"$f":"IFERROR(VLOOKUP(CăutareCursant,PrezențăAugust[],13,FALSE),\"\")","v":""},{"$f":"IFERROR(VLOOKUP(CăutareCursant,PrezențăAugust[],14,FALSE),\"\")","v":""},{"$f":"IFERROR(VLOOKUP(CăutareCursant,PrezențăAugust[],15,FALSE),\"\")","v":""},{"$f":"IFERROR(VLOOKUP(CăutareCursant,PrezențăAugust[],16,FALSE),\"\")","v":""},{"$f":"IFERROR(VLOOKUP(CăutareCursant,PrezențăAugust[],17,FALSE),\"\")","v":""},{"$f":"IFERROR(VLOOKUP(CăutareCursant,PrezențăAugust[],18,FALSE),\"\")","v":""},{"$f":"IFERROR(VLOOKUP(CăutareCursant,PrezențăAugust[],19,FALSE),\"\")","v":""},{"$f":"IFERROR(VLOOKUP(CăutareCursant,PrezențăAugust[],20,FALSE),\"\")","v":""},{"$f":"IFERROR(VLOOKUP(CăutareCursant,PrezențăAugust[],21,FALSE),\"\")","v":""},{"$f":"IFERROR(VLOOKUP(CăutareCursant,PrezențăAugust[],22,FALSE),\"\")","v":""},{"$f":"IFERROR(VLOOKUP(CăutareCursant,PrezențăAugust[],23,FALSE),\"\")","v":""},{"$f":"IFERROR(VLOOKUP(CăutareCursant,PrezențăAugust[],24,FALSE),\"\")","v":""},{"$f":"IFERROR(VLOOKUP(CăutareCursant,PrezențăAugust[],25,FALSE),\"\")","v":""},{"$f":"IFERROR(VLOOKUP(CăutareCursant,PrezențăAugust[],26,FALSE),\"\")","v":""},{"$f":"IFERROR(VLOOKUP(CăutareCursant,PrezențăAugust[],27,FALSE),\"\")","v":""},{"$f":"IFERROR(VLOOKUP(CăutareCursant,PrezențăAugust[],28,FALSE),\"\")","v":""},{"$f":"IFERROR(VLOOKUP(CăutareCursant,PrezențăAugust[],29,FALSE),\"\")","v":""},{"$f":"IFERROR(VLOOKUP(CăutareCursant,PrezențăAugust[],30,FALSE),\"\")","v":""},{"$f":"IFERROR(VLOOKUP(CăutareCursant,PrezențăAugust[],31,FALSE),\"\")","v":""},{"$f":"IFERROR(VLOOKUP(CăutareCursant,PrezențăAugust[],32,FALSE),\"\")","v":""},{"$f":"IFERROR(VLOOKUP(CăutareCursant,PrezențăAugust[],33,FALSE),\"\")","v":""}]
[null,"Septembrie",1,2,3,4,5,6,7,8,9,10,11,12,13,14,15,16,17,18,19,20,21,22,23,24,25,26,27,28,29,30,null,{"$f":"COUNTIF($D19:$AH19,Cod_1)","v":0},{"$f":"COUNTIF($D19:$AH19,Cod_2)","v":0},{"$f":"COUNTIF($D19:$AH19,Cod_3)","v":0},{"$f":"COUNTIF($D19:$AH19,Cod_4)","v":0}]
[null,null,{"$f":"IFERROR(VLOOKUP(CăutareCursant,PrezențăSeptembrie[],3,FALSE),\"\")","v":""},{"$f":"IFERROR(VLOOKUP(CăutareCursant,PrezențăSeptembrie[],4,FALSE),\"\")","v":""},{"$f":"IFERROR(VLOOKUP(CăutareCursant,PrezențăSeptembrie[],5,FALSE),\"\")","v":""},{"$f":"IFERROR(VLOOKUP(CăutareCursant,PrezențăSeptembrie[],6,FALSE),\"\")","v":""},{"$f":"IFERROR(VLOOKUP(CăutareCursant,PrezențăSeptembrie[],7,FALSE),\"\")","v":""},{"$f":"IFERROR(VLOOKUP(CăutareCursant,PrezențăSeptembrie[],8,FALSE),\"\")","v":""},{"$f":"IFERROR(VLOOKUP(CăutareCursant,PrezențăSeptembrie[],9,FALSE),\"\")","v":""},{"$f":"IFERROR(VLOOKUP(CăutareCursant,PrezențăSeptembrie[],10,FALSE),\"\")","v":""},{"$f":"IFERROR(VLOOKUP(CăutareCursant,PrezențăSeptembrie[],11,FALSE),\"\")","v":""},{"$f":"IFERROR(VLOOKUP(CăutareCursant,PrezențăSeptembrie[],12,FALSE),\"\")","v":""},{"$f":"IFERROR(VLOOKUP(CăutareCursant,PrezențăSeptembrie[],13,FALSE),\"\")","v":""},{"$f":"IFERROR(VLOOKUP(CăutareCursant,PrezențăSeptembrie[],14,FALSE),\"\")","v":""},{"$f":"IFERROR(VLOOKUP(CăutareCursant,PrezențăSeptembrie[],15,FALSE),\"\")","v":""},{"$f":"IFERROR(VLOOKUP(CăutareCursant,PrezențăSeptembrie[],16,FALSE),\"\")","v":""},{"$f":"IFERROR(VLOOKUP(CăutareCursant,PrezențăSeptembrie[],17,FALSE),\"\")","v":""},{"$f":"IFERROR(VLOOKUP(CăutareCursant,PrezențăSeptembrie[],18,FALSE),\"\")","v":""},{"$f":"IFERROR(VLOOKUP(CăutareCursant,PrezențăSeptembrie[],19,FALSE),\"\")","v":""},{"$f":"IFERROR(VLOOKUP(CăutareCursant,PrezențăSeptembrie[],20,FALSE),\"\")","v":""},{"$f":"IFERROR(VLOOKUP(CăutareCursant,PrezențăSeptembrie[],21,FALSE),\"\")","v":""},{"$f":"IFERROR(VLOOKUP(CăutareCursant,PrezențăSeptembrie[],22,FALSE),\"\")","v":""},{"$f":"IFERROR(VLOOKUP(CăutareCursant,PrezențăSeptembrie[],23,FALSE),\"\")","v":""},{"$f":"IFERROR(VLOOKUP(CăutareCursant,PrezențăSeptembrie[],24,FALSE),\"\")","v":""},{"$f":"IFERROR(VLOOKUP(CăutareCursant,PrezențăSeptembrie[],25,FALSE),\"\")","v":""},{"$f":"IFERROR(VLOOKUP(CăutareCursant,PrezențăSeptembrie[],26,FALSE),\"\")","v":""},{"$f":"IFERROR(VLOOKUP(CăutareCursant,PrezențăSeptembrie[],27,FALSE),\"\")","v":""},{"$f":"IFERROR(VLOOKUP(CăutareCursant,PrezențăSeptembrie[],28,FALSE),\"\")","v":""},{"$f":"IFERROR(VLOOKUP(CăutareCursant,PrezențăSeptembrie[],29,FALSE),\"\")","v":""},{"$f":"IFERROR(VLOOKUP(CăutareCursant,PrezențăSeptembrie[],30,FALSE),\"\")","v":""},{"$f":"IFERROR(VLOOKUP(CăutareCursant,PrezențăSeptembrie[],31,FALSE),\"\")","v":""},{"$f":"IFERROR(VLOOKUP(CăutareCursant,PrezențăSeptembrie[],32,FALSE),\"\")","v":""}]
[null,"Octombrie",1,2,3,4,5,6,7,8,9,10,11,12,13,14,15,16,17,18,19,20,21,22,23,24,25,26,27,28,29,30,31,{"$f":"COUNTIF($D21:$AH21,Cod_1)","v":0},{"$f":"COUNTIF($D21:$AH21,Cod_2)","v":0},{"$f":"COUNTIF($D21:$AH21,Cod_3)","v":0},{"$f":"COUNTIF($D21:$AH21,Cod_4)","v":0}]
[null,null,{"$f":"IFERROR(VLOOKUP(CăutareCursant,PrezențăOctombrie[],3,FALSE),\"\")","v":""},{"$f":"IFERROR(VLOOKUP(CăutareCursant,PrezențăOctombrie[],4,FALSE),\"\")","v":""},{"$f":"IFERROR(VLOOKUP(CăutareCursant,PrezențăOctombrie[],5,FALSE),\"\")","v":""},{"$f":"IFERROR(VLOOKUP(CăutareCursant,PrezențăOctombrie[],6,FALSE),\"\")","v":""},{"$f":"IFERROR(VLOOKUP(CăutareCursant,PrezențăOctombrie[],7,FALSE),\"\")","v":""},{"$f":"IFERROR(VLOOKUP(CăutareCursant,PrezențăOctombrie[],8,FALSE),\"\")","v":""},{"$f":"IFERROR(VLOOKUP(CăutareCursant,PrezențăOctombrie[],9,FALSE),\"\")","v":""},{"$f":"IFERROR(VLOOKUP(CăutareCursant,PrezențăOctombrie[],10,FALSE),\"\")","v":""},{"$f":"IFERROR(VLOOKUP(CăutareCursant,PrezențăOctombrie[],11,FALSE),\"\")","v":""},{"$f":"IFERROR(VLOOKUP(CăutareCursant,PrezențăOctombrie[],12,FALSE),\"\")","v":""},{"$f":"IFERROR(VLOOKUP(CăutareCursant,PrezențăOctombrie[],13,FALSE),\"\")","v":""},{"$f":"IFERROR(VLOOKUP(CăutareCursant,PrezențăOctombrie[],14,FALSE),\"\")","v":""},{"$f":"IFERROR(VLOOKUP(CăutareCursant,PrezențăOctombrie[],15,FALSE),\"\")","v":""},{"$f":"IFERROR(VLOOKUP(CăutareCursant,PrezențăOctombrie[],16,FALSE),\"\")","v":""},{"$f":"IFERROR(VLOOKUP(CăutareCursant,PrezențăOctombrie[],17,FALSE),\"\")","v":""},{"$f":"IFERROR(VLOOKUP(CăutareCursant,PrezențăOctombrie[],18,FALSE),\"\")","v":""},{"$f":"IFERROR(VLOOKUP(CăutareCursant,PrezențăOctombrie[],19,FALSE),\"\")","v":""},{"$f":"IFERROR(VLOOKUP(CăutareCursant,PrezențăOctombrie[],20,FALSE),\"\")","v":""},{"$f":"IFERROR(VLOOKUP(CăutareCursant,PrezențăOctombrie[],21,FALSE),\"\")","v":""},{"$f":"IFERROR(VLOOKUP(CăutareCursant,PrezențăOctombrie[],22,FALSE),\"\")","v":""},{"$f":"IFERROR(VLOOKUP(CăutareCursant,PrezențăOctombrie[],23,FALSE),\"\")","v":""},{"$f":"IFERROR(VLOOKUP(CăutareCursant,PrezențăOctombrie[],24,FALSE),\"\")","v":""},{"$f":"IFERROR(VLOOKUP(CăutareCursant,PrezențăOctombrie[],25,FALSE),\"\")","v":""},{"$f":"IFERROR(VLOOKUP(CăutareCursant,PrezențăOctombrie[],26,FALSE),\"\")","v":""},{"$f":"IFERROR(VLOOKUP(CăutareCursant,PrezențăOctombrie[],27,FALSE),\"\")","v":""},{"$f":"IFERROR(VLOOKUP(CăutareCursant,PrezențăOctombrie[],28,FALSE),\"\")","v":""},{"$f":"IFERROR(VLOOKUP(CăutareCursant,PrezențăOctombrie[],29,FALSE),\"\")","v":""},{"$f":"IFERROR(VLOOKUP(CăutareCursant,PrezențăOctombrie[],30,FALSE),\"\")","v":""},{"$f":"IFERROR(VLOOKUP(CăutareCursant,PrezențăOctombrie[],31,FALSE),\"\")","v":""},{"$f":"IFERROR(VLOOKUP(CăutareCursant,PrezențăOctombrie[],32,FALSE),\"\")","v":""},{"$f":"IFERROR(VLOOKUP(CăutareCursant,PrezențăOctombrie[],33,FALSE),\"\")","v":""}]
[null,"Noiembrie",1,2,3,4,5,6,7,8,9,10,11,12,13,14,15,16,17,18,19,20,21,22,23,24,25,26,27,28,29,30,null,{"$f":"COUNTIF($D23:$AH23,Cod_1)","v":0},{"$f":"COUNTIF($D23:$AH23,Cod_2)","v":0},{"$f":"COUNTIF($D23:$AH23,Cod_3)","v":0},{"$f":"COUNTIF($D23:$AH23,Cod_4)","v":0}]
[null,null,{"$f":"IFERROR(VLOOKUP(CăutareCursant,PrezențăNoiembrie[],3,FALSE),\"\")","v":""},{"$f":"IFERROR(VLOOKUP(CăutareCursant,PrezențăNoiembrie[],4,FALSE),\"\")","v":""},{"$f":"IFERROR(VLOOKUP(CăutareCursant,PrezențăNoiembrie[],5,FALSE),\"\")","v":""},{"$f":"IFERROR(VLOOKUP(CăutareCursant,PrezențăNoiembrie[],6,FALSE),\"\")","v":""},{"$f":"IFERROR(VLOOKUP(CăutareCursant,PrezențăNoiembrie[],7,FALSE),\"\")","v":""},{"$f":"IFERROR(VLOOKUP(CăutareCursant,PrezențăNoiembrie[],8,FALSE),\"\")","v":""},{"$f":"IFERROR(VLOOKUP(CăutareCursant,PrezențăNoiembrie[],9,FALSE),\"\")","v":""},{"$f":"IFERROR(VLOOKUP(CăutareCursant,PrezențăNoiembrie[],10,FALSE),\"\")","v":""},{"$f":"IFERROR(VLOOKUP(CăutareCursant,PrezențăNoiembrie[],11,FALSE),\"\")","v":""},{"$f":"IFERROR(VLOOKUP(CăutareCursant,PrezențăNoiembrie[],12,FALSE),\"\")","v":""},{"$f":"IFERROR(VLOOKUP(CăutareCursant,PrezențăNoiembrie[],13,FALSE),\"\")","v":""},{"$f":"IFERROR(VLOOKUP(CăutareCursant,PrezențăNoiembrie[],14,FALSE),\"\")","v":""},{"$f":"IFERROR(VLOOKUP(CăutareCursant,PrezențăNoiembrie[],15,FALSE),\"\")","v":""},{"$f":"IFERROR(VLOOKUP(CăutareCursant,PrezențăNoiembrie[],16,FALSE),\"\")","v":""},{"$f":"IFERROR(VLOOKUP(CăutareCursant,PrezențăNoiembrie[],17,FALSE),\"\")","v":""},{"$f":"IFERROR(VLOOKUP(CăutareCursant,PrezențăNoiembrie[],18,FALSE),\"\")","v":""},{"$f":"IFERROR(VLOOKUP(CăutareCursant,PrezențăNoiembrie[],19,FALSE),\"\")","v":""},{"$f":"IFERROR(VLOOKUP(CăutareCursant,PrezențăNoiembrie[],20,FALSE),\"\")","v":""},{"$f":"IFERROR(VLOOKUP(CăutareCursant,PrezențăNoiembrie[],21,FALSE),\"\")","v":""},{"$f":"IFERROR(VLOOKUP(CăutareCursant,PrezențăNoiembrie[],22,FALSE),\"\")","v":""},{"$f":"IFERROR(VLOOKUP(CăutareCursant,PrezențăNoiembrie[],23,FALSE),\"\")","v":""},{"$f":"IFERROR(VLOOKUP(CăutareCursant,PrezențăNoiembrie[],24,FALSE),\"\")","v":""},{"$f":"IFERROR(VLOOKUP(CăutareCursant,PrezențăNoiembrie[],25,FALSE),\"\")","v":""},{"$f":"IFERROR(VLOOKUP(CăutareCursant,PrezențăNoiembrie[],26,FALSE),\"\")","v":""},{"$f":"IFERROR(VLOOKUP(CăutareCursant,PrezențăNoiembrie[],27,FALSE),\"\")","v":""},{"$f":"IFERROR(VLOOKUP(CăutareCursant,PrezențăNoiembrie[],28,FALSE),\"\")","v":""},{"$f":"IFERROR(VLOOKUP(CăutareCursant,PrezențăNoiembrie[],29,FALSE),\"\")","v":""},{"$f":"IFERROR(VLOOKUP(CăutareCursant,PrezențăNoiembrie[],30,FALSE),\"\")","v":""},{"$f":"IFERROR(VLOOKUP(CăutareCursant,PrezențăNoiembrie[],31,FALSE),\"\")","v":""},{"$f":"IFERROR(VLOOKUP(CăutareCursant,PrezențăNoiembrie[],32,FALSE),\"\")","v":""}]
[null,"Decembrie",1,2,3,4,5,6,7,8,9,10,11,12,13,14,15,16,17,18,19,20,21,22,23,24,25,26,27,28,29,30,31,{"$f":"COUNTIF($D25:$AH25,Cod_1)","v":0},{"$f":"COUNTIF($D25:$AH25,Cod_2)","v":0},{"$f":"COUNTIF($D25:$AH25,Cod_3)","v":0},{"$f":"COUNTIF($D25:$AH25,Cod_4)","v":0}]
[null,null,{"$f":"IFERROR(VLOOKUP(CăutareCursant,PrezențăDecembrie[],3,FALSE),\"\")","v":""},{"$f":"IFERROR(VLOOKUP(CăutareCursant,PrezențăDecembrie[],4,FALSE),\"\")","v":""},{"$f":"IFERROR(VLOOKUP(CăutareCursant,PrezențăDecembrie[],5,FALSE),\"\")","v":""},{"$f":"IFERROR(VLOOKUP(CăutareCursant,PrezențăDecembrie[],6,FALSE),\"\")","v":""},{"$f":"IFERROR(VLOOKUP(CăutareCursant,PrezențăDecembrie[],7,FALSE),\"\")","v":""},{"$f":"IFERROR(VLOOKUP(CăutareCursant,PrezențăDecembrie[],8,FALSE),\"\")","v":""},{"$f":"IFERROR(VLOOKUP(CăutareCursant,PrezențăDecembrie[],9,FALSE),\"\")","v":""},{"$f":"IFERROR(VLOOKUP(CăutareCursant,PrezențăDecembrie[],10,FALSE),\"\")","v":""},{"$f":"IFERROR(VLOOKUP(CăutareCursant,PrezențăDecembrie[],11,FALSE),\"\")","v":""},{"$f":"IFERROR(VLOOKUP(CăutareCursant,PrezențăDecembrie[],12,FALSE),\"\")","v":""},{"$f":"IFERROR(VLOOKUP(CăutareCursant,PrezențăDecembrie[],13,FALSE),\"\")","v":""},{"$f":"IFERROR(VLOOKUP(CăutareCursant,PrezențăDecembrie[],14,FALSE),\"\")","v":""},{"$f":"IFERROR(VLOOKUP(CăutareCursant,PrezențăDecembrie[],15,FALSE),\"\")","v":""},{"$f":"IFERROR(VLOOKUP(CăutareCursant,PrezențăDecembrie[],16,FALSE),\"\")","v":""},{"$f":"IFERROR(VLOOKUP(CăutareCursant,PrezențăDecembrie[],17,FALSE),\"\")","v":""},{"$f":"IFERROR(VLOOKUP(CăutareCursant,PrezențăDecembrie[],18,FALSE),\"\")","v":""},{"$f":"IFERROR(VLOOKUP(CăutareCursant,PrezențăDecembrie[],19,FALSE),\"\")","v":""},{"$f":"IFERROR(VLOOKUP(CăutareCursant,PrezențăDecembrie[],20,FALSE),\"\")","v":""},{"$f":"IFERROR(VLOOKUP(CăutareCursant,PrezențăDecembrie[],21,FALSE),\"\")","v":""},{"$f":"IFERROR(VLOOKUP(CăutareCursant,PrezențăDecembrie[],22,FALSE),\"\")","v":""},{"$f":"IFERROR(VLOOKUP(CăutareCursant,PrezențăDecembrie[],23,FALSE),\"\")","v":""},{"$f":"IFERROR(VLOOKUP(CăutareCursant,PrezențăDecembrie[],24,FALSE),\"\")","v":""},{"$f":"IFERROR(VLOOKUP(CăutareCursant,PrezențăDecembrie[],25,FALSE),\"\")","v":""},{"$f":"IFERROR(VLOOKUP(CăutareCursant,PrezențăDecembrie[],26,FALSE),\"\")","v":""},{"$f":"IFERROR(VLOOKUP(CăutareCursant,PrezențăDecembrie[],27,FALSE),\"\")","v":""},{"$f":"IFERROR(VLOOKUP(CăutareCursant,PrezențăDecembrie[],28,FALSE),\"\")","v":""},{"$f":"IFERROR(VLOOKUP(CăutareCursant,PrezențăDecembrie[],29,FALSE),\"\")","v":""},{"$f":"IFERROR(VLOOKUP(CăutareCursant,PrezențăDecembrie[],30,FALSE),\"\")","v":""},{"$f":"IFERROR(VLOOKUP(CăutareCursant,PrezențăDecembrie[],31,FALSE),\"\")","v":""},{"$f":"IFERROR(VLOOKUP(CăutareCursant,PrezențăDecembrie[],32,FALSE),\"\")","v":""},{"$f":"IFERROR(VLOOKUP(CăutareCursant,PrezențăDecembrie[],33,FALSE),\"\")","v":""}]
[null,"Ianuarie",1,2,3,4,5,6,7,8,9,10,11,12,13,14,15,16,17,18,19,20,21,22,23,24,25,26,27,28,29,30,31,{"$f":"COUNTIF($D27:$AH27,Cod_1)","v":0},{"$f":"COUNTIF($D27:$AH27,Cod_2)","v":0},{"$f":"COUNTIF($D27:$AH27,Cod_3)","v":0},{"$f":"COUNTIF($D27:$AH27,Cod_4)","v":0}]
[null,null,{"$f":"IFERROR(VLOOKUP(CăutareCursant,PrezențăIanuarie[],3,FALSE),\"\")","v":""},{"$f":"IFERROR(VLOOKUP(CăutareCursant,PrezențăIanuarie[],4,FALSE),\"\")","v":""},{"$f":"IFERROR(VLOOKUP(CăutareCursant,PrezențăIanuarie[],5,FALSE),\"\")","v":""},{"$f":"IFERROR(VLOOKUP(CăutareCursant,PrezențăIanuarie[],6,FALSE),\"\")","v":""},{"$f":"IFERROR(VLOOKUP(CăutareCursant,PrezențăIanuarie[],7,FALSE),\"\")","v":""},{"$f":"IFERROR(VLOOKUP(CăutareCursant,PrezențăIanuarie[],8,FALSE),\"\")","v":""},{"$f":"IFERROR(VLOOKUP(CăutareCursant,PrezențăIanuarie[],9,FALSE),\"\")","v":""},{"$f":"IFERROR(VLOOKUP(CăutareCursant,PrezențăIanuarie[],10,FALSE),\"\")","v":""},{"$f":"IFERROR(VLOOKUP(CăutareCursant,PrezențăIanuarie[],11,FALSE),\"\")","v":""},{"$f":"IFERROR(VLOOKUP(CăutareCursant,PrezențăIanuarie[],12,FALSE),\"\")","v":""},{"$f":"IFERROR(VLOOKUP(CăutareCursant,PrezențăIanuarie[],13,FALSE),\"\")","v":""},{"$f":"IFERROR(VLOOKUP(CăutareCursant,PrezențăIanuarie[],14,FALSE),\"\")","v":""},{"$f":"IFERROR(VLOOKUP(CăutareCursant,PrezențăIanuarie[],15,FALSE),\"\")","v":""},{"$f":"IFERROR(VLOOKUP(CăutareCursant,PrezențăIanuarie[],16,FALSE),\"\")","v":""},{"$f":"IFERROR(VLOOKUP(CăutareCursant,PrezențăIanuarie[],17,FALSE),\"\")","v":""},{"$f":"IFERROR(VLOOKUP(CăutareCursant,PrezențăIanuarie[],18,FALSE),\"\")","v":""},{"$f":"IFERROR(VLOOKUP(CăutareCursant,PrezențăIanuarie[],19,FALSE),\"\")","v":""},{"$f":"IFERROR(VLOOKUP(CăutareCursant,PrezențăIanuarie[],20,FALSE),\"\")","v":""},{"$f":"IFERROR(VLOOKUP(CăutareCursant,PrezențăIanuarie[],21,FALSE),\"\")","v":""},{"$f":"IFERROR(VLOOKUP(CăutareCursant,PrezențăIanuarie[],22,FALSE),\"\")","v":""},{"$f":"IFERROR(VLOOKUP(CăutareCursant,PrezențăIanuarie[],23,FALSE),\"\")","v":""},{"$f":"IFERROR(VLOOKUP(CăutareCursant,PrezențăIanuarie[],24,FALSE),\"\")","v":""},{"$f":"IFERROR(VLOOKUP(CăutareCursant,PrezențăIanuarie[],25,FALSE),\"\")","v":""},{"$f":"IFERROR(VLOOKUP(CăutareCursant,PrezențăIanuarie[],26,FALSE),\"\")","v":""},{"$f":"IFERROR(VLOOKUP(CăutareCursant,PrezențăIanuarie[],27,FALSE),\"\")","v":""},{"$f":"IFERROR(VLOOKUP(CăutareCursant,PrezențăIanuarie[],28,FALSE),\"\")","v":""},{"$f":"IFERROR(VLOOKUP(CăutareCursant,PrezențăIanuarie[],29,FALSE),\"\")","v":""},{"$f":"IFERROR(VLOOKUP(CăutareCursant,PrezențăIanuarie[],30,FALSE),\"\")","v":""},{"$f":"IFERROR(VLOOKUP(CăutareCursant,PrezențăIanuarie[],31,FALSE),\"\")","v":""},{"$f":"IFERROR(VLOOKUP(CăutareCursant,PrezențăIanuarie[],32,FALSE),\"\")","v":""},{"$f":"IFERROR(VLOOKUP(CăutareCursant,PrezențăIanuarie[],33,FALSE),\"\")","v":""}]
[null,"Februarie",1,2,3,4,5,6,7,8,9,10,11,12,13,14,15,16,17,18,19,20,21,22,23,24,25,26,27,28,29,null,null,{"$f":"COUNTIF($D29:$AH29,Cod_1)","v":0},{"$f":"COUNTIF($D29:$AH29,Cod_2)","v":0},{"$f":"COUNTIF($D29:$AH29,Cod_3)","v":0},{"$f":"COUNTIF($D29:$AH29,Cod_4)","v":0}]
[null,null,{"$f":"IFERROR(VLOOKUP(CăutareCursant,PrezențăFebruarie[],3,FALSE),\"\")","v":""},{"$f":"IFERROR(VLOOKUP(CăutareCursant,PrezențăFebruarie[],4,FALSE),\"\")","v":""},{"$f":"IFERROR(VLOOKUP(CăutareCursant,PrezențăFebruarie[],5,FALSE),\"\")","v":""},{"$f":"IFERROR(VLOOKUP(CăutareCursant,PrezențăFebruarie[],6,FALSE),\"\")","v":""},{"$f":"IFERROR(VLOOKUP(CăutareCursant,PrezențăFebruarie[],7,FALSE),\"\")","v":""},{"$f":"IFERROR(VLOOKUP(CăutareCursant,PrezențăFebruarie[],8,FALSE),\"\")","v":""},{"$f":"IFERROR(VLOOKUP(CăutareCursant,PrezențăFebruarie[],9,FALSE),\"\")","v":""},{"$f":"IFERROR(VLOOKUP(CăutareCursant,PrezențăFebruarie[],10,FALSE),\"\")","v":""},{"$f":"IFERROR(VLOOKUP(CăutareCursant,PrezențăFebruarie[],11,FALSE),\"\")","v":""},{"$f":"IFERROR(VLOOKUP(CăutareCursant,PrezențăFebruarie[],12,FALSE),\"\")","v":""},{"$f":"IFERROR(VLOOKUP(CăutareCursant,PrezențăFebruarie[],13,FALSE),\"\")","v":""},{"$f":"IFERROR(VLOOKUP(CăutareCursant,PrezențăFebruarie[],14,FALSE),\"\")","v":""},{"$f":"IFERROR(VLOOKUP(CăutareCursant,PrezențăFebruarie[],15,FALSE),\"\")","v":""},{"$f":"IFERROR(VLOOKUP(CăutareCursant,PrezențăFebruarie[],16,FALSE),\"\")","v":""},{"$f":"IFERROR(VLOOKUP(CăutareCursant,PrezențăFebruarie[],17,FALSE),\"\")","v":""},{"$f":"IFERROR(VLOOKUP(CăutareCursant,PrezențăFebruarie[],18,FALSE),\"\")","v":""},{"$f":"IFERROR(VLOOKUP(CăutareCursant,PrezențăFebruarie[],19,FALSE),\"\")","v":""},{"$f":"IFERROR(VLOOKUP(CăutareCursant,PrezențăFebruarie[],20,FALSE),\"\")","v":""},{"$f":"IFERROR(VLOOKUP(CăutareCursant,PrezențăFebruarie[],21,FALSE),\"\")","v":""},{"$f":"IFERROR(VLOOKUP(CăutareCursant,PrezențăFebruarie[],22,FALSE),\"\")","v":""},{"$f":"IFERROR(VLOOKUP(CăutareCursant,PrezențăFebruarie[],23,FALSE),\"\")","v":""},{"$f":"IFERROR(VLOOKUP(CăutareCursant,PrezențăFebruarie[],24,FALSE),\"\")","v":""},{"$f":"IFERROR(VLOOKUP(CăutareCursant,PrezențăFebruarie[],25,FALSE),\"\")","v":""},{"$f":"IFERROR(VLOOKUP(CăutareCursant,PrezențăFebruarie[],26,FALSE),\"\")","v":""},{"$f":"IFERROR(VLOOKUP(CăutareCursant,PrezențăFebruarie[],27,FALSE),\"\")","v":""},{"$f":"IFERROR(VLOOKUP(CăutareCursant,PrezențăFebruarie[],28,FALSE),\"\")","v":""},{"$f":"IFERROR(VLOOKUP(CăutareCursant,PrezențăFebruarie[],29,FALSE),\"\")","v":""},{"$f":"IFERROR(VLOOKUP(CăutareCursant,PrezențăFebruarie[],30,FALSE),\"\")","v":""},{"$f":"IFERROR(VLOOKUP(CăutareCursant,PrezențăFebruarie[],31,FALSE),\"\")","v":""}]
[null,"Martie",1,2,3,4,5,6,7,8,9,10,11,12,13,14,15,16,17,18,19,20,21,22,23,24,25,26,27,28,29,30,31,{"$f":"COUNTIF($D31:$AH31,Cod_1)","v":0},{"$f":"COUNTIF($D31:$AH31,Cod_2)","v":0},{"$f":"COUNTIF($D31:$AH31,Cod_3)","v":0},{"$f":"COUNTIF($D31:$AH31,Cod_4)","v":0}]
[null,null,{"$f":"IFERROR(VLOOKUP(CăutareCursant,PrezențăMartie[],3,FALSE),\"\")","v":""},{"$f":"IFERROR(VLOOKUP(CăutareCursant,PrezențăMartie[],4,FALSE),\"\")","v":""},{"$f":"IFERROR(VLOOKUP(CăutareCursant,PrezențăMartie[],5,FALSE),\"\")","v":""},{"$f":"IFERROR(VLOOKUP(CăutareCursant,PrezențăMartie[],6,FALSE),\"\")","v":""},{"$f":"IFERROR(VLOOKUP(CăutareCursant,PrezențăMartie[],7,FALSE),\"\")","v":""},{"$f":"IFERROR(VLOOKUP(CăutareCursant,PrezențăMartie[],8,FALSE),\"\")","v":""},{"$f":"IFERROR(VLOOKUP(CăutareCursant,PrezențăMartie[],9,FALSE),\"\")","v":""},{"$f":"IFERROR(VLOOKUP(CăutareCursant,PrezențăMartie[],10,FALSE),\"\")","v":""},{"$f":"IFERROR(VLOOKUP(CăutareCursant,PrezențăMartie[],11,FALSE),\"\")","v":""},{"$f":"IFERROR(VLOOKUP(CăutareCursant,PrezențăMartie[],12,FALSE),\"\")","v":""},{"$f":"IFERROR(VLOOKUP(CăutareCursant,PrezențăMartie[],13,FALSE),\"\")","v":""},{"$f":"IFERROR(VLOOKUP(CăutareCursant,PrezențăMartie[],14,FALSE),\"\")","v":""},{"$f":"IFERROR(VLOOKUP(CăutareCursant,PrezențăMartie[],15,FALSE),\"\")","v":""},{"$f":"IFERROR(VLOOKUP(CăutareCursant,PrezențăMartie[],16,FALSE),\"\")","v":""},{"$f":"IFERROR(VLOOKUP(CăutareCursant,PrezențăMartie[],17,FALSE),\"\")","v":""},{"$f":"IFERROR(VLOOKUP(CăutareCursant,PrezențăMartie[],18,FALSE),\"\")","v":""},{"$f":"IFERROR(VLOOKUP(CăutareCursant,PrezențăMartie[],19,FALSE),\"\")","v":""},{"$f":"IFERROR(VLOOKUP(CăutareCursant,PrezențăMartie[],20,FALSE),\"\")","v":""},{"$f":"IFERROR(VLOOKUP(CăutareCursant,PrezențăMartie[],21,FALSE),\"\")","v":""},{"$f":"IFERROR(VLOOKUP(CăutareCursant,PrezențăMartie[],22,FALSE),\"\")","v":""},{"$f":"IFERROR(VLOOKUP(CăutareCursant,PrezențăMartie[],23,FALSE),\"\")","v":""},{"$f":"IFERROR(VLOOKUP(CăutareCursant,PrezențăMartie[],24,FALSE),\"\")","v":""},{"$f":"IFERROR(VLOOKUP(CăutareCursant,PrezențăMartie[],25,FALSE),\"\")","v":""},{"$f":"IFERROR(VLOOKUP(CăutareCursant,PrezențăMartie[],26,FALSE),\"\")","v":""},{"$f":"IFERROR(VLOOKUP(CăutareCursant,PrezențăMartie[],27,FALSE),\"\")","v":""},{"$f":"IFERROR(VLOOKUP(CăutareCursant,PrezențăMartie[],28,FALSE),\"\")","v":""},{"$f":"IFERROR(VLOOKUP(CăutareCursant,PrezențăMartie[],29,FALSE),\"\")","v":""},{"$f":"IFERROR(VLOOKUP(CăutareCursant,PrezențăMartie[],30,FALSE),\"\")","v":""},{"$f":"IFERROR(VLOOKUP(CăutareCursant,PrezențăMartie[],31,FALSE),\"\")","v":""},{"$f":"IFERROR(VLOOKUP(CăutareCursant,PrezențăMartie[],32,FALSE),\"\")","v":""},{"$f":"IFERROR(VLOOKUP(CăutareCursant,PrezențăMartie[],33,FALSE),\"\")","v":""}]
[null,"Aprilie",1,2,3,4,5,6,7,8,9,10,11,12,13,14,15,16,17,18,19,20,21,22,23,24,25,26,27,28,29,30,null,{"$f":"COUNTIF($D33:$AH33,Cod_1)","v":0},{"$f":"COUNTIF($D33:$AH33,Cod_2)","v":0},{"$f":"COUNTIF($D33:$AH33,Cod_3)","v":0},{"$f":"COUNTIF($D33:$AH33,Cod_4)","v":0}]
[null,null,{"$f":"IFERROR(VLOOKUP(CăutareCursant,PrezențăAprilie[],3,FALSE),\"\")","v":""},{"$f":"IFERROR(VLOOKUP(CăutareCursant,PrezențăAprilie[],4,FALSE),\"\")","v":""},{"$f":"IFERROR(VLOOKUP(CăutareCursant,PrezențăAprilie[],5,FALSE),\"\")","v":""},{"$f":"IFERROR(VLOOKUP(CăutareCursant,PrezențăAprilie[],6,FALSE),\"\")","v":""},{"$f":"IFERROR(VLOOKUP(CăutareCursant,PrezențăAprilie[],7,FALSE),\"\")","v":""},{"$f":"IFERROR(VLOOKUP(CăutareCursant,PrezențăAprilie[],8,FALSE),\"\")","v":""},{"$f":"IFERROR(VLOOKUP(CăutareCursant,PrezențăAprilie[],9,FALSE),\"\")","v":""},{"$f":"IFERROR(VLOOKUP(CăutareCursant,PrezențăAprilie[],10,FALSE),\"\")","v":""},{"$f":"IFERROR(VLOOKUP(CăutareCursant,PrezențăAprilie[],11,FALSE),\"\")","v":""},{"$f":"IFERROR(VLOOKUP(CăutareCursant,PrezențăAprilie[],12,FALSE),\"\")","v":""},{"$f":"IFERROR(VLOOKUP(CăutareCursant,PrezențăAprilie[],13,FALSE),\"\")","v":""},{"$f":"IFERROR(VLOOKUP(CăutareCursant,PrezențăAprilie[],14,FALSE),\"\")","v":""},{"$f":"IFERROR(VLOOKUP(CăutareCursant,PrezențăAprilie[],15,FALSE),\"\")","v":""},{"$f":"IFERROR(VLOOKUP(CăutareCursant,PrezențăAprilie[],16,FALSE),\"\")","v":""},{"$f":"IFERROR(VLOOKUP(CăutareCursant,PrezențăAprilie[],17,FALSE),\"\")","v":""},{"$f":"IFERROR(VLOOKUP(CăutareCursant,PrezențăAprilie[],18,FALSE),\"\")","v":""},{"$f":"IFERROR(VLOOKUP(CăutareCursant,PrezențăAprilie[],19,FALSE),\"\")","v":""},{"$f":"IFERROR(VLOOKUP(CăutareCursant,PrezențăAprilie[],20,FALSE),\"\")","v":""},{"$f":"IFERROR(VLOOKUP(CăutareCursant,PrezențăAprilie[],21,FALSE),\"\")","v":""},{"$f":"IFERROR(VLOOKUP(CăutareCursant,PrezențăAprilie[],22,FALSE),\"\")","v":""},{"$f":"IFERROR(VLOOKUP(CăutareCursant,PrezențăAprilie[],23,FALSE),\"\")","v":""},{"$f":"IFERROR(VLOOKUP(CăutareCursant,PrezențăAprilie[],24,FALSE),\"\")","v":""},{"$f":"IFERROR(VLOOKUP(CăutareCursant,PrezențăAprilie[],25,FALSE),\"\")","v":""},{"$f":"IFERROR(VLOOKUP(CăutareCursant,PrezențăAprilie[],26,FALSE),\"\")","v":""},{"$f":"IFERROR(VLOOKUP(CăutareCursant,PrezențăAprilie[],27,FALSE),\"\")","v":""},{"$f":"IFERROR(VLOOKUP(CăutareCursant,PrezențăAprilie[],28,FALSE),\"\")","v":""},{"$f":"IFERROR(VLOOKUP(CăutareCursant,PrezențăAprilie[],29,FALSE),\"\")","v":""},{"$f":"IFERROR(VLOOKUP(CăutareCursant,PrezențăAprilie[],30,FALSE),\"\")","v":""},{"$f":"IFERROR(VLOOKUP(CăutareCursant,PrezențăAprilie[],31,FALSE),\"\")","v":""},{"$f":"IFERROR(VLOOKUP(CăutareCursant,PrezențăAprilie[],32,FALSE),\"\")","v":""}]
[null,"Mai",1,2,3,4,5,6,7,8,9,10,11,12,13,14,15,16,17,18,19,20,21,22,23,24,25,26,27,28,29,30,31,{"$f":"COUNTIF($D35:$AH35,Cod_1)","v":0},{"$f":"COUNTIF($D35:$AH35,Cod_2)","v":0},{"$f":"COUNTIF($D35:$AH35,Cod_3)","v":0},{"$f":"COUNTIF($D35:$AH35,Cod_4)","v":0}]
[null,null,{"$f":"IFERROR(VLOOKUP(CăutareCursant,PrezențăMai[],3,FALSE),\"\")","v":""},{"$f":"IFERROR(VLOOKUP(CăutareCursant,PrezențăMai[],4,FALSE),\"\")","v":""},{"$f":"IFERROR(VLOOKUP(CăutareCursant,PrezențăMai[],5,FALSE),\"\")","v":""},{"$f":"IFERROR(VLOOKUP(CăutareCursant,PrezențăMai[],6,FALSE),\"\")","v":""},{"$f":"IFERROR(VLOOKUP(CăutareCursant,PrezențăMai[],7,FALSE),\"\")","v":""},{"$f":"IFERROR(VLOOKUP(CăutareCursant,PrezențăMai[],8,FALSE),\"\")","v":""},{"$f":"IFERROR(VLOOKUP(CăutareCursant,PrezențăMai[],9,FALSE),\"\")","v":""},{"$f":"IFERROR(VLOOKUP(CăutareCursant,PrezențăMai[],10,FALSE),\"\")","v":""},{"$f":"IFERROR(VLOOKUP(CăutareCursant,PrezențăMai[],11,FALSE),\"\")","v":""},{"$f":"IFERROR(VLOOKUP(CăutareCursant,PrezențăMai[],12,FALSE),\"\")","v":""},{"$f":"IFERROR(VLOOKUP(CăutareCursant,PrezențăMai[],13,FALSE),\"\")","v":""},{"$f":"IFERROR(VLOOKUP(CăutareCursant,PrezențăMai[],14,FALSE),\"\")","v":""},{"$f":"IFERROR(VLOOKUP(CăutareCursant,PrezențăMai[],15,FALSE),\"\")","v":""},{"$f":"IFERROR(VLOOKUP(CăutareCursant,PrezențăMai[],16,FALSE),\"\")","v":""},{"$f":"IFERROR(VLOOKUP(CăutareCursant,PrezențăMai[],17,FALSE),\"\")","v":""},{"$f":"IFERROR(VLOOKUP(CăutareCursant,PrezențăMai[],18,FALSE),\"\")","v":""},{"$f":"IFERROR(VLOOKUP(CăutareCursant,PrezențăMai[],19,FALSE),\"\")","v":""},{"$f":"IFERROR(VLOOKUP(CăutareCursant,PrezențăMai[],20,FALSE),\"\")","v":""},{"$f":"IFERROR(VLOOKUP(CăutareCursant,PrezențăMai[],21,FALSE),\"\")","v":""},{"$f":"IFERROR(VLOOKUP(CăutareCursant,PrezențăMai[],22,FALSE),\"\")","v":""},{"$f":"IFERROR(VLOOKUP(CăutareCursant,PrezențăMai[],23,FALSE),\"\")","v":""},{"$f":"IFERROR(VLOOKUP(CăutareCursant,PrezențăMai[],24,FALSE),\"\")","v":""},{"$f":"IFERROR(VLOOKUP(CăutareCursant,PrezențăMai[],25,FALSE),\"\")","v":""},{"$f":"IFERROR(VLOOKUP(CăutareCursant,PrezențăMai[],26,FALSE),\"\")","v":""},{"$f":"IFERROR(VLOOKUP(CăutareCursant,PrezențăMai[],27,FALSE),\"\")","v":""},{"$f":"IFERROR(VLOOKUP(CăutareCursant,PrezențăMai[],28,FALSE),\"\")","v":""},{"$f":"IFERROR(VLOOKUP(CăutareCursant,PrezențăMai[],29,FALSE),\"\")","v":""},{"$f":"IFERROR(VLOOKUP(CăutareCursant,PrezențăMai[],30,FALSE),\"\")","v":""},{"$f":"IFERROR(VLOOKUP(CăutareCursant,PrezențăMai[],31,FALSE),\"\")","v":""},{"$f":"IFERROR(VLOOKUP(CăutareCursant,PrezențăMai[],32,FALSE),\"\")","v":""},{"$f":"IFERROR(VLOOKUP(CăutareCursant,PrezențăMai[],33,FALSE),\"\")","v":""}]
[null,"Iunie",1,2,3,4,5,6,7,8,9,10,11,12,13,14,15,16,17,18,19,20,21,22,23,24,25,26,27,28,29,30,null,{"$f":"COUNTIF($D37:$AH37,Cod_1)","v":0},{"$f":"COUNTIF($D37:$AH37,Cod_2)","v":0},{"$f":"COUNTIF($D37:$AH37,Cod_3)","v":0},{"$f":"COUNTIF($D37:$AH37,Cod_4)","v":0}]
[null,null,{"$f":"IFERROR(VLOOKUP(CăutareCursant,PrezențăIunie[],3,FALSE),\"\")","v":""},{"$f":"IFERROR(VLOOKUP(CăutareCursant,PrezențăIunie[],4,FALSE),\"\")","v":""},{"$f":"IFERROR(VLOOKUP(CăutareCursant,PrezențăIunie[],5,FALSE),\"\")","v":""},{"$f":"IFERROR(VLOOKUP(CăutareCursant,PrezențăIunie[],6,FALSE),\"\")","v":""},{"$f":"IFERROR(VLOOKUP(CăutareCursant,PrezențăIunie[],7,FALSE),\"\")","v":""},{"$f":"IFERROR(VLOOKUP(CăutareCursant,PrezențăIunie[],8,FALSE),\"\")","v":""},{"$f":"IFERROR(VLOOKUP(CăutareCursant,PrezențăIunie[],9,FALSE),\"\")","v":""},{"$f":"IFERROR(VLOOKUP(CăutareCursant,PrezențăIunie[],10,FALSE),\"\")","v":""},{"$f":"IFERROR(VLOOKUP(CăutareCursant,PrezențăIunie[],11,FALSE),\"\")","v":""},{"$f":"IFERROR(VLOOKUP(CăutareCursant,PrezențăIunie[],12,FALSE),\"\")","v":""},{"$f":"IFERROR(VLOOKUP(CăutareCursant,PrezențăIunie[],13,FALSE),\"\")","v":""},{"$f":"IFERROR(VLOOKUP(CăutareCursant,PrezențăIunie[],14,FALSE),\"\")","v":""},{"$f":"IFERROR(VLOOKUP(CăutareCursant,PrezențăIunie[],15,FALSE),\"\")","v":""},{"$f":"IFERROR(VLOOKUP(CăutareCursant,PrezențăIunie[],16,FALSE),\"\")","v":""},{"$f":"IFERROR(VLOOKUP(CăutareCursant,PrezențăIunie[],17,FALSE),\"\")","v":""},{"$f":"IFERROR(VLOOKUP(CăutareCursant,PrezențăIunie[],18,FALSE),\"\")","v":""},{"$f":"IFERROR(VLOOKUP(CăutareCursant,PrezențăIunie[],19,FALSE),\"\")","v":""},{"$f":"IFERROR(VLOOKUP(CăutareCursant,PrezențăIunie[],20,FALSE),\"\")","v":""},{"$f":"IFERROR(VLOOKUP(CăutareCursant,PrezențăIunie[],21,FALSE),\"\")","v":""},{"$f":"IFERROR(VLOOKUP(CăutareCursant,PrezențăIunie[],22,FALSE),\"\")","v":""},{"$f":"IFERROR(VLOOKUP(CăutareCursant,PrezențăIunie[],23,FALSE),\"\")","v":""},{"$f":"IFERROR(VLOOKUP(CăutareCursant,PrezențăIunie[],24,FALSE),\"\")","v":""},{"$f":"IFERROR(VLOOKUP(CăutareCursant,PrezențăIunie[],25,FALSE),\"\")","v":""},{"$f":"IFERROR(VLOOKUP(CăutareCursant,PrezențăIunie[],26,FALSE),\"\")","v":""},{"$f":"IFERROR(VLOOKUP(CăutareCursant,PrezențăIunie[],27,FALSE),\"\")","v":""},{"$f":"IFERROR(VLOOKUP(CăutareCursant,PrezențăIunie[],28,FALSE),\"\")","v":""},{"$f":"IFERROR(VLOOKUP(CăutareCursant,PrezențăIunie[],29,FALSE),\"\")","v":""},{"$f":"IFERROR(VLOOKUP(CăutareCursant,PrezențăIunie[],30,FALSE),\"\")","v":""},{"$f":"IFERROR(VLOOKUP(CăutareCursant,PrezențăIunie[],31,FALSE),\"\")","v":""},{"$f":"IFERROR(VLOOKUP(CăutareCursant,PrezențăIunie[],32,FALSE),\"\")","v":""}]
[null,"Iulie",1,2,3,4,5,6,7,8,9,10,11,12,13,14,15,16,17,18,19,20,21,22,23,24,25,26,27,28,29,30,31,{"$f":"COUNTIF($D39:$AH39,Cod_1)","v":0},{"$f":"COUNTIF($D39:$AH39,Cod_2)","v":0},{"$f":"COUNTIF($D39:$AH39,Cod_3)","v":0},{"$f":"COUNTIF($D39:$AH39,Cod_4)","v":0}]
[null,null,{"$f":"IFERROR(VLOOKUP(CăutareCursant,PrezențăIulie[],3,FALSE),\"\")","v":""},{"$f":"IFERROR(VLOOKUP(CăutareCursant,PrezențăIulie[],4,FALSE),\"\")","v":""},{"$f":"IFERROR(VLOOKUP(CăutareCursant,PrezențăIulie[],5,FALSE),\"\")","v":""},{"$f":"IFERROR(VLOOKUP(CăutareCursant,PrezențăIulie[],6,FALSE),\"\")","v":""},{"$f":"IFERROR(VLOOKUP(CăutareCursant,PrezențăIulie[],7,FALSE),\"\")","v":""},{"$f":"IFERROR(VLOOKUP(CăutareCursant,PrezențăIulie[],8,FALSE),\"\")","v":""},{"$f":"IFERROR(VLOOKUP(CăutareCursant,PrezențăIulie[],9,FALSE),\"\")","v":""},{"$f":"IFERROR(VLOOKUP(CăutareCursant,PrezențăIulie[],10,FALSE),\"\")","v":""},{"$f":"IFERROR(VLOOKUP(CăutareCursant,PrezențăIulie[],11,FALSE),\"\")","v":""},{"$f":"IFERROR(VLOOKUP(CăutareCursant,PrezențăIulie[],12,FALSE),\"\")","v":""},{"$f":"IFERROR(VLOOKUP(CăutareCursant,PrezențăIulie[],13,FALSE),\"\")","v":""},{"$f":"IFERROR(VLOOKUP(CăutareCursant,PrezențăIulie[],14,FALSE),\"\")","v":""},{"$f":"IFERROR(VLOOKUP(CăutareCursant,PrezențăIulie[],15,FALSE),\"\")","v":""},{"$f":"IFERROR(VLOOKUP(CăutareCursant,PrezențăIulie[],16,FALSE),\"\")","v":""},{"$f":"IFERROR(VLOOKUP(CăutareCursant,PrezențăIulie[],17,FALSE),\"\")","v":""},{"$f":"IFERROR(VLOOKUP(CăutareCursant,PrezențăIulie[],18,FALSE),\"\")","v":""},{"$f":"IFERROR(VLOOKUP(CăutareCursant,PrezențăIulie[],19,FALSE),\"\")","v":""},{"$f":"IFERROR(VLOOKUP(CăutareCursant,PrezențăIulie[],20,FALSE),\"\")","v":""},{"$f":"IFERROR(VLOOKUP(CăutareCursant,PrezențăIulie[],21,FALSE),\"\")","v":""},{"$f":"IFERROR(VLOOKUP(CăutareCursant,PrezențăIulie[],22,FALSE),\"\")","v":""},{"$f":"IFERROR(VLOOKUP(CăutareCursant,PrezențăIulie[],23,FALSE),\"\")","v":""},{"$f":"IFERROR(VLOOKUP(CăutareCursant,PrezențăIulie[],24,FALSE),\"\")","v":""},{"$f":"IFERROR(VLOOKUP(CăutareCursant,PrezențăIulie[],25,FALSE),\"\")","v":""},{"$f":"IFERROR(VLOOKUP(CăutareCursant,PrezențăIulie[],26,FALSE),\"\")","v":""},{"$f":"IFERROR(VLOOKUP(CăutareCursant,PrezențăIulie[],27,FALSE),\"\")","v":""},{"$f":"IFERROR(VLOOKUP(CăutareCursant,PrezențăIulie[],28,FALSE),\"\")","v":""},{"$f":"IFERROR(VLOOKUP(CăutareCursant,PrezențăIulie[],29,FALSE),\"\")","v":""},{"$f":"IFERROR(VLOOKUP(CăutareCursant,PrezențăIulie[],30,FALSE),\"\")","v":""},{"$f":"IFERROR(VLOOKUP(CăutareCursant,PrezențăIulie[],31,FALSE),\"\")","v":""},{"$f":"IFERROR(VLOOKUP(CăutareCursant,PrezențăIulie[],32,FALSE),\"\")","v":""},{"$f":"IFERROR(VLOOKUP(CăutareCursant,PrezențăIulie[],33,FALSE),\"\")","v":""}]
[{"$nulls":30},"Total",null,null,{"$f":"SUM(AH16:AH39)","v":0},{"$f":"SUM(AI16:AI39)","v":0},{"$f":"SUM(AJ16:AJ39)","v":0},{"$f":"SUM(AK16:AK39)","v":0}]